{"text_format":"1","workbook":"xlsx","n_sheets":29,"sheets":["color","viscosite","ModelLin","Stat","Expr","RDT_Malade","RDT_Jardin","RDT_Raisin","RDT_Olives","RDT_Chevaux","RDT_Poules","RDT_Desherbe","RDT_Pont","RDT_Piscine","RDT_Tempete","RDT_Lampes","RDT_Salaire","RDT_Forest","RDT_Toile","Prod_Vect","Vect_ProdMix","Vect_Normalized","Comp_SP","Compl_ModulArgu","Comp_Rac","Comp_Div","Comp_Calc","Comp_Trian","Comp_Polyno"],"not_rendered":{"charts":4,"images":27,"macros":1,"external_links":0,"defined_names":834,"comments":0,"pivot_tables":0},"unopened":[],"bounds":{"document_bytes":16777216,"sheet_cells":100000,"rows_first":2000,"rows_last":500,"rows_between":2000,"halvings":0,"cell_chars":16384,"cell_head_chars":4096},"cells_cut":0,"cells_raw":0,"read":"whole","date_system":"1900"}

{"sheet":"color","index":0,"n_rows":39,"n_cols":26,"rows_kept":39,"cut":false,"hidden":false,"merged":[[26,17,26,18],[24,17,25,18]]}
[1,29,null,1,{"$f":"CHAR( 1)","v":"\u0001"},34,{"$f":"CHAR( 34)","v":"\""},67,{"$f":"CHAR( 67)","v":"C"},100,{"$f":"CHAR( 100)","v":"d"},133,{"$f":"CHAR( 133)","v":"…"},166,{"$f":"CHAR( 166)","v":"¦"},199,{"$f":"CHAR( 199)","v":"Ç"},232,{"$f":"CHAR( 232)","v":"è"},"POUR VIM : ","Accent","Aspect","LaTeX","HTML","méta","compose"]
[2,30,null,2,{"$f":"CHAR( 2)","v":"\u0002"},35,{"$f":"CHAR( 35)","v":"#"},68,{"$f":"CHAR( 68)","v":"D"},101,{"$f":"CHAR( 101)","v":"e"},134,{"$f":"CHAR( 134)","v":"†"},167,{"$f":"CHAR( 167)","v":"§"},200,{"$f":"CHAR( 200)","v":"È"},233,{"$f":"CHAR( 233)","v":"é"},{"$f":"CONCATENATE(\":%s/\",V2,\"/\\\",W2,\"/ge\")","v":":%s/\u0015/\\/ge"},"paragraphe","\u0015",null,"&para;","M-'","C s o"]
[3,31,null,3,{"$f":"CHAR( 3)","v":"\u0003"},36,{"$f":"CHAR( 36)","v":"$"},69,{"$f":"CHAR( 69)","v":"E"},102,{"$f":"CHAR( 102)","v":"f"},135,{"$f":"CHAR( 135)","v":"‡"},168,{"$f":"CHAR( 168)","v":"¨"},201,{"$f":"CHAR( 201)","v":"É"},234,{"$f":"CHAR( 234)","v":"ê"},{"$f":"CONCATENATE(\":%s/\",V3,\"/\\\",W3,\"/ge\")","v":":%s/«/\\<</ge"},"guillemet français ouvrant","«","<<","&laquo;","M-+","C < <"]
[4,32,null,4,{"$f":"CHAR( 4)","v":"\u0004"},37,{"$f":"CHAR( 37)","v":"%"},70,{"$f":"CHAR( 70)","v":"F"},103,{"$f":"CHAR( 103)","v":"g"},136,{"$f":"CHAR( 136)","v":"ˆ"},169,{"$f":"CHAR( 169)","v":"©"},202,{"$f":"CHAR( 202)","v":"Ê"},235,{"$f":"CHAR( 235)","v":"ë"},":%s/»/\\>>/ge","guillemet français fermant","»",">>","&raquo;","M-;","C > >"]
[5,33,null,5,{"$f":"CHAR( 5)","v":"\u0005"},38,{"$f":"CHAR( 38)","v":"&"},71,{"$f":"CHAR( 71)","v":"G"},104,{"$f":"CHAR( 104)","v":"h"},137,{"$f":"CHAR( 137)","v":"‰"},170,{"$f":"CHAR( 170)","v":"ª"},203,{"$f":"CHAR( 203)","v":"Ë"},236,{"$f":"CHAR( 236)","v":"ì"},":%s/á/\\\\'a/ge","a accent aigu","á","\\'a","&aacute;","M-a","C ' a"]
[6,34,null,6,{"$f":"CHAR( 6)","v":"\u0006"},39,{"$f":"CHAR( 39)","v":"'"},72,{"$f":"CHAR( 72)","v":"H"},105,{"$f":"CHAR( 105)","v":"i"},138,{"$f":"CHAR( 138)","v":"Š"},171,{"$f":"CHAR( 171)","v":"«"},204,{"$f":"CHAR( 204)","v":"Ì"},237,{"$f":"CHAR( 237)","v":"í"},":%s/à/\\\\`a/ge","a accent grave","à","\\`a","&agrave;","M-`","C ` a"]
[7,35,null,7,{"$f":"CHAR( 7)","v":"\u0007"},40,{"$f":"CHAR( 40)","v":"("},73,{"$f":"CHAR( 73)","v":"I"},106,{"$f":"CHAR( 106)","v":"j"},139,{"$f":"CHAR( 139)","v":"‹"},172,{"$f":"CHAR( 172)","v":"¬"},205,{"$f":"CHAR( 205)","v":"Í"},238,{"$f":"CHAR( 238)","v":"î"},":%s/â/\\\\^a/ge","a accent circonflexe","â","\\^a","&acirc;","M-b","C ^ a"]
[8,36,null,8,{"$f":"CHAR( 8)","v":"\b"},41,{"$f":"CHAR( 41)","v":")"},74,{"$f":"CHAR( 74)","v":"J"},107,{"$f":"CHAR( 107)","v":"k"},140,{"$f":"CHAR( 140)","v":"Œ"},173,{"$f":"CHAR( 173)","v":"­"},206,{"$f":"CHAR( 206)","v":"Î"},239,{"$f":"CHAR( 239)","v":"ï"},":%s/ä/\\\\\"a/ge","a tréma","ä","\\\"a","&auml;","M-d","C \" a"]
[9,37,null,9,{"$f":"CHAR( 9)","v":"\t"},42,{"$f":"CHAR( 42)","v":"*"},75,{"$f":"CHAR( 75)","v":"K"},108,{"$f":"CHAR( 108)","v":"l"},141,{"$f":"CHAR( 141)","v":"\u008d"},174,{"$f":"CHAR( 174)","v":"®"},207,{"$f":"CHAR( 207)","v":"Ï"},240,{"$f":"CHAR( 240)","v":"ð"},":%s/Ä/\\\\\"A/ge","A tréma","Ä","\\\"A","&Auml;","M-D","C \" A"]
[10,38,null,10,{"$f":"CHAR( 10)","v":"\n"},43,{"$f":"CHAR( 43)","v":"+"},76,{"$f":"CHAR( 76)","v":"L"},109,{"$f":"CHAR( 109)","v":"m"},142,{"$f":"CHAR( 142)","v":"Ž"},175,{"$f":"CHAR( 175)","v":"¯"},208,{"$f":"CHAR( 208)","v":"Ð"},241,{"$f":"CHAR( 241)","v":"ñ"},":%s/å/\\\\aa/ge","a rond","å","\\aa","&aring;","M-e","C * a"]
[11,39,null,11,{"$f":"CHAR( 11)","v":"\u000b"},44,{"$f":"CHAR( 44)","v":","},77,{"$f":"CHAR( 77)","v":"M"},110,{"$f":"CHAR( 110)","v":"n"},143,{"$f":"CHAR( 143)","v":"\u008f"},176,{"$f":"CHAR( 176)","v":"°"},209,{"$f":"CHAR( 209)","v":"Ñ"},242,{"$f":"CHAR( 242)","v":"ò"},":%s/Å/\\\\AA/ge","A rond","Å","\\AA","&Aring;","M-E","C * A"]
[12,40,null,12,{"$f":"CHAR( 12)","v":"\f"},45,{"$f":"CHAR( 45)","v":"-"},78,{"$f":"CHAR( 78)","v":"N"},111,{"$f":"CHAR( 111)","v":"o"},144,{"$f":"CHAR( 144)","v":"\u0090"},177,{"$f":"CHAR( 177)","v":"±"},210,{"$f":"CHAR( 210)","v":"Ò"},243,{"$f":"CHAR( 243)","v":"ó"},":%s/æ/\\\\ae/ge","ae ligaturé","æ","\\ae","&aelig;","M-f","C a e"]
[13,41,null,13,{"$f":"CHAR( 13)","v":"\r"},46,{"$f":"CHAR( 46)","v":"."},79,{"$f":"CHAR( 79)","v":"O"},112,{"$f":"CHAR( 112)","v":"p"},145,{"$f":"CHAR( 145)","v":"‘"},178,{"$f":"CHAR( 178)","v":"²"},211,{"$f":"CHAR( 211)","v":"Ó"},244,{"$f":"CHAR( 244)","v":"ô"},":%s/Æ/\\\\AE/ge","AE ligaturé","Æ","\\AE","&AElig;","M-F","C A E"]
[14,42,null,14,{"$f":"CHAR( 14)","v":"\u000e"},47,{"$f":"CHAR( 47)","v":"/"},80,{"$f":"CHAR( 80)","v":"P"},113,{"$f":"CHAR( 113)","v":"q"},146,{"$f":"CHAR( 146)","v":"’"},179,{"$f":"CHAR( 179)","v":"³"},212,{"$f":"CHAR( 212)","v":"Ô"},245,{"$f":"CHAR( 245)","v":"õ"},":%s/c/\\/ge","copyright","c",null,"&copy;","M-)","C c 0"]
[15,43,null,15,{"$f":"CHAR( 15)","v":"\u000f"},48,{"$f":"CHAR( 48)","v":"0"},81,{"$f":"CHAR( 81)","v":"Q"},114,{"$f":"CHAR( 114)","v":"r"},147,{"$f":"CHAR( 147)","v":"“"},180,{"$f":"CHAR( 180)","v":"´"},213,{"$f":"CHAR( 213)","v":"Õ"},246,{"$f":"CHAR( 246)","v":"ö"},":%s/ç/\\\\c c/ge","c cédille","ç","\\c c","&ccedil;","M-g","C , c"]
[16,44,null,16,{"$f":"CHAR( 16)","v":"\u0010"},49,{"$f":"CHAR( 49)","v":"1"},82,{"$f":"CHAR( 82)","v":"R"},115,{"$f":"CHAR( 115)","v":"s"},148,{"$f":"CHAR( 148)","v":"”"},181,{"$f":"CHAR( 181)","v":"µ"},214,{"$f":"CHAR( 214)","v":"Ö"},247,{"$f":"CHAR( 247)","v":"÷"},":%s/Ç/\\\\c C/ge","C cédille","Ç","\\c C","&Ccedil;","M-G","C , C"]
[17,45,null,17,{"$f":"CHAR( 17)","v":"\u0011"},50,{"$f":"CHAR( 50)","v":"2"},83,{"$f":"CHAR( 83)","v":"S"},116,{"$f":"CHAR( 116)","v":"t"},149,{"$f":"CHAR( 149)","v":"•"},182,{"$f":"CHAR( 182)","v":"¶"},215,{"$f":"CHAR( 215)","v":"×"},248,{"$f":"CHAR( 248)","v":"ø"},":%s/E/\\\\\"E/ge","E tréma","E","\\\"E","&Euml;","M-K","C \" E"]
[18,46,null,18,{"$f":"CHAR( 18)","v":"\u0012"},51,{"$f":"CHAR( 51)","v":"3"},84,{"$f":"CHAR( 84)","v":"T"},117,{"$f":"CHAR( 117)","v":"u"},150,{"$f":"CHAR( 150)","v":"–"},183,{"$f":"CHAR( 183)","v":"·"},216,{"$f":"CHAR( 216)","v":"Ø"},249,{"$f":"CHAR( 249)","v":"ù"},":%s/é/\\\\'e/ge","e accent aigu","é","\\'e","&eacute;","M-i","C ' e"]
[19,47,null,19,{"$f":"CHAR( 19)","v":"\u0013"},52,{"$f":"CHAR( 52)","v":"4"},85,{"$f":"CHAR( 85)","v":"U"},118,{"$f":"CHAR( 118)","v":"v"},151,{"$f":"CHAR( 151)","v":"—"},184,{"$f":"CHAR( 184)","v":"¸"},217,{"$f":"CHAR( 217)","v":"Ù"},250,{"$f":"CHAR( 250)","v":"ú"},":%s/É/\\\\'E/ge","E accent aigu","É","\\'E","&Eacute;","M-I","C ' E"]
[20,48,null,20,{"$f":"CHAR( 20)","v":"\u0014"},53,{"$f":"CHAR( 53)","v":"5"},86,{"$f":"CHAR( 86)","v":"V"},119,{"$f":"CHAR( 119)","v":"w"},152,{"$f":"CHAR( 152)","v":"˜"},185,{"$f":"CHAR( 185)","v":"¹"},218,{"$f":"CHAR( 218)","v":"Ú"},251,{"$f":"CHAR( 251)","v":"û"},":%s/è/\\\\`e/ge","e accent grave","è","\\`e","&egrave;","M-h","C ` e"]
[21,49,null,21,{"$f":"CHAR( 21)","v":"\u0015"},54,{"$f":"CHAR( 54)","v":"6"},87,{"$f":"CHAR( 87)","v":"W"},120,{"$f":"CHAR( 120)","v":"x"},153,{"$f":"CHAR( 153)","v":"™"},186,{"$f":"CHAR( 186)","v":"º"},219,{"$f":"CHAR( 219)","v":"Û"},252,{"$f":"CHAR( 252)","v":"ü"},":%s/ê/\\\\^e/ge","e accent circonflexe","ê","\\^e","&ecirc;","M-j","C ^ e"]
[22,50,null,22,{"$f":"CHAR( 22)","v":"\u0016"},55,{"$f":"CHAR( 55)","v":"7"},88,{"$f":"CHAR( 88)","v":"X"},121,{"$f":"CHAR( 121)","v":"y"},154,{"$f":"CHAR( 154)","v":"š"},187,{"$f":"CHAR( 187)","v":"»"},220,{"$f":"CHAR( 220)","v":"Ü"},253,{"$f":"CHAR( 253)","v":"ý"},":%s/ë/\\\\\"e/ge","e tréma","ë","\\\"e","&euml;","M-k","C \" e"]
[23,51,null,23,{"$f":"CHAR( 23)","v":"\u0017"},56,{"$f":"CHAR( 56)","v":"8"},89,{"$f":"CHAR( 89)","v":"Y"},122,{"$f":"CHAR( 122)","v":"z"},155,{"$f":"CHAR( 155)","v":"›"},188,{"$f":"CHAR( 188)","v":"¼"},221,{"$f":"CHAR( 221)","v":"Ý"},254,{"$f":"CHAR( 254)","v":"þ"},":%s/í/\\\\'i/ge","i accent aigu","í","\\'i","&iacute;","M-m","C ' i"]
[24,52,null,24,{"$f":"CHAR( 24)","v":"\u0018"},57,{"$f":"CHAR( 57)","v":"9"},90,{"$f":"CHAR( 90)","v":"Z"},123,{"$f":"CHAR( 123)","v":"{"},156,{"$f":"CHAR( 156)","v":"œ"},189,{"$f":"CHAR( 189)","v":"½"},222,{"$f":"CHAR( 222)","v":"Þ"},255,{"$f":"CHAR( 255)","v":"ÿ"},":%s/ì/\\\\`i/ge","i accent grave","ì","\\`i","&igrave;","M-l","C ` i"]
[25,53,null,25,{"$f":"CHAR( 25)","v":"\u0019"},58,{"$f":"CHAR( 58)","v":":"},91,{"$f":"CHAR( 91)","v":"["},124,{"$f":"CHAR( 124)","v":"|"},157,{"$f":"CHAR( 157)","v":"\u009d"},190,{"$f":"CHAR( 190)","v":"¾"},223,{"$f":"CHAR( 223)","v":"ß"},"255 lettres de l'alphabet :",null,":%s/î/\\\\^i/ge","i accent circonflexe","î","\\^i","&icirc;","M-n","C ^ i"]
[26,54,null,26,{"$f":"CHAR( 26)","v":"\u001a"},59,{"$f":"CHAR( 59)","v":";"},92,{"$f":"CHAR( 92)","v":"\\"},125,{"$f":"CHAR( 125)","v":"}"},158,{"$f":"CHAR( 158)","v":"ž"},191,{"$f":"CHAR( 191)","v":"¿"},224,{"$f":"CHAR( 224)","v":"à"},null,null,":%s/ï/\\\\\"i/ge","i tréma","ï","\\\"i","&iuml;","M-o","C \" i"]
[27,55,null,27,{"$f":"CHAR( 27)","v":"\u001b"},60,{"$f":"CHAR( 60)","v":"<"},93,{"$f":"CHAR( 93)","v":"]"},126,{"$f":"CHAR( 126)","v":"~"},159,{"$f":"CHAR( 159)","v":"Ÿ"},192,{"$f":"CHAR( 192)","v":"À"},225,{"$f":"CHAR( 225)","v":"á"},null,null,":%s/ñ/\\\\~n/ge","n tilde","ñ","\\~n","&ntilde;","M-q","C ~ n"]
[28,56,null,28,{"$f":"CHAR( 28)","v":"\u001c"},61,{"$f":"CHAR( 61)","v":"="},94,{"$f":"CHAR( 94)","v":"^"},127,{"$f":"CHAR( 127)","v":"\u007f"},160,{"$f":"CHAR( 160)","v":" "},193,{"$f":"CHAR( 193)","v":"Á"},226,{"$f":"CHAR( 226)","v":"â"},"VBA :","CHR",":%s/Ñ/\\\\~N/ge","N tilde","Ñ","\\~N","&Ntilde;","M-Q","C ~ N"]
[null,null,null,29,{"$f":"CHAR( 29)","v":"\u001d"},62,{"$f":"CHAR( 62)","v":">"},95,{"$f":"CHAR( 95)","v":"_"},128,{"$f":"CHAR( 128)","v":"€"},161,{"$f":"CHAR( 161)","v":"¡"},194,{"$f":"CHAR( 194)","v":"Â"},227,{"$f":"CHAR( 227)","v":"ã"},null,null,":%s/ó/\\\\'o/ge","o accent aigu","ó","\\'o","&oacute;","M-s","C ' o"]
[null,null,null,30,{"$f":"CHAR( 30)","v":"\u001e"},63,{"$f":"CHAR( 63)","v":"?"},96,{"$f":"CHAR( 96)","v":"`"},129,{"$f":"CHAR( 129)","v":"\u0081"},162,{"$f":"CHAR( 162)","v":"¢"},195,{"$f":"CHAR( 195)","v":"Ã"},228,{"$f":"CHAR( 228)","v":"ä"},"Excel Fr :","CAR(i)",":%s/ò/\\\\`o/ge","o accent grave","ò","\\`o","&ograve;","M-r","C ` o"]
[null,null,null,31,{"$f":"CHAR( 31)","v":"\u001f"},64,{"$f":"CHAR( 64)","v":"@"},97,{"$f":"CHAR( 97)","v":"a"},130,{"$f":"CHAR( 130)","v":"‚"},163,{"$f":"CHAR( 163)","v":"£"},196,{"$f":"CHAR( 196)","v":"Ä"},229,{"$f":"CHAR( 229)","v":"å"},"Excel GB : ","CHAR(i) ",":%s/ô/\\\\^o/ge","o accent circonflexe","ô","\\^o","&ocirc;","M-t","C ^ o"]
[null,null,null,32,{"$f":"CHAR( 32)","v":" "},65,{"$f":"CHAR( 65)","v":"A"},98,{"$f":"CHAR( 98)","v":"b"},131,{"$f":"CHAR( 131)","v":"ƒ"},164,{"$f":"CHAR( 164)","v":"¤"},197,{"$f":"CHAR( 197)","v":"Å"},230,{"$f":"CHAR( 230)","v":"æ"},null,null,":%s/ö/\\\\\"o/ge","o tréma","ö","\\\"o","&ouml;","M-v","C \" o"]
[null,null,null,33,{"$f":"CHAR( 33)","v":"!"},66,{"$f":"CHAR( 66)","v":"B"},99,{"$f":"CHAR( 99)","v":"c"},132,{"$f":"CHAR( 132)","v":"„"},165,{"$f":"CHAR( 165)","v":"¥"},198,{"$f":"CHAR( 198)","v":"Æ"},231,{"$f":"CHAR( 231)","v":"ç"},null,null,":%s/Ö/\\\\\"O/ge","O tréma","Ö","\\\"O","&Ouml;","M-V","C \" O"]
[null,null,null,null,null,null,null,null,null,null,null,null,null,null,null,null,null,null,null,":%s/ß/\\\\ss/ge","double s allemand","ß","\\ss","&szlig;","M-_","C s s"]
[null,null,null,null,null,null,null,null,null,null,null,null,null,null,null,null,null,null,null,":%s/ú/\\\\'u/ge","u accent aigu","ú","\\'u","&uacute;","M-z","C ' u"]
[null,null,null,null,null,null,null,null,null,null,null,null,null,null,null,null,null,null,null,":%s/ù/\\\\`u/ge","u accent grave","ù","\\`u","&ugrave;","M-y","C ` u"]
[null,null,null,null,null,null,null,null,null,null,null,null,null,null,null,null,null,null,null,":%s/û/\\\\^u/ge","u accent circonflexe","û","\\^u","&ucirc;","M-{","C ^ u"]
[null,null,null,null,null,null,null,null,null,null,null,null,null,null,null,null,null,null,null,":%s/ü/\\\\\"u/ge","u tréma","ü","\\\"u","&uuml;","M-|","C \" u"]
[null,null,null,null,null,null,null,null,null,null,null,null,null,null,null,null,null,null,null,":%s/Ü/\\\\\"/ge","U tréma","Ü","\\\"","&Uuml;","M-\\","C \" U"]

{"sheet":"viscosite","index":1,"n_rows":45,"n_cols":79,"rows_kept":45,"cut":false,"hidden":false,"merged":[]}
["catégorie_vis","viscosite",{"$f":"CONCATENATE(\"    <!--  question XLQ \", titre_vis, \"-->\")","v":"    <!--  question XLQ viscosite_vis-->"},null,null,"Valeur Mini_vis","Valeur Maxi_vis","Sig. Digit_vis","Val Choix_vis"]
[null,"viscosite_vis",{"$f":"CONCATENATE(\"    <question type=\",CHAR(34),\"category\",CHAR(34),\"><category><text>\", categorie_vis,\"</text></category></question>)\")","v":"    <question type=\"category\"><category><text>viscosite</text></category></question>)"},null,"V1.R_vis",0.5,1.5,-1,{"$f":"RANDBETWEEN(ValMini_vis*10^-SigDig_vis, ValMaxi_vis*10^-SigDig_vis)/10^-SigDig_vis","v":1}]
["Tag_vis","viscosite_vis","    <question type=\"cloze\">",null,"V2.L_vis",15,35,0,23,null,null,null,null,null,null,null,null,null,null,null,null,null,null,null,null,null,null,null,null,null,null,null,null,null,null,null,null,null,null,null,null,null,null,null,null,null,null,null,null,null,null,null,null,null,null,null,null,null,null,null,null,null,null,null,null,null,null,null,null,null,null,null,null,null,null,null,null,null,"<p>&nbsp;R=#1# mm, L=#2# mm. Les r&eacute;sultats de d&eacute;bits volumiques (Q en m<sup>3</sup>.s<sup>-1</sup>) et de pressions (P en Pa) sont pr&eacute;sent&eacute;s dans le tableau. Calculer la viscosit&eacute; apparente (&eta; en Pa.s), la contrainte apparente (&tau; en Pa) et le taux de cisaillement apparent (d&gamma;/dt s-1).</p><table style=\"\"height: 179px;\"\" border=\"\"1\"\" width=\"\"507\"\"><tbody><tr><td >Q</td><td >P</td><td >d&gamma;/dt</td><td >&tau;</td><td >&eta;</td></tr><tr><td >#3#</td><td >#10#</td><td >$1$</td><td >$8$</td><td >$15$</td></tr><tr><td >#4#</td><td >#11#</td><td >$2$</td><td >$9$</td><td >$16$</td></tr><tr><td >#5#</td><td >#12#</td><td >$3$</td><td >$10$</td><td >$17$</td></tr><tr><td >#6#</td><td >#13#</td><td >$4$</td><td >$11$</td><td >$18$</td></tr><tr><td >#7#</td><td >#14#</td><td >$5$</td><td >$12$</td><td >$19$</td></tr><tr><td >#8#</td><td >#15#</td><td >$6$</td><td >$13$</td><td >$20$</td></tr><tr><td >#9#</td><td >#16#</td><td >$7$</td><td >$14$</td><td >$21$</td></tr></tbody></table><p>Le polym&egrave;re &eacute;tudi&eacute; a un comportement pseudoplastique, d&eacute;terminer les param&egrave;tres &eta;<sub>0</sub> $22$, K $25$ et n $26$.</p>"]
["idnumber_vis",{"$f":"TEXT(NOW(),\"aammjj-hhmmss.00\")","v":"210710-210621.92"},{"$f":"CONCATENATE(\"        <name><text>\", titre_vis, \"</text></name>\")","v":"        <name><text>viscosite_vis</text></name>"},null,"V3.Q1_vis",7.0000000000000005E-8,9.9999999999999995E-8,-9,9.5999999999999999E-8]
["points_vis",1,"        <questiontext format=\"html\">",null,"V4.Q2_vis",1.1000000000000001E-7,2.9999999999999999E-7,-9,1.4700000000000001E-7]
["tolérance_vis",0.05,{"$f":"CONCATENATE(\"            <text><![CDATA[<p>\", question_vis, \"</p>]]></text>\")","v":"            <text><![CDATA[<p> <p>&nbsp;R=1 mm, L=23 mm. Les r&eacute;sultats de d&eacute;bits volumiques (Q en m<sup>3</sup>.s<sup>-1</sup>) et de pressions (P en Pa) sont pr&eacute;sent&eacute;s dans le tableau. Calculer la viscosit&eacute;apparente (&eta; en Pa.s), la contrainte apparente (&tau; en Pa) et le taux de cisaillement apparent (d&gamma;/dt s-1).</p><table style=\"height: 179px;\" border=\"1\" width=\"507\"><tbody><tr><td >Q</td><td>P</td><td >d&gamma;/dt</td><td >&tau;</td><td >&eta;</td></tr><tr><td >0.000000096</td><td >77338000</td><td >{1:NUMERICAL:=1.22E+02:6.11E+00}</td><td >{1:NUMERICAL:=1.68E+06:8.40E+04}</td><td >{1:NUMERICAL:=1.37E+04:6.87E+02}</td></tr><tr><td >0.000000147</td><td >166995000</td><td >{1:NUMERICAL:=1.87E+02:9.36E+00}</td><td >{1:NUMERICAL:=3.63E+06:1.81E+05}</td><td >{1:NUMERICAL:=1.94E+04:9.69E+02}</td></tr><tr><td>0.000000446</td><td >485990000</td><td >{1:NUMERICAL:=5.68E+02:2.84E+01}</td><td >{1:NUMERICAL:=1.06E+07:5.28E+05}</td><td >{1:NUMERICAL:=1.86E+04:9.30E+02}</td></tr><tr><td >0.000000836</td><td >579141000</td><td >{1:NUMERICAL:=1.06E+03:5.32E+01}</td><td >{1:NUMERICAL:=1.26E+07:6.29E+05}</td><td >{1:NUMERICAL:=1.18E+04:5.91E+02}</td></tr><tr><td >0.0000012</td><td >1184906000</td><td >{1:NUMERICAL:=1.53E+03:7.64E+01}</td><td >{1:NUMERICAL:=2.58E+07:1.29E+06}</td><td>{1:NUMERICAL:=1.69E+04:8.43E+02}</td></tr><tr><td >0.00000516</td><td >1894903000</td><td >{1:NUMERICAL:=6.57E+03:3.28E+02}</td><td >{1:NUMERICAL:=4.12E+07:2.06E+06}</td><td >{1:NUMERICAL:=6.27E+03:3.13E+02}</td></tr><tr><td >0.00000926</td><td >1955163000</td><td >{1:NUMERICAL:=1.18E+04:5.90E+02}</td><td >{1:NUMERICAL:=4.25E+07:2.13E+06}</td><td >{1:NUMERICAL:=3.60E+03:1.80E+02}</td></tr></tbody></table><p>Le polym&egrave;re&eacute;tudi&eacute; a un comportement pseudoplastique, d&eacute;terminer les param&egrave;tres &eta;<sub>0</sub> {1:NUMERICAL:=1.72E+04:8.62E+02}, K {1:NUMERICAL:=3.70E+05:1.85E+04} et n {1:NUMERICAL:=5.06E-01:2.53E-02}.</p></p>]]></text>"},null,"V5.Q3_vis",3.1E-7,7.9999999999999996E-7,-9,4.46E-7]
["penalité_vis",0.1,"        </questiontext>",null,"V6.Q4_vis",8.0999999999999997E-7,9.9999999999999995E-7,-9,8.3600000000000002E-7]
["feedback_vis","_",{"$f":"CONCATENATE(\"        <defaultgrade>\",points_vis,\"</defaultgrade><generalfeedback><text>\",feedback_vis,\"</text></generalfeedback><penalty>\",penalty_vis,\"</penalty><hidden>0</hidden>)\")","v":"        <defaultgrade>1</defaultgrade><generalfeedback><text>_</text></generalfeedback><penalty>0.1</penalty><hidden>0</hidden>)"},null,"V7.Q5_vis",1.1000000000000001E-6,3.0000000000000001E-6,-8,1.1999999999999999E-6]
["Cellule vides_vis",{"$f":"COUNTBLANK(B1:B8)","v":0},{"$f":"CONCATENATE(\"        <idnumber>\",idnumber_vis,\"</idnumber><tags><tag><text>\",Tag_vis,\"</text></tag></tags>\")","v":"        <idnumber>210710-210621.92</idnumber><tags><tag><text>viscosite_vis</text></tag></tags>"},null,"V8.Q6_vis",3.1E-6,7.9999999999999996E-6,-8,5.1599999999999997E-6]
["question format HTML_vis",{"$f":"CONCATENATE(\" \",B19,B20,B21,B22,B23,B24,B25,B26,B27,B28,B29,B30,B31)","v":" <p>&nbsp;R=1 mm, L=23 mm. Les r&eacute;sultats de d&eacute;bits volumiques (Q en m<sup>3</sup>.s<sup>-1</sup>) et de pressions (P en Pa) sont pr&eacute;sent&eacute;s dans le tableau. Calculer la viscosit&eacute;apparente (&eta; en Pa.s), la contrainte apparente (&tau; en Pa) et le taux de cisaillement apparent (d&gamma;/dt s-1).</p><table style=\"height: 179px;\" border=\"1\" width=\"507\"><tbody><tr><td >Q</td><td>P</td><td >d&gamma;/dt</td><td >&tau;</td><td >&eta;</td></tr><tr><td >0.000000096</td><td >77338000</td><td >{1:NUMERICAL:=1.22E+02:6.11E+00}</td><td >{1:NUMERICAL:=1.68E+06:8.40E+04}</td><td >{1:NUMERICAL:=1.37E+04:6.87E+02}</td></tr><tr><td >0.000000147</td><td >166995000</td><td >{1:NUMERICAL:=1.87E+02:9.36E+00}</td><td >{1:NUMERICAL:=3.63E+06:1.81E+05}</td><td >{1:NUMERICAL:=1.94E+04:9.69E+02}</td></tr><tr><td>0.000000446</td><td >485990000</td><td >{1:NUMERICAL:=5.68E+02:2.84E+01}</td><td >{1:NUMERICAL:=1.06E+07:5.28E+05}</td><td >{1:NUMERICAL:=1.86E+04:9.30E+02}</td></tr><tr><td >0.000000836</td><td >579141000</td><td >{1:NUMERICAL:=1.06E+03:5.32E+01}</td><td >{1:NUMERICAL:=1.26E+07:6.29E+05}</td><td >{1:NUMERICAL:=1.18E+04:5.91E+02}</td></tr><tr><td >0.0000012</td><td >1184906000</td><td >{1:NUMERICAL:=1.53E+03:7.64E+01}</td><td >{1:NUMERICAL:=2.58E+07:1.29E+06}</td><td>{1:NUMERICAL:=1.69E+04:8.43E+02}</td></tr><tr><td >0.00000516</td><td >1894903000</td><td >{1:NUMERICAL:=6.57E+03:3.28E+02}</td><td >{1:NUMERICAL:=4.12E+07:2.06E+06}</td><td >{1:NUMERICAL:=6.27E+03:3.13E+02}</td></tr><tr><td >0.00000926</td><td >1955163000</td><td >{1:NUMERICAL:=1.18E+04:5.90E+02}</td><td >{1:NUMERICAL:=4.25E+07:2.13E+06}</td><td >{1:NUMERICAL:=3.60E+03:1.80E+02}</td></tr></tbody></table><p>Le polym&egrave;re&eacute;tudi&eacute; a un comportement pseudoplastique, d&eacute;terminer les param&egrave;tres &eta;<sub>0</sub> {1:NUMERICAL:=1.72E+04:8.62E+02}, K {1:NUMERICAL:=3.70E+05:1.85E+04} et n {1:NUMERICAL:=5.06E-01:2.53E-02}.</p>"},"    </question>",null,"V9.Q7_vis",8.1000000000000004E-6,1.0000000000000001E-5,-8,9.2599999999999994E-6]
["Repere Var Rep","_vis",null,null,"V10.P1_vis",60000000,80000000,3,77338000]
["HTML File ","vis.txt",null,null,"V11.P2_vis",150000000,220000000,3,166995000]
["Valide ? ",null,null,null,"V12.P3_vis",450000000,490000000,3,485990000]
["https://html-online.com/editor/",null,null,null,"V13.P4_vis",540000000,590000000,3,579141000]
[null,null,18,null,"V14.P5_vis",1050000000,1200000000,3,1184906000]
["Var : ","#",16,null,"V15.P6_vis",1750000000,1930000000,3,1894903000]
["Res : ","$",26,null,"V16.P7_vis",1950000000,2120000000,3,1955163000]
[]
[null,{"$f":"CONCATENATE(\"<p>&nbsp;R=\",V1.R_vis,\" mm, L=\",V2.L_vis,\" mm. Les r&eacute;sultats de d&eacute;bits volumiques (Q en m<sup>3</sup>.s<sup>-1</sup>) et de pressions (P en Pa) sont pr&eacute;sent&eacute;s dans le tableau. Calculer la viscosit&eacute;\")","v":"<p>&nbsp;R=1 mm, L=23 mm. Les r&eacute;sultats de d&eacute;bits volumiques (Q en m<sup>3</sup>.s<sup>-1</sup>) et de pressions (P en Pa) sont pr&eacute;sent&eacute;s dans le tableau. Calculer la viscosit&eacute;"},null,null,null,"Cible_vis","Toler_vis","PointsQuestion_vis"]
[null,{"$f":"CONCATENATE(\"apparente (&eta; en Pa.s), la contrainte apparente (&tau; en Pa) et le taux de cisaillement apparent (d&gamma;/dt s-1).</p><table style=\"\"height: 179px;\"\" border=\"\"1\"\" width=\"\"507\"\"><tbody><tr><td >Q</td><td\")","v":"apparente (&eta; en Pa.s), la contrainte apparente (&tau; en Pa) et le taux de cisaillement apparent (d&gamma;/dt s-1).</p><table style=\"height: 179px;\" border=\"1\" width=\"507\"><tbody><tr><td >Q</td><td"},null,null,"R1.G1_vis",{"$f":"(4*V3.Q1_vis)/(PI()*(V1.R_vis*0.001)^3)","v":122.23099629457562},{"$f":" tolerance_vis*ValMini_vis","v":6.1115498147287814},1,{"$f":"CONCATENATE(\"{\",PointsQuestion_vis,\":NUMERICAL:=\",TEXT(Cible_vis,\"0.00E+00\"),\":\",TEXT(ABS(Tolere_vis),\"0.00E+00\"),\"}\")","v":"{1:NUMERICAL:=1.22E+02:6.11E+00}"}]
[null,{"$f":"CONCATENATE(\">P</td><td >d&gamma;/dt</td><td >&tau;</td><td >&eta;</td></tr><tr><td >\",V3.Q1_vis,\"</td><td >\",V10.P1_vis,\"</td><td >\",R1.G1_vis,\"</td><td >\",R8.T1_vis,\"</td><td >\",R15.E1_vis,\"</td></tr><tr><td >\",V4.Q2_vis,\"</td><td >\",V11.P2_vis,\"</td><td >\",R2.G2_vis,\"</td><td >\",R9.T2_vis,\"</td><td >\",R16.E2_vis,\"</td></tr><tr><td\")","v":">P</td><td >d&gamma;/dt</td><td >&tau;</td><td >&eta;</td></tr><tr><td >0.000000096</td><td >77338000</td><td >{1:NUMERICAL:=1.22E+02:6.11E+00}</td><td >{1:NUMERICAL:=1.68E+06:8.40E+04}</td><td >{1:NUMERICAL:=1.37E+04:6.87E+02}</td></tr><tr><td >0.000000147</td><td >166995000</td><td >{1:NUMERICAL:=1.87E+02:9.36E+00}</td><td >{1:NUMERICAL:=3.63E+06:1.81E+05}</td><td >{1:NUMERICAL:=1.94E+04:9.69E+02}</td></tr><tr><td"},null,null,"R2.G2_vis",{"$f":"(4*V4.Q2_vis)/(PI()*(V1.R_vis*0.001)^3)","v":187.16621307606891},9.3583106538034464,1,"{1:NUMERICAL:=1.87E+02:9.36E+00}"]
[null,{"$f":"CONCATENATE(\">\",V5.Q3_vis,\"</td><td >\",V12.P3_vis,\"</td><td >\",R3.G3_vis,\"</td><td >\",R10.T3_vis,\"</td><td >\",R17.E3_vis,\"</td></tr><tr><td >\",V6.Q4_vis,\"</td><td >\",V13.P4_vis,\"</td><td >\",R4.G4_vis,\"</td><td >\",R11.T4_vis,\"</td><td >\",R18.E4_vis,\"</td></tr><tr><td >\",V7.Q5_vis,\"</td><td >\",V14.P5_vis,\"</td><td >\",R5.G5_vis,\"</td><td >\",R12.T5_vis,\"</td><td\")","v":">0.000000446</td><td >485990000</td><td >{1:NUMERICAL:=5.68E+02:2.84E+01}</td><td >{1:NUMERICAL:=1.06E+07:5.28E+05}</td><td >{1:NUMERICAL:=1.86E+04:9.30E+02}</td></tr><tr><td >0.000000836</td><td >579141000</td><td >{1:NUMERICAL:=1.06E+03:5.32E+01}</td><td >{1:NUMERICAL:=1.26E+07:6.29E+05}</td><td >{1:NUMERICAL:=1.18E+04:5.91E+02}</td></tr><tr><td >0.0000012</td><td >1184906000</td><td >{1:NUMERICAL:=1.53E+03:7.64E+01}</td><td >{1:NUMERICAL:=2.58E+07:1.29E+06}</td><td"},null,null,"R3.G3_vis",{"$f":"(4*V5.Q3_vis)/(PI()*(V1.R_vis*0.001)^3)","v":567.86483695188258},28.39324184759413,1,"{1:NUMERICAL:=5.68E+02:2.84E+01}"]
[null,{"$f":"CONCATENATE(\">\",R19.E5_vis,\"</td></tr><tr><td >\",V8.Q6_vis,\"</td><td >\",V15.P6_vis,\"</td><td >\",R6.G6_vis,\"</td><td >\",R13.T6_vis,\"</td><td >\",R20.E6_vis,\"</td></tr><tr><td >\",V9.Q7_vis,\"</td><td >\",V16.P7_vis,\"</td><td >\",R7.G7_vis,\"</td><td >\",R14.T7_vis,\"</td><td >\",R21.E7_vis,\"</td></tr></tbody></table><p>Le polym&egrave;re\")","v":">{1:NUMERICAL:=1.69E+04:8.43E+02}</td></tr><tr><td >0.00000516</td><td >1894903000</td><td >{1:NUMERICAL:=6.57E+03:3.28E+02}</td><td >{1:NUMERICAL:=4.12E+07:2.06E+06}</td><td >{1:NUMERICAL:=6.27E+03:3.13E+02}</td></tr><tr><td >0.00000926</td><td >1955163000</td><td >{1:NUMERICAL:=1.18E+04:5.90E+02}</td><td >{1:NUMERICAL:=4.25E+07:2.13E+06}</td><td >{1:NUMERICAL:=3.60E+03:1.80E+02}</td></tr></tbody></table><p>Le polym&egrave;re"},null,null,"R4.G4_vis",{"$f":"(4*V6.Q4_vis)/(PI()*(V1.R_vis*0.001)^3)","v":1064.4282593985961},53.221412969929808,1,"{1:NUMERICAL:=1.06E+03:5.32E+01}"]
[null,{"$f":"CONCATENATE(\"&eacute;tudi&eacute; a un comportement pseudoplastique, d&eacute;terminer les param&egrave;tres &eta;<sub>0</sub> \",R22.E0_vis,\", K \",R25.K_vis,\" et n \",R26.N_vis,\".</p>\")","v":"&eacute;tudi&eacute; a un comportement pseudoplastique, d&eacute;terminer les param&egrave;tres &eta;<sub>0</sub> {1:NUMERICAL:=1.72E+04:8.62E+02}, K {1:NUMERICAL:=3.70E+05:1.85E+04} et n {1:NUMERICAL:=5.06E-01:2.53E-02}.</p>"},null,null,"R5.G5_vis",{"$f":"(4*V7.Q5_vis)/(PI()*(V1.R_vis*0.001)^3)","v":1527.8874536821952},76.394372684109769,1,"{1:NUMERICAL:=1.53E+03:7.64E+01}"]
[null,{"$f":"CONCATENATE(\"\")","v":""},null,null,"R6.G6_vis",{"$f":"(4*V8.Q6_vis)/(PI()*(V1.R_vis*0.001)^3)","v":6569.9160508334389},328.49580254167199,1,"{1:NUMERICAL:=6.57E+03:3.28E+02}"]
[null,"",null,null,"R7.G7_vis",{"$f":"(4*V9.Q7_vis)/(PI()*(V1.R_vis*0.001)^3)","v":11790.198184247605},589.50990921238031,1,"{1:NUMERICAL:=1.18E+04:5.90E+02}"]
[null,"",null,null,"R8.T1_vis",{"$f":"(V1.R_vis*(V10.P1_vis-100000))/(2*V2.L_vis)","v":1679086.956521739},83954.34782608696,1,"{1:NUMERICAL:=1.68E+06:8.40E+04}"]
[null,"",null,null,"R9.T2_vis",{"$f":"(V1.R_vis*(V11.P2_vis-100000))/(2*V2.L_vis)","v":3628152.1739130435},181407.60869565219,1,"{1:NUMERICAL:=3.63E+06:1.81E+05}"]
[null,"",null,null,"R10.T3_vis",{"$f":"(V1.R_vis*(V12.P3_vis-100000))/(2*V2.L_vis)","v":10562826.086956521},528141.30434782605,1,"{1:NUMERICAL:=1.06E+07:5.28E+05}"]
[null,"",null,null,"R11.T4_vis",{"$f":"(V1.R_vis*(V13.P4_vis-100000))/(2*V2.L_vis)","v":12587847.826086957},629392.3913043479,1,"{1:NUMERICAL:=1.26E+07:6.29E+05}"]
[null,"",null,null,"R12.T5_vis",{"$f":"(V1.R_vis*(V14.P5_vis-100000))/(2*V2.L_vis)","v":25756652.173913043},1287832.6086956523,1,"{1:NUMERICAL:=2.58E+07:1.29E+06}"]
[null,null,null,null,"R13.T6_vis",{"$f":"(V1.R_vis*(V15.P6_vis-100000))/(2*V2.L_vis)","v":41191369.565217391},2059568.4782608696,1,"{1:NUMERICAL:=4.12E+07:2.06E+06}"]
[null,null,null,null,"R14.T7_vis",{"$f":"(V1.R_vis*(V16.P7_vis-100000))/(2*V2.L_vis)","v":42501369.565217391},2125068.4782608696,1,"{1:NUMERICAL:=4.25E+07:2.13E+06}"]
[null,null,null,null,"R15.E1_vis",{"$f":"F27/F20","v":13736.998039966509},686.84990199832555,1,"{1:NUMERICAL:=1.37E+04:6.87E+02}"]
[null,null,null,null,"R16.E2_vis",19384.653428011999,969.2326714006,1,"{1:NUMERICAL:=1.94E+04:9.69E+02}"]
[null,null,null,null,"R17.E3_vis",18600.951141215937,930.04755706079686,1,"{1:NUMERICAL:=1.86E+04:9.30E+02}"]
[null,null,null,null,"R18.E4_vis",11825.924119300547,591.29620596502741,1,"{1:NUMERICAL:=1.18E+04:5.91E+02}"]
[null,null,null,null,"R19.E5_vis",16857.689427215166,842.88447136075831,1,"{1:NUMERICAL:=1.69E+04:8.43E+02}"]
[null,null,null,null,"R20.E6_vis",6269.6949620828082,313.48474810414041,1,"{1:NUMERICAL:=6.27E+03:3.13E+02}"]
[null,null,null,null,"R21.E7_vis",3604.8053561984825,180.24026780992415,1,"{1:NUMERICAL:=3.60E+03:1.80E+02}"]
[null,null,null,null,"R22.E0_vis",{"$f":"AVERAGE(F34:F36)","v":17240.867536398149},862.04337681990751,1,"{1:NUMERICAL:=1.72E+04:8.62E+02}"]
[null,null,null,null,"R23.N1_vis",{"$f":"(LOG10(F40)-LOG10(F37))/(LOG10(F26)-LOG10(F23))","v":-0.49401660466618869},-2.4700830233309434E-2,1,"{1:NUMERICAL:=-4.94E-01:2.47E-02}"]
[null,null,null,null,"R24.LK_vis",{"$f":"LOG10(F40)-F42*LOG10(F26)","v":5.5682808519513243},0.27841404259756625,1,"{1:NUMERICAL:=5.57E+00:2.78E-01}"]
[null,null,null,null,"R25.K_vis",{"$f":"10^F43","v":370067.41965585185},18503.370982792592,1,"{1:NUMERICAL:=3.70E+05:1.85E+04}"]
[null,null,null,null,"R26.N_vis",{"$f":"F42+1","v":0.50598339533381131},2.5299169766690568E-2,1,"{1:NUMERICAL:=5.06E-01:2.53E-02}"]

{"sheet":"ModelLin","index":2,"n_rows":65,"n_cols":16,"rows_kept":65,"cut":false,"hidden":false,"merged":[[6,12,6,13]]}
["catégorie_Model","Model_Linear",{"$f":"CONCATENATE(\"    <!--  question XLQ \", titre_Model, \"-->\")","v":"    <!--  question XLQ Lineaire-->"},null,null,"Valeur Mini_Model","Valeur Maxi_Model","Sig. Digit_Model","Val Choix_Model",null,"x",null,"pente","ordo"]
["titre_Model","Lineaire",{"$f":"CONCATENATE(\"    <question type=\",CHAR(34),\"category\",CHAR(34),\"><category><text>\", categorie_Model,\"</text></category></question>)\")","v":"    <question type=\"category\"><category><text>Model_Linear</text></category></question>)"},null,"V1._Model",{"$f":"(K2*pente+ordo)*(1-$M$5)","v":21.36},{"$f":"(K2*pente+ordo)*(1+$M$5)","v":32.04},-2,{"$f":"RANDBETWEEN(ValMini_Model*10^-SigDig_Model, ValMaxi_Model*10^-SigDig_Model)/10^-SigDig_Model","v":29.54},null,1,"min",1,7]
["Tag_Model","DroiteReg","    <question type=\"cloze\">",null,"V2._Model",25.960000000000004,38.940000000000005,-2,28.93,null,2,"max",50,50]
["idnumber_Model",{"$f":"TEXT(NOW(),\"aammjj-hhmmss.00\")","v":"210710-210621.92"},{"$f":"CONCATENATE(\"        <name><text>\", titre_Model, \"</text></name>\")","v":"        <name><text>Lineaire</text></name>"},null,"V3._Model",30.560000000000002,45.84,-2,40.450000000000003,null,3,"Choix",{"$f":"RANDBETWEEN(100*M2,100*M3)/100","v":5.75},{"$f":"RANDBETWEEN(100*N2,100*N3)/100","v":20.95}]
["points_Model",1,"        <questiontext format=\"html\">",null,"V4._Model",35.160000000000004,52.74,-2,50.21,null,4,"bruit",0.2]
["tolérance_Model",0.1,{"$f":"CONCATENATE(\"            <text><![CDATA[<p>\", question_Model, \"</p>]]></text>\")","v":"            <text><![CDATA[<p> <p>A la suite d'un grand nombre d'exp&eacute;riences, on obtient les r&eacute;sultats suivants :&nbsp;</p><table style=\"\"border-collapse: collapse; width: 480pt;\"\" border=\"\"0\"\" width=\"\"640\"\"cellspacing=\"\"0\"\" cellpadding=\"\"0\"\"><tbody><tr style=\"\"height: 15.0pt;\"\"><td class=\"\"xl64\"\" style=\"\"height: 15.0pt; width: 60pt;\"\" width=\"\"80\"\" height=\"\"20\"\">x=</td><td class=\"\"xl65\"\"style=\"\"border-left: none; width: 60pt;\"\" width=\"\"80\"\">1</td><td class=\"\"xl65\"\" style=\"\"border-left: none; width: 60pt;\"\" width=\"\"80\"\">2</td><td class=\"\"xl65\"\" style=\"\"border-left:none; width: 60pt;\"\" width=\"\"80\"\">3</td><td class=\"\"xl65\"\" style=\"\"border-left: none; width: 60pt;\"\" width=\"\"80\"\">4</td><td class=\"\"xl65\"\" style=\"\"border-left: none; width: 60pt;\"\"width=\"\"80\"\">5</td><td class=\"\"xl65\"\" style=\"\"border-left: none; width: 60pt;\"\" width=\"\"80\"\">6</td><td class=\"\"xl65\"\" style=\"\"border-left: none; width: 60pt;\"\" width=\"\"80\"\">7</td></tr><trstyle=\"\"height: 15.75pt;\"\"><td class=\"\"xl66\"\" style=\"\"height: 15.75pt; border-top: none;\"\" height=\"\"21\"\">y=</td><td class=\"\"xl67\"\" style=\"\"border-top: none; border-left: none; width:60pt;\"\" width=\"\"80\"\">29.54</td><td class=\"\"xl67\"\" style=\"\"border-top: none; border-left: none; width: 60pt;\"\" width=\"\"80\"\">28.93</td><td class=\"\"xl67\"\" style=\"\"border-top: none; border-left:none; width: 60pt;\"\" width=\"\"80\"\">40.45</td><td class=\"\"xl67\"\" style=\"\"border-top: none; border-left: none; width: 60pt;\"\" width=\"\"80\"\">50.21</td><td class=\"\"xl67\"\" style=\"\"border-top:none; border-left: none; width: 60pt;\"\" width=\"\"80\"\">47.72</td><td class=\"\"xl67\"\" style=\"\"border-top: none; border-left: none; width: 60pt;\"\" width=\"\"80\"\">65.5</td><td class=\"\"xl67\"\"style=\"\"border-top: none; border-left: none; width: 60pt;\"\" width=\"\"80\"\">55.6</td></tr></tbody></table><p>&nbsp;</p><table style=\"\"border-collapse: collapse; width: 600pt;\"\" border=\"\"0\"\"width=\"\"800\"\" cellspacing=\"\"0\"\" cellpadding=\"\"0\"\"><tbody><tr style=\"\"height: 15.0pt;\"\"><td class=\"\"xl65\"\" style=\"\"height: 15.0pt; width: 60pt;\"\" width=\"\"80\"\" height=\"\"20\"\">x=</td><tdclass=\"\"xl66\"\" style=\"\"border-left: none; width: 60pt;\"\" width=\"\"80\"\">7</td><td class=\"\"xl66\"\" style=\"\"border-left: none; width: 60pt;\"\" width=\"\"80\"\">8</td><td class=\"\"xl66\"\"style=\"\"border-left: none; width: 60pt;\"\" width=\"\"80\"\">9</td><td class=\"\"xl66\"\" style=\"\"border-left: none; width: 60pt;\"\" width=\"\"80\"\">10</td><td class=\"\"xl66\"\" style=\"\"border-left:none; width: 60pt;\"\" width=\"\"80\"\">11</td><td class=\"\"xl66\"\" style=\"\"border-left: none; width: 60pt;\"\" width=\"\"80\"\">12</td><td class=\"\"xl66\"\" style=\"\"border-left: none; width: 60pt;\"\"width=\"\"80\"\">13</td><td class=\"\"xl66\"\" style=\"\"border-left: none; width: 60pt;\"\" width=\"\"80\"\">14</td><td class=\"\"xl67\"\" style=\"\"border-left: none; width: 60pt;\"\" width=\"\"80\"\">15</td></tr><trstyle=\"\"height: 15.75pt;\"\"><td class=\"\"xl68\"\" style=\"\"height: 15.75pt; border-top: none;\"\" height=\"\"21\"\">y=</td><td class=\"\"xl69\"\" style=\"\"border-top: none; border-left: none; width:60pt;\"\" width=\"\"80\"\">55.6</td><td class=\"\"xl69\"\" style=\"\"border-top: none; border-left: none; width: 60pt;\"\" width=\"\"80\"\">79.06</td><td class=\"\"xl69\"\" style=\"\"border-top: none; border-left:none; width: 60pt;\"\" width=\"\"80\"\">67.15</td><td class=\"\"xl69\"\" style=\"\"border-top: none; border-left: none; width: 60pt;\"\" width=\"\"80\"\">74.1</td><td class=\"\"xl69\"\" style=\"\"border-top:none; border-left: none; width: 60pt;\"\" width=\"\"80\"\">87.11</td><td class=\"\"xl69\"\" style=\"\"border-top: none; border-left: none; width: 60pt;\"\" width=\"\"80\"\">103.22</td><td class=\"\"xl69\"\"style=\"\"border-top: none; border-left: none; width: 60pt;\"\" width=\"\"80\"\">81.25</td><td class=\"\"xl69\"\" style=\"\"border-top: none; border-left: none; width: 60pt;\"\" width=\"\"80\"\">86.7</td><tdclass=\"\"xl70\"\" style=\"\"border-top: none; border-left: none; width: 60pt;\"\" width=\"\"80\"\">104.99</td></tr></tbody></table><p>Les donn&eacute;es suivent une loi lin&eacute;aire, d&eacute;terminer:</p><p>&nbsp;</p><ul><li>la pente P: {1:NUMERICAL:=5.13E+00:5.13E-01}</li><li>L'incertitude sur la pente &Delta;P&nbsp;: {1:NUMERICAL:=4.99E-01:4.99E-02}</li><li>L'ordonn&eacute;e &agrave; l'origine Y<sub>0</sub> : {1:NUMERICAL:=2.57E+01:2.57E+00}</li><li>Son incertitude&nbsp;&Delta;Y<sub>0</sub></p>]]></text>"},null,"V5._Model",39.760000000000005,59.64,-2,47.72,null,5]
["penalité_Model",0.1,"        </questiontext>",null,"V6._Model",44.360000000000007,66.540000000000006,-2,65.5,null,6,null,"Vérification"]
["feedback_Model","cest_une_droite",{"$f":"CONCATENATE(\"        <defaultgrade>\",points_Model,\"</defaultgrade><generalfeedback><text>\",feedback_Model,\"</text></generalfeedback><penalty>\",penalty_Model,\"</penalty><hidden>0</hidden>)\")","v":"        <defaultgrade>1</defaultgrade><generalfeedback><text>cest_une_droite</text></generalfeedback><penalty>0.1</penalty><hidden>0</hidden>)"},null,"V7._Model",48.960000000000008,73.44,-2,55.6,null,7,null,"Pente","Ord"]
["Cellule vides_Model",{"$f":"COUNTBLANK(B1:B8)","v":0},{"$f":"CONCATENATE(\"        <idnumber>\",idnumber_Model,\"</idnumber><tags><tag><text>\",Tag_Model,\"</text></tag></tags>\")","v":"        <idnumber>210710-210621.92</idnumber><tags><tag><text>DroiteReg</text></tag></tags>"},null,"V8._Model",53.56,80.34,-2,79.06,null,8,null,{"$f":"ABS(pente-F19)","v":0.61525000000000052},{"$f":"ABS(F21-ordo)","v":4.7406666666666801}]
["question format HTML_Model",{"$f":"CONCATENATE(\" \",B19,B20,B21,B22,B23,B24,B25,B26,B27,B28,B29,B30,B31,B32,B33,B34,B35,B36,B37,B38,B39,B40,B41,B42,B43,B44,B45,B46,B47,B48,B49,B50,B51,B52,B53,B54,B55,B56,B57,B58,B59,B60,B61,B62,B63,B64,B65)","v":" <p>A la suite d'un grand nombre d'exp&eacute;riences, on obtient les r&eacute;sultats suivants :&nbsp;</p><table style=\"\"border-collapse: collapse; width: 480pt;\"\" border=\"\"0\"\" width=\"\"640\"\"cellspacing=\"\"0\"\" cellpadding=\"\"0\"\"><tbody><tr style=\"\"height: 15.0pt;\"\"><td class=\"\"xl64\"\" style=\"\"height: 15.0pt; width: 60pt;\"\" width=\"\"80\"\" height=\"\"20\"\">x=</td><td class=\"\"xl65\"\"style=\"\"border-left: none; width: 60pt;\"\" width=\"\"80\"\">1</td><td class=\"\"xl65\"\" style=\"\"border-left: none; width: 60pt;\"\" width=\"\"80\"\">2</td><td class=\"\"xl65\"\" style=\"\"border-left:none; width: 60pt;\"\" width=\"\"80\"\">3</td><td class=\"\"xl65\"\" style=\"\"border-left: none; width: 60pt;\"\" width=\"\"80\"\">4</td><td class=\"\"xl65\"\" style=\"\"border-left: none; width: 60pt;\"\"width=\"\"80\"\">5</td><td class=\"\"xl65\"\" style=\"\"border-left: none; width: 60pt;\"\" width=\"\"80\"\">6</td><td class=\"\"xl65\"\" style=\"\"border-left: none; width: 60pt;\"\" width=\"\"80\"\">7</td></tr><trstyle=\"\"height: 15.75pt;\"\"><td class=\"\"xl66\"\" style=\"\"height: 15.75pt; border-top: none;\"\" height=\"\"21\"\">y=</td><td class=\"\"xl67\"\" style=\"\"border-top: none; border-left: none; width:60pt;\"\" width=\"\"80\"\">29.54</td><td class=\"\"xl67\"\" style=\"\"border-top: none; border-left: none; width: 60pt;\"\" width=\"\"80\"\">28.93</td><td class=\"\"xl67\"\" style=\"\"border-top: none; border-left:none; width: 60pt;\"\" width=\"\"80\"\">40.45</td><td class=\"\"xl67\"\" style=\"\"border-top: none; border-left: none; width: 60pt;\"\" width=\"\"80\"\">50.21</td><td class=\"\"xl67\"\" style=\"\"border-top:none; border-left: none; width: 60pt;\"\" width=\"\"80\"\">47.72</td><td class=\"\"xl67\"\" style=\"\"border-top: none; border-left: none; width: 60pt;\"\" width=\"\"80\"\">65.5</td><td class=\"\"xl67\"\"style=\"\"border-top: none; border-left: none; width: 60pt;\"\" width=\"\"80\"\">55.6</td></tr></tbody></table><p>&nbsp;</p><table style=\"\"border-collapse: collapse; width: 600pt;\"\" border=\"\"0\"\"width=\"\"800\"\" cellspacing=\"\"0\"\" cellpadding=\"\"0\"\"><tbody><tr style=\"\"height: 15.0pt;\"\"><td class=\"\"xl65\"\" style=\"\"height: 15.0pt; width: 60pt;\"\" width=\"\"80\"\" height=\"\"20\"\">x=</td><tdclass=\"\"xl66\"\" style=\"\"border-left: none; width: 60pt;\"\" width=\"\"80\"\">7</td><td class=\"\"xl66\"\" style=\"\"border-left: none; width: 60pt;\"\" width=\"\"80\"\">8</td><td class=\"\"xl66\"\"style=\"\"border-left: none; width: 60pt;\"\" width=\"\"80\"\">9</td><td class=\"\"xl66\"\" style=\"\"border-left: none; width: 60pt;\"\" width=\"\"80\"\">10</td><td class=\"\"xl66\"\" style=\"\"border-left:none; width: 60pt;\"\" width=\"\"80\"\">11</td><td class=\"\"xl66\"\" style=\"\"border-left: none; width: 60pt;\"\" width=\"\"80\"\">12</td><td class=\"\"xl66\"\" style=\"\"border-left: none; width: 60pt;\"\"width=\"\"80\"\">13</td><td class=\"\"xl66\"\" style=\"\"border-left: none; width: 60pt;\"\" width=\"\"80\"\">14</td><td class=\"\"xl67\"\" style=\"\"border-left: none; width: 60pt;\"\" width=\"\"80\"\">15</td></tr><trstyle=\"\"height: 15.75pt;\"\"><td class=\"\"xl68\"\" style=\"\"height: 15.75pt; border-top: none;\"\" height=\"\"21\"\">y=</td><td class=\"\"xl69\"\" style=\"\"border-top: none; border-left: none; width:60pt;\"\" width=\"\"80\"\">55.6</td><td class=\"\"xl69\"\" style=\"\"border-top: none; border-left: none; width: 60pt;\"\" width=\"\"80\"\">79.06</td><td class=\"\"xl69\"\" style=\"\"border-top: none; border-left:none; width: 60pt;\"\" width=\"\"80\"\">67.15</td><td class=\"\"xl69\"\" style=\"\"border-top: none; border-left: none; width: 60pt;\"\" width=\"\"80\"\">74.1</td><td class=\"\"xl69\"\" style=\"\"border-top:none; border-left: none; width: 60pt;\"\" width=\"\"80\"\">87.11</td><td class=\"\"xl69\"\" style=\"\"border-top: none; border-left: none; width: 60pt;\"\" width=\"\"80\"\">103.22</td><td class=\"\"xl69\"\"style=\"\"border-top: none; border-left: none; width: 60pt;\"\" width=\"\"80\"\">81.25</td><td class=\"\"xl69\"\" style=\"\"border-top: none; border-left: none; width: 60pt;\"\" width=\"\"80\"\">86.7</td><tdclass=\"\"xl70\"\" style=\"\"border-top: none; border-left: none; width: 60pt;\"\" width=\"\"80\"\">104.99</td></tr></tbody></table><p>Les donn&eacute;es suivent une loi lin&eacute;aire, d&eacute;terminer:</p><p>&nbsp;</p><ul><li>la pente P: {1:NUMERICAL:=5.13E+00:5.13E-01}</li><li>L'incertitude sur la pente &Delta;P&nbsp;: {1:NUMERICAL:=4.99E-01:4.99E-02}</li><li>L'ordonn&eacute;e &agrave; l'origine Y<sub>0</sub> : {1:NUMERICAL:=2.57E+01:2.57E+00}</li><li>Son incertitude&nbsp;&Delta;Y<sub>0</sub>"},"    </question>",null,"V9._Model",58.160000000000004,87.24,-2,67.150000000000006,null,9,null,{"$f":"M9/pente","v":0.1070000000000001},{"$f":"N9/ordo","v":0.22628480509148832}]
["Repere Var Rep","_Model",null,null,"V10._Model",62.760000000000005,94.14,-2,74.099999999999994,null,10,null,{"$f":"IF(ABS(F19-pente)>F20,\"Mauvaise Stat\",\"Ok\")","v":"Mauvaise Stat"},{"$f":"IF(ABS(F21-ordo)>F22,\"Mauvaise Stat\",\"Ok\")","v":"Mauvaise Stat"}]
["HTML File ","ModeleLineaire.HTML.txt",null,null,"V11._Model",67.36,101.04,-2,87.11,null,11]
["https://html-online.com/editor/",null,null,null,"V12._Model",71.960000000000008,107.94,-2,103.22,null,12]
[null,null,null,null,"V13._Model",76.56,114.84,-2,81.25,null,13]
[null,null,17,null,"V14._Model",81.160000000000011,121.74,-2,86.7,null,14]
["Var : ","#",15,null,"V15._Model",85.76,128.63999999999999,-2,104.99,null,15]
["Res : ","$",4,null,null,null,null,null,null,null,null,null,{"$f":"LINEST(I2:I16,K2:K16,1,1)","v":5.1347499999999995},25.690666666666679]
[null,null,null,null,null,"Cible_Model","Toler_Model","PointsQuestion_Model",null,null,null,null,0.49909089215846353,4.5377948470452667]
[null,{"$f":"CONCATENATE(\"<p>A la suite d'un grand nombre d'exp&eacute;riences, on obtient les r&eacute;sultats suivants :&nbsp;</p><table style=\"\"\"\"border-collapse: collapse; width: 480pt;\"\"\"\" border=\"\"\"\"0\"\"\"\" width=\"\"\"\"640\"\"\"\"\")","v":"<p>A la suite d'un grand nombre d'exp&eacute;riences, on obtient les r&eacute;sultats suivants :&nbsp;</p><table style=\"\"border-collapse: collapse; width: 480pt;\"\" border=\"\"0\"\" width=\"\"640\"\""},null,"","R1.slope_Model",{"$f":"M17","v":5.1347499999999995},{"$f":" tolerance_Model*ValMini_Model","v":0.51347500000000001},1,{"$f":"CONCATENATE(\"{\",PointsQuestion_Model,\":NUMERICAL:=\",TEXT(Cible_Model,\"0.00E+00\"),\":\",TEXT(Tolere_Model,\"0.00E+00\"),\"}\")","v":"{1:NUMERICAL:=5.13E+00:5.13E-01}"},null,null,null,0.89061583703878233,8.3513879815243115]
[null,{"$f":"CONCATENATE(\"cellspacing=\"\"\"\"0\"\"\"\" cellpadding=\"\"\"\"0\"\"\"\"><tbody><tr style=\"\"\"\"height: 15.0pt;\"\"\"\"><td class=\"\"\"\"xl64\"\"\"\" style=\"\"\"\"height: 15.0pt; width: 60pt;\"\"\"\" width=\"\"\"\"80\"\"\"\" height=\"\"\"\"20\"\"\"\">x=</td><td class=\"\"\"\"xl65\"\"\"\"\")","v":"cellspacing=\"\"0\"\" cellpadding=\"\"0\"\"><tbody><tr style=\"\"height: 15.0pt;\"\"><td class=\"\"xl64\"\" style=\"\"height: 15.0pt; width: 60pt;\"\" width=\"\"80\"\" height=\"\"20\"\">x=</td><td class=\"\"xl65\"\""},null,"","R2.Dslope_Model",{"$f":"M18","v":0.49909089215846353},{"$f":" tolerance_Model*ValMini_Model","v":4.9909089215846358E-2},1,{"$f":"CONCATENATE(\"{\",PointsQuestion_Model,\":NUMERICAL:=\",TEXT(Cible_Model,\"0.00E+00\"),\":\",TEXT(Tolere_Model,\"0.00E+00\"),\"}\")","v":"{1:NUMERICAL:=4.99E-01:4.99E-02}"},null,null,null,105.84718635739956,13]
[null,{"$f":"CONCATENATE(\"style=\"\"\"\"border-left: none; width: 60pt;\"\"\"\" width=\"\"\"\"80\"\"\"\">1</td><td class=\"\"\"\"xl65\"\"\"\" style=\"\"\"\"border-left: none; width: 60pt;\"\"\"\" width=\"\"\"\"80\"\"\"\">2</td><td class=\"\"\"\"xl65\"\"\"\" style=\"\"\"\"border-left:\")","v":"style=\"\"border-left: none; width: 60pt;\"\" width=\"\"80\"\">1</td><td class=\"\"xl65\"\" style=\"\"border-left: none; width: 60pt;\"\" width=\"\"80\"\">2</td><td class=\"\"xl65\"\" style=\"\"border-left:"},null,"","R3.Ordo_Model",{"$f":"N17","v":25.690666666666679},{"$f":" tolerance_Model*ValMini_Model","v":2.5690666666666679},1,{"$f":"CONCATENATE(\"{\",PointsQuestion_Model,\":NUMERICAL:=\",TEXT(Cible_Model,\"0.00E+00\"),\":\",TEXT(Tolere_Model,\"0.00E+00\"),\"}\")","v":"{1:NUMERICAL:=2.57E+01:2.57E+00}"},null,null,null,7382.3841174999998,906.69385583333326]
[null,{"$f":"CONCATENATE(\"none; width: 60pt;\"\"\"\" width=\"\"\"\"80\"\"\"\">3</td><td class=\"\"\"\"xl65\"\"\"\" style=\"\"\"\"border-left: none; width: 60pt;\"\"\"\" width=\"\"\"\"80\"\"\"\">4</td><td class=\"\"\"\"xl65\"\"\"\" style=\"\"\"\"border-left: none; width: 60pt;\"\"\"\"\")","v":"none; width: 60pt;\"\" width=\"\"80\"\">3</td><td class=\"\"xl65\"\" style=\"\"border-left: none; width: 60pt;\"\" width=\"\"80\"\">4</td><td class=\"\"xl65\"\" style=\"\"border-left: none; width: 60pt;\"\""},null,"","R4.DOrdon_Model",{"$f":"N18","v":4.5377948470452667},{"$f":" tolerance_Model*ValMini_Model","v":0.45377948470452667},1,{"$f":"CONCATENATE(\"{\",PointsQuestion_Model,\":NUMERICAL:=\",TEXT(Cible_Model,\"0.00E+00\"),\":\",TEXT(Tolere_Model,\"0.00E+00\"),\"}\")","v":"{1:NUMERICAL:=4.54E+00:4.54E-01}"}]
[null,{"$f":"CONCATENATE(\"width=\"\"\"\"80\"\"\"\">5</td><td class=\"\"\"\"xl65\"\"\"\" style=\"\"\"\"border-left: none; width: 60pt;\"\"\"\" width=\"\"\"\"80\"\"\"\">6</td><td class=\"\"\"\"xl65\"\"\"\" style=\"\"\"\"border-left: none; width: 60pt;\"\"\"\" width=\"\"\"\"80\"\"\"\">7</td></tr><tr\")","v":"width=\"\"80\"\">5</td><td class=\"\"xl65\"\" style=\"\"border-left: none; width: 60pt;\"\" width=\"\"80\"\">6</td><td class=\"\"xl65\"\" style=\"\"border-left: none; width: 60pt;\"\" width=\"\"80\"\">7</td></tr><tr"},null,""]
[null,{"$f":"CONCATENATE(\"style=\"\"\"\"height: 15.75pt;\"\"\"\"><td class=\"\"\"\"xl66\"\"\"\" style=\"\"\"\"height: 15.75pt; border-top: none;\"\"\"\" height=\"\"\"\"21\"\"\"\">y=</td><td class=\"\"\"\"xl67\"\"\"\" style=\"\"\"\"border-top: none; border-left: none; width:\")","v":"style=\"\"height: 15.75pt;\"\"><td class=\"\"xl66\"\" style=\"\"height: 15.75pt; border-top: none;\"\" height=\"\"21\"\">y=</td><td class=\"\"xl67\"\" style=\"\"border-top: none; border-left: none; width:"},null,""]
[null,{"$f":"CONCATENATE(\"60pt;\"\"\"\" width=\"\"\"\"80\"\"\"\">\",V1._Model,\"</td><td class=\"\"\"\"xl67\"\"\"\" style=\"\"\"\"border-top: none; border-left: none; width: 60pt;\"\"\"\" width=\"\"\"\"80\"\"\"\">\",V2._Model,\"</td><td class=\"\"\"\"xl67\"\"\"\" style=\"\"\"\"border-top: none; border-left:\")","v":"60pt;\"\" width=\"\"80\"\">29.54</td><td class=\"\"xl67\"\" style=\"\"border-top: none; border-left: none; width: 60pt;\"\" width=\"\"80\"\">28.93</td><td class=\"\"xl67\"\" style=\"\"border-top: none; border-left:"},null,""]
[null,{"$f":"CONCATENATE(\"none; width: 60pt;\"\"\"\" width=\"\"\"\"80\"\"\"\">\",V3._Model,\"</td><td class=\"\"\"\"xl67\"\"\"\" style=\"\"\"\"border-top: none; border-left: none; width: 60pt;\"\"\"\" width=\"\"\"\"80\"\"\"\">\",V4._Model,\"</td><td class=\"\"\"\"xl67\"\"\"\" style=\"\"\"\"border-top:\")","v":"none; width: 60pt;\"\" width=\"\"80\"\">40.45</td><td class=\"\"xl67\"\" style=\"\"border-top: none; border-left: none; width: 60pt;\"\" width=\"\"80\"\">50.21</td><td class=\"\"xl67\"\" style=\"\"border-top:"},null,""]
[null,{"$f":"CONCATENATE(\"none; border-left: none; width: 60pt;\"\"\"\" width=\"\"\"\"80\"\"\"\">\",V5._Model,\"</td><td class=\"\"\"\"xl67\"\"\"\" style=\"\"\"\"border-top: none; border-left: none; width: 60pt;\"\"\"\" width=\"\"\"\"80\"\"\"\">\",V6._Model,\"</td><td class=\"\"\"\"xl67\"\"\"\"\")","v":"none; border-left: none; width: 60pt;\"\" width=\"\"80\"\">47.72</td><td class=\"\"xl67\"\" style=\"\"border-top: none; border-left: none; width: 60pt;\"\" width=\"\"80\"\">65.5</td><td class=\"\"xl67\"\""},null,""]
[null,{"$f":"CONCATENATE(\"style=\"\"\"\"border-top: none; border-left: none; width: 60pt;\"\"\"\" width=\"\"\"\"80\"\"\"\">\",V7._Model,\"</td></tr></tbody></table><p>&nbsp;</p><table style=\"\"\"\"border-collapse: collapse; width: 600pt;\"\"\"\" border=\"\"\"\"0\"\"\"\"\")","v":"style=\"\"border-top: none; border-left: none; width: 60pt;\"\" width=\"\"80\"\">55.6</td></tr></tbody></table><p>&nbsp;</p><table style=\"\"border-collapse: collapse; width: 600pt;\"\" border=\"\"0\"\""},null,"",null,null,"x=",1,2,3,4,5,6,7]
[null,{"$f":"CONCATENATE(\"width=\"\"\"\"800\"\"\"\" cellspacing=\"\"\"\"0\"\"\"\" cellpadding=\"\"\"\"0\"\"\"\"><tbody><tr style=\"\"\"\"height: 15.0pt;\"\"\"\"><td class=\"\"\"\"xl65\"\"\"\" style=\"\"\"\"height: 15.0pt; width: 60pt;\"\"\"\" width=\"\"\"\"80\"\"\"\" height=\"\"\"\"20\"\"\"\">x=</td><td\")","v":"width=\"\"800\"\" cellspacing=\"\"0\"\" cellpadding=\"\"0\"\"><tbody><tr style=\"\"height: 15.0pt;\"\"><td class=\"\"xl65\"\" style=\"\"height: 15.0pt; width: 60pt;\"\" width=\"\"80\"\" height=\"\"20\"\">x=</td><td"},null,"",null,null,"y=",{"$f":"CONCATENATE(\"#\",H28,\"#\")","v":"#1#"},{"$f":"CONCATENATE(\"#\",I28,\"#\")","v":"#2#"},"#3#","#4#","#5#","#6#","#7#"]
[null,{"$f":"CONCATENATE(\"class=\"\"\"\"xl66\"\"\"\" style=\"\"\"\"border-left: none; width: 60pt;\"\"\"\" width=\"\"\"\"80\"\"\"\">7</td><td class=\"\"\"\"xl66\"\"\"\" style=\"\"\"\"border-left: none; width: 60pt;\"\"\"\" width=\"\"\"\"80\"\"\"\">8</td><td class=\"\"\"\"xl66\"\"\"\"\")","v":"class=\"\"xl66\"\" style=\"\"border-left: none; width: 60pt;\"\" width=\"\"80\"\">7</td><td class=\"\"xl66\"\" style=\"\"border-left: none; width: 60pt;\"\" width=\"\"80\"\">8</td><td class=\"\"xl66\"\""},null,""]
[null,{"$f":"CONCATENATE(\"style=\"\"\"\"border-left: none; width: 60pt;\"\"\"\" width=\"\"\"\"80\"\"\"\">9</td><td class=\"\"\"\"xl66\"\"\"\" style=\"\"\"\"border-left: none; width: 60pt;\"\"\"\" width=\"\"\"\"80\"\"\"\">10</td><td class=\"\"\"\"xl66\"\"\"\" style=\"\"\"\"border-left:\")","v":"style=\"\"border-left: none; width: 60pt;\"\" width=\"\"80\"\">9</td><td class=\"\"xl66\"\" style=\"\"border-left: none; width: 60pt;\"\" width=\"\"80\"\">10</td><td class=\"\"xl66\"\" style=\"\"border-left:"},null,"",null,null,"x=",7,8,9,10,11,12,13,14,15]
[null,{"$f":"CONCATENATE(\"none; width: 60pt;\"\"\"\" width=\"\"\"\"80\"\"\"\">11</td><td class=\"\"\"\"xl66\"\"\"\" style=\"\"\"\"border-left: none; width: 60pt;\"\"\"\" width=\"\"\"\"80\"\"\"\">12</td><td class=\"\"\"\"xl66\"\"\"\" style=\"\"\"\"border-left: none; width: 60pt;\"\"\"\"\")","v":"none; width: 60pt;\"\" width=\"\"80\"\">11</td><td class=\"\"xl66\"\" style=\"\"border-left: none; width: 60pt;\"\" width=\"\"80\"\">12</td><td class=\"\"xl66\"\" style=\"\"border-left: none; width: 60pt;\"\""},null,"",null,null,"y=",{"$f":"CONCATENATE(\"#\",H31,\"#\")","v":"#7#"},{"$f":"CONCATENATE(\"#\",I31,\"#\")","v":"#8#"},"#9#","#10#","#11#","#12#","#13#",{"$f":"CONCATENATE(\"#\",O31,\"#\")","v":"#14#"},{"$f":"CONCATENATE(\"#\",P31,\"#\")","v":"#15#"}]
[null,{"$f":"CONCATENATE(\"width=\"\"\"\"80\"\"\"\">13</td><td class=\"\"\"\"xl66\"\"\"\" style=\"\"\"\"border-left: none; width: 60pt;\"\"\"\" width=\"\"\"\"80\"\"\"\">14</td><td class=\"\"\"\"xl67\"\"\"\" style=\"\"\"\"border-left: none; width: 60pt;\"\"\"\" width=\"\"\"\"80\"\"\"\">15</td></tr><tr\")","v":"width=\"\"80\"\">13</td><td class=\"\"xl66\"\" style=\"\"border-left: none; width: 60pt;\"\" width=\"\"80\"\">14</td><td class=\"\"xl67\"\" style=\"\"border-left: none; width: 60pt;\"\" width=\"\"80\"\">15</td></tr><tr"},null,""]
[null,{"$f":"CONCATENATE(\"style=\"\"\"\"height: 15.75pt;\"\"\"\"><td class=\"\"\"\"xl68\"\"\"\" style=\"\"\"\"height: 15.75pt; border-top: none;\"\"\"\" height=\"\"\"\"21\"\"\"\">y=</td><td class=\"\"\"\"xl69\"\"\"\" style=\"\"\"\"border-top: none; border-left: none; width:\")","v":"style=\"\"height: 15.75pt;\"\"><td class=\"\"xl68\"\" style=\"\"height: 15.75pt; border-top: none;\"\" height=\"\"21\"\">y=</td><td class=\"\"xl69\"\" style=\"\"border-top: none; border-left: none; width:"},null,""]
[null,{"$f":"CONCATENATE(\"60pt;\"\"\"\" width=\"\"\"\"80\"\"\"\">\",V7._Model,\"</td><td class=\"\"\"\"xl69\"\"\"\" style=\"\"\"\"border-top: none; border-left: none; width: 60pt;\"\"\"\" width=\"\"\"\"80\"\"\"\">\",V8._Model,\"</td><td class=\"\"\"\"xl69\"\"\"\" style=\"\"\"\"border-top: none; border-left:\")","v":"60pt;\"\" width=\"\"80\"\">55.6</td><td class=\"\"xl69\"\" style=\"\"border-top: none; border-left: none; width: 60pt;\"\" width=\"\"80\"\">79.06</td><td class=\"\"xl69\"\" style=\"\"border-top: none; border-left:"},null,""]
[null,{"$f":"CONCATENATE(\"none; width: 60pt;\"\"\"\" width=\"\"\"\"80\"\"\"\">\",V9._Model,\"</td><td class=\"\"\"\"xl69\"\"\"\" style=\"\"\"\"border-top: none; border-left: none; width: 60pt;\"\"\"\" width=\"\"\"\"80\"\"\"\">\",V10._Model,\"</td><td class=\"\"\"\"xl69\"\"\"\" style=\"\"\"\"border-top:\")","v":"none; width: 60pt;\"\" width=\"\"80\"\">67.15</td><td class=\"\"xl69\"\" style=\"\"border-top: none; border-left: none; width: 60pt;\"\" width=\"\"80\"\">74.1</td><td class=\"\"xl69\"\" style=\"\"border-top:"},null,""]
[null,{"$f":"CONCATENATE(\"none; border-left: none; width: 60pt;\"\"\"\" width=\"\"\"\"80\"\"\"\">\",V11._Model,\"</td><td class=\"\"\"\"xl69\"\"\"\" style=\"\"\"\"border-top: none; border-left: none; width: 60pt;\"\"\"\" width=\"\"\"\"80\"\"\"\">\",V12._Model,\"</td><td class=\"\"\"\"xl69\"\"\"\"\")","v":"none; border-left: none; width: 60pt;\"\" width=\"\"80\"\">87.11</td><td class=\"\"xl69\"\" style=\"\"border-top: none; border-left: none; width: 60pt;\"\" width=\"\"80\"\">103.22</td><td class=\"\"xl69\"\""},null,""]
[null,{"$f":"CONCATENATE(\"style=\"\"\"\"border-top: none; border-left: none; width: 60pt;\"\"\"\" width=\"\"\"\"80\"\"\"\">\",V13._Model,\"</td><td class=\"\"\"\"xl69\"\"\"\" style=\"\"\"\"border-top: none; border-left: none; width: 60pt;\"\"\"\" width=\"\"\"\"80\"\"\"\">\",V14._Model,\"</td><td\")","v":"style=\"\"border-top: none; border-left: none; width: 60pt;\"\" width=\"\"80\"\">81.25</td><td class=\"\"xl69\"\" style=\"\"border-top: none; border-left: none; width: 60pt;\"\" width=\"\"80\"\">86.7</td><td"},null,""]
[null,{"$f":"CONCATENATE(\"class=\"\"\"\"xl70\"\"\"\" style=\"\"\"\"border-top: none; border-left: none; width: 60pt;\"\"\"\" width=\"\"\"\"80\"\"\"\">\",V15._Model,\"</td></tr></tbody></table><p>Les donn&eacute;es suivent une loi lin&eacute;aire, d&eacute;terminer\")","v":"class=\"\"xl70\"\" style=\"\"border-top: none; border-left: none; width: 60pt;\"\" width=\"\"80\"\">104.99</td></tr></tbody></table><p>Les donn&eacute;es suivent une loi lin&eacute;aire, d&eacute;terminer"},null,""]
[null,{"$f":"CONCATENATE(\":</p><p>&nbsp;</p><ul><li>la pente P: \",R1.slope_Model,\"</li><li>L'incertitude sur la pente &Delta;P&nbsp;: \",R2.Dslope_Model,\"</li><li>L'ordonn&eacute;e &agrave; l'origine Y<sub>0</sub> : \",R3.Ordo_Model,\"</li><li>Son incertitude&nbsp;&Delta;Y<sub>0</sub>\")","v":":</p><p>&nbsp;</p><ul><li>la pente P: {1:NUMERICAL:=5.13E+00:5.13E-01}</li><li>L'incertitude sur la pente &Delta;P&nbsp;: {1:NUMERICAL:=4.99E-01:4.99E-02}</li><li>L'ordonn&eacute;e &agrave; l'origine Y<sub>0</sub> : {1:NUMERICAL:=2.57E+01:2.57E+00}</li><li>Son incertitude&nbsp;&Delta;Y<sub>0</sub>"},null,""]
[null,null,":</p><p>&nbsp;</p><ul><li>la pente P: \",R1.slope_Model,\"</li><li>L'incertitude sur la pente &Delta;P&nbsp;: \",R2.Dslope_Model,\"</li><li>L'ordonn&eacute;e &agrave; l'origine Y<sub>0</sub> : \",R3.Ordo_Model,\"</li><li>Son incertitude&nbsp;&Delta;Y<sub>0</sub>",""]
[null,null,null,""]
[null,null,null,""]
[null,null,null,""]
[null,null,null,""]
[null,null,null,""]
[null,null,null,""]
[null,null,null,""]
[null,null,null,""]
[null,null,null,""]
[null,null,null,""]
[null,null,null,""]
[null,null,null,""]
[null,null,null,""]
[null,null,null,""]
[null,null,null,""]
[null,null,null,""]
[null,null,null,""]
[null,null,null,""]
[null,null,null,""]
[null,null,null,""]
[null,null,null,""]
[null,null,null,""]
[null,null,null,""]
[null,null,null,""]

{"sheet":"Stat","index":3,"n_rows":985,"n_cols":14,"rows_kept":985,"cut":false,"hidden":false,"merged":[]}
["catégorie_Stat","Incert_Stat",{"$f":"CONCATENATE(\" <!--  question XLQ \", titre_Stat, \"-->\")","v":" <!--  question XLQ Moy_et_Ecart-->"},null,null,"Valeur Mini_Stat","Valeur Maxi_Stat","Sig. Digit_Stat","Val Choix_Stat",null,null,null,1,{"$f":"CONCATENATE(\"#\",M1,\"  ;  \")","v":"#1  ;  "}]
["titre_Stat","Moy_et_Ecart",{"$f":"CONCATENATE(\" <question type=\",CHAR(34),\"category\",CHAR(34),\"><category><text>\", categorie_Stat,\"</text></category></question>)\")","v":" <question type=\"category\"><category><text>Incert_Stat</text></category></question>)"},null,"V1._Stat",1,10,-1,{"$f":"RANDBETWEEN(ValMini_Stat*10^-SigDig_Stat, ValMaxi_Stat*10^-SigDig_Stat)/10^-SigDig_Stat","v":7.6},null,null,null,2,{"$f":"CONCATENATE(\"#\",M2,\"  ;  \")","v":"#2  ;  "}]
["Tag_Stat","M-STDV","    <question type=\"cloze\">",null,"V2._Stat",1,20,-1,4.5,null,null,null,3,"#3  ;  "]
["idnumber_Stat",{"$f":"TEXT(NOW(),\"aammjj-hhmmss.00\")","v":"210710-210621.92"},{"$f":"CONCATENATE(\"     <name><text>\", titre_Stat, \"</text></name>\")","v":"     <name><text>Moy_et_Ecart</text></name>"},null,"V3._Stat",1,30,-1,23.4,null,null,null,4,"#4  ;  "]
["points_Stat",1,"    <questiontext format=\"html\">",null,"V4._Stat",1,100,0,97,null,null,null,5,"#5  ;  "]
["tolérance_Stat",0.05,{"$f":"CONCATENATE(\"     <text><![CDATA[<p>\", question_Stat, \"</p>]]></text>\")","v":"     <text><![CDATA[<p>Pour cet ensemble de valeurs : 7.6  ;  4.5  ;  23.4  ;  97  ;  8.9  ;  9.9  ;  10.9  ;  2  ;  30  ;  13  ;  9.2  ;  10 , calculez la moyenne : {1:NUMERICAL:=1.89E+01:9.43E-01} et l'ecart type : {1:NUMERICAL:=2.58E+01:1.29E+00}<p></p>]]></text>"},null,"V5._Stat",6,16,-1,8.9,null,null,null,6,"#6  ;  "]
["penalité_Stat",0.1,"    </questiontext>",null,"V6._Stat",1,99,-1,9.9,null,null,null,7,"#7  ;  "]
["feedback_Stat","Statistiques",{"$f":"CONCATENATE(\"    <defaultgrade>\",points_Stat,\"</defaultgrade><generalfeedback><text>\",feedback_Stat,\"</text></generalfeedback><penalty>\",penalty_Stat,\"</penalty><hidden>0</hidden>)\")","v":"    <defaultgrade>1</defaultgrade><generalfeedback><text>Statistiques</text></generalfeedback><penalty>0.1</penalty><hidden>0</hidden>)"},null,"V7._Stat",1,22,-1,10.9,null,null,null,8,"#8  ;  "]
["Cellule vides_Stat",{"$f":"COUNTBLANK(B1:B8)","v":0},{"$f":"CONCATENATE(\"    <idnumber>\",idnumber_Stat,\"</idnumber><tags><tag><text>\",Tag_Stat,\"</text></tag></tags>\")","v":"    <idnumber>210710-210621.92</idnumber><tags><tag><text>M-STDV</text></tag></tags>"},null,"V8._Stat",1,74,0,2,null,null,null,9,"#9  ;  "]
["question format HTML_Stat",{"$f":"CONCATENATE(C19, C20, C21, C22)","v":"Pour cet ensemble de valeurs : 7.6  ;  4.5  ;  23.4  ;  97  ;  8.9  ;  9.9  ;  10.9  ;  2  ;  30  ;  13  ;  9.2  ;  10 , calculez la moyenne : {1:NUMERICAL:=1.89E+01:9.43E-01} et l'ecart type : {1:NUMERICAL:=2.58E+01:1.29E+00}<p>"},"   </question>",null,"V9._Stat",5,35,1,30,null,null,null,10,"#10  ;  "]
["Repere Var Rep","_Stat",null,null,"V10._Stat",9,26,-1,13,null,null,null,11,"#11  ;  "]
["HTML File ","Stats.txt",null,null,"V11._Stat",3,12,-1,9.1999999999999993,null,null,null,12,"#12  ;  "]
["https://html-online.com/editor/ ",null,null,null,"V12._Stat",4,12,0,10]
[null,null,null,null,null,null,null,null,null,null,null,null,{"$f":"CONCATENATE(\"Pour cet ensemble de valeurs : \",N1,N2,N3,N4,N5,N6,N7,N8,N9,N10,N11,N12,\", calculez la moyenne : $1 et l'ecart type : $2.\")","v":"Pour cet ensemble de valeurs : #1  ;  #2  ;  #3  ;  #4  ;  #5  ;  #6  ;  #7  ;  #8  ;  #9  ;  #10  ;  #11  ;  #12  ;  , calculez la moyenne : $1 et l'ecart type : $2."}]
[null,null,14,null,null,"Cible_Stat","Tolér_Stat","Sig. Digit_Stat",null,null,null,null,"Pour cet ensemble de valeurs : #1  ;  #2  ;  #3  ;  #4  ;  #5  ;  #6  ;  #7  ;  #8  ;  #9  ;  #10  ;  #11  ;  #12 , calculez la moyenne : $1 et l'ecart type : $2"]
["Var : ","#",12,null,"R1.Moy_Stat",{"$f":"AVERAGE(I2:I13)","v":18.866666666666667},{"$f":" tolerance_Stat*ValMini_Stat","v":0.94333333333333336},1,{"$f":"CONCATENATE(\"{1:NUMERICAL:=\",TEXT(Cible_Stat,\"0.00E+00\"),\":\",TEXT(Tolere_Stat,\"0.00E+00\"),\"}\")","v":"{1:NUMERICAL:=1.89E+01:9.43E-01}"}]
["Res : ","$",2,null,"R2.Ecart_Stat",{"$f":"STDEV(I2:I13)","v":25.790813492522108},{"$f":" tolerance_Stat*ValMini_Stat","v":1.2895406746261056},1,{"$f":"CONCATENATE(\"{1:NUMERICAL:=\",TEXT(Cible_Stat,\"0.00E+00\"),\":\",TEXT(Tolere_Stat,\"0.00E+00\"),\"}\")","v":"{1:NUMERICAL:=2.58E+01:1.29E+00}"}]
[]
["","",{"$f":"CONCATENATE(\"Pour cet ensemble de valeurs : \",V1._Stat,\"  ;  \",V2._Stat,\"  ;  \",V3._Stat,\"  ;\")","v":"Pour cet ensemble de valeurs : 7.6  ;  4.5  ;  23.4  ;"}]
["","",{"$f":"CONCATENATE(\"  \",V4._Stat,\"  ;  \",V5._Stat,\"  ;  \",V6._Stat,\"  ;  \",V7._Stat,\"  ;  \",V8._Stat,\"  ;  \",V9._Stat,\"  ;  \",V10._Stat,\"  ;\")","v":"  97  ;  8.9  ;  9.9  ;  10.9  ;  2  ;  30  ;  13  ;"}]
["","",{"$f":"CONCATENATE(\"  \",V11._Stat,\"  ;  \",V12._Stat,\" , calculez la moyenne : \",R1.Moy_Stat,\" et l'ecar\")","v":"  9.2  ;  10 , calculez la moyenne : {1:NUMERICAL:=1.89E+01:9.43E-01} et l'ecar"}]
["","",{"$f":"CONCATENATE(\"t type : \",R2.Ecart_Stat,\"<p>\")","v":"t type : {1:NUMERICAL:=2.58E+01:1.29E+00}<p>"}]
["",""]
[""]
["",""]
["",""]
["",""]
["",""]
["",""]
["",""]
["",""]
["",""]
["",""]
["",""]
["",""]
["",""]
["",""]
["",""]
["",""]
["",""]
["",""]
["",""]
["",""]
["",""]
["",""]
["",""]
["",""]
["",""]
["",""]
["",""]
["",""]
["",""]
["",""]
["",""]
["",""]
["",""]
["",""]
["",""]
["",""]
["",""]
["",""]
["",""]
["",""]
["",""]
["",""]
["",""]
["",""]
["",""]
["",""]
["",""]
["",""]
["",""]
["",""]
["",""]
["",""]
["",""]
["",""]
["",""]
["",""]
["",""]
["",""]
["",""]
["",""]
["",""]
["",""]
["",""]
["",""]
["",""]
["",""]
["",""]
["",""]
["",""]
["",""]
["",""]
["",""]
["",""]
["",""]
["",""]
["",""]
["",""]
["",""]
["",""]
["",""]
["",""]
["",""]
["",""]
["",""]
["",""]
["",""]
["",""]
["",""]
["",""]
["",""]
["",""]
["",""]
["",""]
["",""]
["",""]
["",""]
["",""]
["",""]
["",""]
["",""]
["",""]
["",""]
["",""]
["",""]
["",""]
["",""]
["",""]
["",""]
["",""]
["",""]
["",""]
["",""]
["",""]
["",""]
["",""]
["",""]
["",""]
["",""]
["",""]
["",""]
["",""]
["",""]
["",""]
["",""]
["",""]
["",""]
["",""]
["",""]
["",""]
["",""]
["",""]
["",""]
["",""]
["",""]
["",""]
["",""]
["",""]
["",""]
["",""]
["",""]
["",""]
["",""]
["",""]
["",""]
["",""]
["",""]
["",""]
["",""]
["",""]
["",""]
["",""]
["",""]
["",""]
["",""]
["",""]
["",""]
["",""]
["",""]
["",""]
["",""]
["",""]
["",""]
["",""]
["",""]
["",""]
["",""]
["",""]
["",""]
["",""]
["",""]
["",""]
["",""]
["",""]
["",""]
["",""]
["",""]
["",""]
["",""]
["",""]
["",""]
["",""]
["",""]
["",""]
["",""]
["",""]
["",""]
["",""]
["",""]
["",""]
["",""]
["",""]
["",""]
["",""]
["",""]
["",""]
["",""]
["",""]
["",""]
["",""]
["",""]
["",""]
["",""]
["",""]
["",""]
["",""]
["",""]
["",""]
["",""]
["",""]
["",""]
["",""]
["",""]
["",""]
["",""]
["",""]
["",""]
["",""]
["",""]
["",""]
["",""]
["",""]
["",""]
["",""]
["",""]
["",""]
["",""]
["",""]
["",""]
["",""]
["",""]
["",""]
["",""]
["",""]
["",""]
["",""]
["",""]
["",""]
["",""]
["",""]
["",""]
["",""]
["",""]
["",""]
["",""]
["",""]
["",""]
["",""]
["",""]
["",""]
["",""]
["",""]
["",""]
["",""]
["",""]
["",""]
["",""]
["",""]
["",""]
["",""]
["",""]
["",""]
["",""]
["",""]
["",""]
["",""]
["",""]
["",""]
["",""]
["",""]
["",""]
["",""]
["",""]
["",""]
["",""]
["",""]
["",""]
["",""]
["",""]
["",""]
["",""]
["",""]
["",""]
["",""]
["",""]
["",""]
["",""]
["",""]
["",""]
["",""]
["",""]
["",""]
["",""]
["",""]
["",""]
["",""]
["",""]
["",""]
["",""]
["",""]
["",""]
["",""]
["",""]
["",""]
["",""]
["",""]
["",""]
["",""]
["",""]
["",""]
["",""]
["",""]
["",""]
["",""]
["",""]
["",""]
["",""]
["",""]
["",""]
["",""]
["",""]
["",""]
["",""]
["",""]
["",""]
["",""]
["",""]
["",""]
["",""]
["",""]
["",""]
["",""]
["",""]
["",""]
["",""]
["",""]
["",""]
["",""]
["",""]
["",""]
["",""]
["",""]
["",""]
["",""]
["",""]
["",""]
["",""]
["",""]
["",""]
["",""]
["",""]
["",""]
["",""]
["",""]
["",""]
["",""]
["",""]
["",""]
["",""]
["",""]
["",""]
["",""]
["",""]
["",""]
["",""]
["",""]
["",""]
["",""]
["",""]
["",""]
["",""]
["",""]
["",""]
["",""]
["",""]
["",""]
["",""]
["",""]
["",""]
["",""]
["",""]
["",""]
["",""]
["",""]
["",""]
["",""]
["",""]
["",""]
["",""]
["",""]
["",""]
["",""]
["",""]
["",""]
["",""]
["",""]
["",""]
["",""]
["",""]
["",""]
["",""]
["",""]
["",""]
["",""]
["",""]
["",""]
["",""]
["",""]
["",""]
["",""]
["",""]
["",""]
["",""]
["",""]
["",""]
["",""]
["",""]
["",""]
["",""]
["",""]
["",""]
["",""]
["",""]
["",""]
["",""]
["",""]
["",""]
["",""]
["",""]
["",""]
["",""]
["",""]
["",""]
["",""]
["",""]
["",""]
["",""]
["",""]
["",""]
["",""]
["",""]
["",""]
["",""]
["",""]
["",""]
["",""]
["",""]
["",""]
["",""]
["",""]
["",""]
["",""]
["",""]
["",""]
["",""]
["",""]
["",""]
["",""]
["",""]
["",""]
["",""]
["",""]
["",""]
["",""]
["",""]
["",""]
["",""]
["",""]
["",""]
["",""]
["",""]
["",""]
["",""]
["",""]
["",""]
["",""]
["",""]
["",""]
["",""]
["",""]
["",""]
["",""]
["",""]
["",""]
["",""]
["",""]
["",""]
["",""]
["",""]
["",""]
["",""]
["",""]
["",""]
["",""]
["",""]
["",""]
["",""]
["",""]
["",""]
["",""]
["",""]
["",""]
["",""]
["",""]
["",""]
["",""]
["",""]
["",""]
["",""]
["",""]
["",""]
["",""]
["",""]
["",""]
["",""]
["",""]
["",""]
["",""]
["",""]
["",""]
["",""]
["",""]
["",""]
["",""]
["",""]
["",""]
["",""]
["",""]
["",""]
["",""]
["",""]
["",""]
["",""]
["",""]
["",""]
["",""]
["",""]
["",""]
["",""]
["",""]
["",""]
["",""]
["",""]
["",""]
["",""]
["",""]
["",""]
["",""]
["",""]
["",""]
["",""]
["",""]
["",""]
["",""]
["",""]
["",""]
["",""]
["",""]
["",""]
["",""]
["",""]
["",""]
["",""]
["",""]
["",""]
["",""]
["",""]
["",""]
["",""]
["",""]
["",""]
["",""]
["",""]
["",""]
["",""]
["",""]
["",""]
["",""]
["",""]
["",""]
["",""]
["",""]
["",""]
["",""]
["",""]
["",""]
["",""]
["",""]
["",""]
["",""]
["",""]
["",""]
["",""]
["",""]
["",""]
["",""]
["",""]
["",""]
["",""]
["",""]
["",""]
["",""]
["",""]
["",""]
["",""]
["",""]
["",""]
["",""]
["",""]
["",""]
["",""]
["",""]
["",""]
["",""]
["",""]
["",""]
["",""]
["",""]
["",""]
["",""]
["",""]
["",""]
["",""]
["",""]
["",""]
["",""]
["",""]
["",""]
["",""]
["",""]
["",""]
["",""]
["",""]
["",""]
["",""]
["",""]
["",""]
["",""]
["",""]
["",""]
["",""]
["",""]
["",""]
["",""]
["",""]
["",""]
["",""]
["",""]
["",""]
["",""]
["",""]
["",""]
["",""]
["",""]
["",""]
["",""]
["",""]
["",""]
["",""]
["",""]
["",""]
["",""]
["",""]
["",""]
["",""]
["",""]
["",""]
["",""]
["",""]
["",""]
["",""]
["",""]
["",""]
["",""]
["",""]
["",""]
["",""]
["",""]
["",""]
["",""]
["",""]
["",""]
["",""]
["",""]
["",""]
["",""]
["",""]
["",""]
["",""]
["",""]
["",""]
["",""]
["",""]
["",""]
["",""]
["",""]
["",""]
["",""]
["",""]
["",""]
["",""]
["",""]
["",""]
["",""]
["",""]
["",""]
["",""]
["",""]
["",""]
["",""]
["",""]
["",""]
["",""]
["",""]
["",""]
["",""]
["",""]
["",""]
["",""]
["",""]
["",""]
["",""]
["",""]
["",""]
["",""]
["",""]
["",""]
["",""]
["",""]
["",""]
["",""]
["",""]
["",""]
["",""]
["",""]
["",""]
["",""]
["",""]
["",""]
["",""]
["",""]
["",""]
["",""]
["",""]
["",""]
["",""]
["",""]
["",""]
["",""]
["",""]
["",""]
["",""]
["",""]
["",""]
["",""]
["",""]
["",""]
["",""]
["",""]
["",""]
["",""]
["",""]
["",""]
["",""]
["",""]
["",""]
["",""]
["",""]
["",""]
["",""]
["",""]
["",""]
["",""]
["",""]
["",""]
["",""]
["",""]
["",""]
["",""]
["",""]
["",""]
["",""]
["",""]
["",""]
["",""]
["",""]
["",""]
["",""]
["",""]
["",""]
["",""]
["",""]
["",""]
["",""]
["",""]
["",""]
["",""]
["",""]
["",""]
["",""]
["",""]
["",""]
["",""]
["",""]
["",""]
["",""]
["",""]
["",""]
["",""]
["",""]
["",""]
["",""]
["",""]
["",""]
["",""]
["",""]
["",""]
["",""]
["",""]
["",""]
["",""]
["",""]
["",""]
["",""]
["",""]
["",""]
["",""]
["",""]
["",""]
["",""]
["",""]
["",""]
["",""]
["",""]
["",""]
["",""]
["",""]
["",""]
["",""]
["",""]
["",""]
["",""]
["",""]
["",""]
["",""]
["",""]
["",""]
["",""]
["",""]
["",""]
["",""]
["",""]
["",""]
["",""]
["",""]
["",""]
["",""]
["",""]
["",""]
["",""]
["",""]
["",""]
["",""]
["",""]
["",""]
["",""]
["",""]
["",""]
["",""]
["",""]
["",""]
["",""]
["",""]
["",""]
["",""]
["",""]
["",""]
["",""]
["",""]
["",""]
["",""]
["",""]
["",""]
["",""]
["",""]
["",""]
["",""]
["",""]
["",""]
["",""]
["",""]
["",""]
["",""]
["",""]
["",""]
["",""]
["",""]
["",""]
["",""]
["",""]
["",""]
["",""]
["",""]
["",""]
["",""]
["",""]
["",""]
["",""]
["",""]
["",""]
["",""]
["",""]
["",""]
["",""]
["",""]
["",""]
["",""]
["",""]
["",""]
["",""]
["",""]
["",""]
["",""]
["",""]
["",""]
["",""]
["",""]
["",""]
["",""]
["",""]
["",""]
["",""]
["",""]
["",""]
["",""]
["",""]
["",""]
["",""]
["",""]
["",""]
["",""]
["",""]
["",""]
["",""]
["",""]
["",""]
["",""]
["",""]
["",""]
["",""]
["",""]
["",""]
["",""]
["",""]
["",""]
["",""]
["",""]
["",""]
["",""]
["",""]
["",""]
["",""]
["",""]

{"sheet":"Expr","index":4,"n_rows":20,"n_cols":16,"rows_kept":20,"cut":false,"hidden":false,"merged":[]}
["catégorie_EPhy","Expr_Phys",{"$f":"CONCATENATE(\" <!--  question XLQ \", titre_EPhy, \"-->\")","v":" <!--  question XLQ Expr_Phys-->"},null,null,"Valeur Mini","Valeur Maxi","Sig. Digit","Val Choix","ODG",null,null,null,null,null,"u"]
["titre_EPhy","Expr_Phys",{"$f":"CONCATENATE(\" <question type=\",CHAR(34),\"category\",CHAR(34),\"><category><text>\", categorie_EPhy,\"</text></category></question>)\")","v":" <question type=\"category\"><category><text>Expr_Phys</text></category></question>)"},null,"VarA_EPhy",{"$f":"RAND()*10^(J2)","v":5.1539778642230435E-7},{"$f":"ROUND(F2,1-INT(LOG10(ABS(M2))))","v":5.1539999999999997E-7},null,null,-6,null,"DeltA_EPhy",{"$f":"F2*10^(-3*(RAND()+0.1))","v":1.7943725288606842E-9},{"$f":"ROUNDUP(M2,1-INT(LOG10(ABS(M2))))","v":1.8E-9}]
["Tag_EPhy","Ecriture_correcte","    <question type=\"cloze\">",null,"VarB_EPhy",{"$f":"RAND()*10^(J3)","v":8.1641662847768465E-4},{"$f":"ROUND(F3,1-INT(LOG10(ABS(M3))))","v":8.1641999999999999E-4},null,null,-3,null,"DelB_EPhy",{"$f":"F3*10^(-3*(RAND()+0.1))","v":7.8502381940284888E-7},{"$f":"ROUNDUP(M3,1-INT(LOG10(ABS(M3))))","v":7.9000000000000006E-7}]
["idnumber_EPhy",{"$f":"TEXT(NOW(),\"aammjj-hhmmss.00\")","v":"210710-210621.92"},{"$f":"CONCATENATE(\"     <name><text>\", titre_EPhy, \"</text></name>\")","v":"     <name><text>Expr_Phys</text></name>"},null,"VarC_EPhy",{"$f":"RAND()*10^(J4)","v":204.79417703121538},{"$f":"ROUND(F4,1-INT(LOG10(ABS(M4))))","v":204.79},null,null,3,null,"DeltC_EPhy",{"$f":"F4*10^(-3*(RAND()+0.1))","v":0.15193985127070575},{"$f":"ROUNDUP(M4,1-INT(LOG10(ABS(M4))))","v":0.16}]
["points_EPhy",1,"    <questiontext format=\"html\">",null,"VarD_EPhy",{"$f":"RAND()*10^(J5)","v":785519.6482676625},{"$f":"ROUND(F5,1-INT(LOG10(ABS(M5))))","v":790000},null,null,6,null,"DeltD_EPhy",{"$f":"F5*10^(-3*(RAND()+0.1))","v":346335.5689547424},{"$f":"ROUNDUP(M5,1-INT(LOG10(ABS(M5))))","v":350000}]
["tolérance_EPhy",0.03,{"$f":"CONCATENATE(\"     <text><![CDATA[<p>\", question_EPhy, \"</p>]]></text>\")","v":"     <text><![CDATA[<p><p>Exprimer correctement ces r&eacute;sultats num&eacute;riques (valeur, incertitude et pr&eacute;fixe : f,n,u,m,-,k,M,G,T) :</p><ul><li>258190788648.125+/-21989541303.4943={1:NUMERICAL:=258:25.8}+/-{1:NUMERICAL:=22:2.2}{1:SHORTANSWER:=G}<BR>785519.648267663+/-346335.568954742={1:NUMERICAL:=790:79}+/-{1:NUMERICAL:=350:35}{1:SHORTANSWER:=k}<BR>204.794177031215+/-0.151939851270706={1:NUMERICAL:=204790:20479}+/-{1:NUMERICAL:=160:16}{1:SHORTANSWER:=m}<BR>0.000816416628477685+/-7.85023819402849E-07={1:NUMERICAL:=816420:81642}+/-{1:NUMERICAL:=790:79}{1:SHORTANSWER:=n}<BR>5.15397786422304E-07+/-1.79437252886068E-09={1:NUMERICAL:=515.4:51.54}+/-{1:NUMERICAL:=1.8:0.18}{1:SHORTANSWER:=n}<BR></li></ul></p>]]></text>"},null,"VarE_EPhy",{"$f":"RAND()*10^(J6)","v":258190788648.12494},{"$f":"ROUND(F6,1-INT(LOG10(ABS(M6))))","v":258000000000},null,null,12,null,"DeltE_EPhy",{"$f":"F6*10^(-3*(RAND()+0.1))","v":21989541303.494267},{"$f":"ROUNDUP(M6,1-INT(LOG10(ABS(M6))))","v":22000000000}]
["penalité_EPhy",0.1,"    </questiontext>"]
["feedback_EPhy","revoir_le_cours",{"$f":"CONCATENATE(\"    <defaultgrade>\",points_EPhy,\"</defaultgrade><generalfeedback><text>\",feedback_EPhy,\"</text></generalfeedback><penalty>\",penalty_EPhy,\"</penalty><hidden>0</hidden>)\")","v":"    <defaultgrade>1</defaultgrade><generalfeedback><text>revoir_le_cours</text></generalfeedback><penalty>0.1</penalty><hidden>0</hidden>)"}]
["Cellule vides_Ephys",{"$f":"COUNTBLANK(B1:B8)","v":0},{"$f":"CONCATENATE(\"    <idnumber>\",idnumber_EPhy,\"</idnumber><tags><tag><text>\",Tag_EPhy,\"</text></tag></tags>\")","v":"    <idnumber>210710-210621.92</idnumber><tags><tag><text>Ecriture_correcte</text></tag></tags>"}]
["question format HTML_EPhy",{"$f":"CONCATENATE(\"<p>Exprimer correctement ces r&eacute;sultats num&eacute;riques (valeur, incertitude et pr&eacute;fixe : f,n,u,m,-,k,M,G,T) :</p><ul><li>\",TRIM(I20),\"</li></ul>\")","v":"<p>Exprimer correctement ces r&eacute;sultats num&eacute;riques (valeur, incertitude et pr&eacute;fixe : f,n,u,m,-,k,M,G,T) :</p><ul><li>258190788648.125+/-21989541303.4943={1:NUMERICAL:=258:25.8}+/-{1:NUMERICAL:=22:2.2}{1:SHORTANSWER:=G}<BR>785519.648267663+/-346335.568954742={1:NUMERICAL:=790:79}+/-{1:NUMERICAL:=350:35}{1:SHORTANSWER:=k}<BR>204.794177031215+/-0.151939851270706={1:NUMERICAL:=204790:20479}+/-{1:NUMERICAL:=160:16}{1:SHORTANSWER:=m}<BR>0.000816416628477685+/-7.85023819402849E-07={1:NUMERICAL:=816420:81642}+/-{1:NUMERICAL:=790:79}{1:SHORTANSWER:=n}<BR>5.15397786422304E-07+/-1.79437252886068E-09={1:NUMERICAL:=515.4:51.54}+/-{1:NUMERICAL:=1.8:0.18}{1:SHORTANSWER:=n}<BR></li></ul>"},"   </question>"," "]
["Repere Var Rep","_Ephys"]
["HTML File ","Expression.HTML.txt"]
["https://html-online.com/editor/ ",null,null,null,null,"Resltat X","Delta X"]
[null,null,null,null,"ResA_EPhy",{"$f":"CONCATENATE(\nIF(N2<1000000000000000,IF(N2>=1000000000000,CONCATENATE(ABS(G2)/1000000000000,\"\"),\"\"),\"\"),\nIF(N2<1000000000000,IF(N2>=1000000000,CONCATENATE(ABS(G2)/1000000000,\"\"),\"\"),\"\"),\nIF(N2<1000000000,IF(N2>=1000000,CONCATENATE(ABS(G2)/1000000,\"\"),\"\"),\"\"),\nIF(N2<1000000,IF(N2>=1000,CONCATENATE(ABS(G2)/1000,\"\"),\"\"),\"\"),\nIF(N2<1000,IF(N2>=1,CONCATENATE(ABS(G2)/1,\"\"),\"\"),\"\"),\nIF(N2<1,IF(N2>=0.001,CONCATENATE(ABS(G2)/0.001,\"\"),\"\"),\"\"),\nIF(N2<0.001,IF(N2>=0.000001,CONCATENATE(ABS(G2)/0.000001,\"\"),\"\"),\"\"),\nIF(N2<0.000001,IF(N2>=0.000000001,CONCATENATE(ABS(G2)/0.000000001,\"\"),\"\"),\"\"),\nIF(N2<0.000000001,IF(N2>=0.000000000001,CONCATENATE(ABS(G2)/0.000000000001,\"\"),\"\"),\"\"))","v":"515.4"},{"$f":"CONCATENATE(\nIF(N2<1000000000000000,IF(N2>=1000000000000,CONCATENATE(ABS(N2)/1000000000000,\"\"),\"\"),\"\"),\nIF(N2<1000000000000,IF(N2>=1000000000,CONCATENATE(ABS(N2)/1000000000,\"\"),\"\"),\"\"),\nIF(N2<1000000000,IF(N2>=1000000,CONCATENATE(ABS(N2)/1000000,\"\"),\"\"),\"\"),\nIF(N2<1000000,IF(N2>=1000,CONCATENATE(ABS(N2)/1000,\"\"),\"\"),\"\"),\nIF(N2<1000,IF(N2>=1,CONCATENATE(ABS(N2)/1,\"\"),\"\"),\"\"),\nIF(N2<1,IF(N2>=0.001,CONCATENATE(ABS(N2)/0.001,\"\"),\"\"),\"\"),\nIF(N2<0.001,IF(N2>=0.000001,CONCATENATE(ABS(N2)/0.000001,\"\"),\"\"),\"\"),\nIF(N2<0.000001,IF(N2>=0.000000001,CONCATENATE(ABS(N2)/0.000000001,\"\"),\"\"),\"\"),\nIF(N2<0.000000001,IF(N2>=0.000000000001,CONCATENATE(ABS(N2)/0.000000000001,\"\"),\"\"),\"\"),\n)","v":"1.8"},{"$f":"CONCATENATE(\nIF(N2<1000000000000000,IF(N2>=1000000000000,\"T\",\"\"),\"\"),\nIF(N2<1000000000000,IF(N2>=1000000000,\"G\",\"\"),\"\"),\nIF(N2<1000000000,IF(N2>=1000000,\"M\",\"\"),\"\"),\nIF(N2<1000000,IF(N2>=1000,\"k\",\"\"),\"\"),\nIF(N2<1000,IF(N2>=1,\"-\",\"\"),\"\"),\nIF(N2<1,IF(N2>=0.001,\"m\",\"\"),\"\"),\nIF(N2<0.001,IF(N2>=0.000001,\"u\",\"\"),\"\"),\nIF(N2<0.000001,IF(N2>=0.000000001,\"n\",\"\"),\"\"),\nIF(N2<0.000000001,IF(N2>=0.000000000001,\"p\",\"\"),\"\"),\n)","v":"n"},{"$f":"IF(ISNA(G14),\"\",TRIM(CONCATENATE(F2,\"+/-\",M2,\"={1:NUMERICAL:=\",F14,\":\",F14/10,\"}+/-{1:NUMERICAL:=\",G14,\":\",G14/10,\"}{1:SHORTANSWER:=\",H14,\"}<BR>\")))","v":"5.15397786422304E-07+/-1.79437252886068E-09={1:NUMERICAL:=515.4:51.54}+/-{1:NUMERICAL:=1.8:0.18}{1:SHORTANSWER:=n}<BR>"}]
[null,null,3,null,"ResB_EPhy",{"$f":"CONCATENATE(\nIF(N3<1000000000000000,IF(N3>=1000000000000,CONCATENATE(ABS(G3)/1000000000000,\"\"),\"\"),\"\"),\nIF(N3<1000000000000,IF(N3>=1000000000,CONCATENATE(ABS(G3)/1000000000,\"\"),\"\"),\"\"),\nIF(N3<1000000000,IF(N3>=1000000,CONCATENATE(ABS(G3)/1000000,\"\"),\"\"),\"\"),\nIF(N3<1000000,IF(N3>=1000,CONCATENATE(ABS(G3)/1000,\"\"),\"\"),\"\"),\nIF(N3<1000,IF(N3>=1,CONCATENATE(ABS(G3)/1,\"\"),\"\"),\"\"),\nIF(N3<1,IF(N3>=0.001,CONCATENATE(ABS(G3)/0.001,\"\"),\"\"),\"\"),\nIF(N3<0.001,IF(N3>=0.000001,CONCATENATE(ABS(G3)/0.000001,\"\"),\"\"),\"\"),\nIF(N3<0.000001,IF(N3>=0.000000001,CONCATENATE(ABS(G3)/0.000000001,\"\"),\"\"),\"\"),\nIF(N3<0.000000001,IF(N3>=0.000000000001,CONCATENATE(ABS(G3)/0.000000000001,\"\"),\"\"),\"\"))","v":"816420"},{"$f":"CONCATENATE(\nIF(N3<1000000000000000,IF(N3>=1000000000000,CONCATENATE(ABS(N3)/1000000000000,\"\"),\"\"),\"\"),\nIF(N3<1000000000000,IF(N3>=1000000000,CONCATENATE(ABS(N3)/1000000000,\"\"),\"\"),\"\"),\nIF(N3<1000000000,IF(N3>=1000000,CONCATENATE(ABS(N3)/1000000,\"\"),\"\"),\"\"),\nIF(N3<1000000,IF(N3>=1000,CONCATENATE(ABS(N3)/1000,\"\"),\"\"),\"\"),\nIF(N3<1000,IF(N3>=1,CONCATENATE(ABS(N3)/1,\"\"),\"\"),\"\"),\nIF(N3<1,IF(N3>=0.001,CONCATENATE(ABS(N3)/0.001,\"\"),\"\"),\"\"),\nIF(N3<0.001,IF(N3>=0.000001,CONCATENATE(ABS(N3)/0.000001,\"\"),\"\"),\"\"),\nIF(N3<0.000001,IF(N3>=0.000000001,CONCATENATE(ABS(N3)/0.000000001,\"\"),\"\"),\"\"),\nIF(N3<0.000000001,IF(N3>=0.000000000001,CONCATENATE(ABS(N3)/0.000000000001,\"\"),\"\"),\"\"),\n)","v":"790"},{"$f":"CONCATENATE(\nIF(N3<1000000000000000,IF(N3>=1000000000000,\"T\",\"\"),\"\"),\nIF(N3<1000000000000,IF(N3>=1000000000,\"G\",\"\"),\"\"),\nIF(N3<1000000000,IF(N3>=1000000,\"M\",\"\"),\"\"),\nIF(N3<1000000,IF(N3>=1000,\"k\",\"\"),\"\"),\nIF(N3<1000,IF(N3>=1,\"-\",\"\"),\"\"),\nIF(N3<1,IF(N3>=0.001,\"m\",\"\"),\"\"),\nIF(N3<0.001,IF(N3>=0.000001,\"u\",\"\"),\"\"),\nIF(N3<0.000001,IF(N3>=0.000000001,\"n\",\"\"),\"\"),\nIF(N3<0.000000001,IF(N3>=0.000000000001,\"p\",\"\"),\"\"),\n)","v":"n"},{"$f":"IF(ISNA(G15),\"\",TRIM(CONCATENATE(F3,\"+/-\",M3,\"={1:NUMERICAL:=\",F15,\":\",F15/10,\"}+/-{1:NUMERICAL:=\",G15,\":\",G15/10,\"}{1:SHORTANSWER:=\",H15,\"}<BR>\")))","v":"0.000816416628477685+/-7.85023819402849E-07={1:NUMERICAL:=816420:81642}+/-{1:NUMERICAL:=790:79}{1:SHORTANSWER:=n}<BR>"}]
["Var : ","#",0,null,"ResC_EPhy",{"$f":"CONCATENATE(\nIF(N4<1000000000000000,IF(N4>=1000000000000,CONCATENATE(ABS(G4)/1000000000000,\"\"),\"\"),\"\"),\nIF(N4<1000000000000,IF(N4>=1000000000,CONCATENATE(ABS(G4)/1000000000,\"\"),\"\"),\"\"),\nIF(N4<1000000000,IF(N4>=1000000,CONCATENATE(ABS(G4)/1000000,\"\"),\"\"),\"\"),\nIF(N4<1000000,IF(N4>=1000,CONCATENATE(ABS(G4)/1000,\"\"),\"\"),\"\"),\nIF(N4<1000,IF(N4>=1,CONCATENATE(ABS(G4)/1,\"\"),\"\"),\"\"),\nIF(N4<1,IF(N4>=0.001,CONCATENATE(ABS(G4)/0.001,\"\"),\"\"),\"\"),\nIF(N4<0.001,IF(N4>=0.000001,CONCATENATE(ABS(G4)/0.000001,\"\"),\"\"),\"\"),\nIF(N4<0.000001,IF(N4>=0.000000001,CONCATENATE(ABS(G4)/0.000000001,\"\"),\"\"),\"\"),\nIF(N4<0.000000001,IF(N4>=0.000000000001,CONCATENATE(ABS(G4)/0.000000000001,\"\"),\"\"),\"\"))","v":"204790"},{"$f":"CONCATENATE(\nIF(N4<1000000000000000,IF(N4>=1000000000000,CONCATENATE(ABS(N4)/1000000000000,\"\"),\"\"),\"\"),\nIF(N4<1000000000000,IF(N4>=1000000000,CONCATENATE(ABS(N4)/1000000000,\"\"),\"\"),\"\"),\nIF(N4<1000000000,IF(N4>=1000000,CONCATENATE(ABS(N4)/1000000,\"\"),\"\"),\"\"),\nIF(N4<1000000,IF(N4>=1000,CONCATENATE(ABS(N4)/1000,\"\"),\"\"),\"\"),\nIF(N4<1000,IF(N4>=1,CONCATENATE(ABS(N4)/1,\"\"),\"\"),\"\"),\nIF(N4<1,IF(N4>=0.001,CONCATENATE(ABS(N4)/0.001,\"\"),\"\"),\"\"),\nIF(N4<0.001,IF(N4>=0.000001,CONCATENATE(ABS(N4)/0.000001,\"\"),\"\"),\"\"),\nIF(N4<0.000001,IF(N4>=0.000000001,CONCATENATE(ABS(N4)/0.000000001,\"\"),\"\"),\"\"),\nIF(N4<0.000000001,IF(N4>=0.000000000001,CONCATENATE(ABS(N4)/0.000000000001,\"\"),\"\"),\"\"),\n)","v":"160"},{"$f":"CONCATENATE(\nIF(N4<1000000000000000,IF(N4>=1000000000000,\"T\",\"\"),\"\"),\nIF(N4<1000000000000,IF(N4>=1000000000,\"G\",\"\"),\"\"),\nIF(N4<1000000000,IF(N4>=1000000,\"M\",\"\"),\"\"),\nIF(N4<1000000,IF(N4>=1000,\"k\",\"\"),\"\"),\nIF(N4<1000,IF(N4>=1,\"-\",\"\"),\"\"),\nIF(N4<1,IF(N4>=0.001,\"m\",\"\"),\"\"),\nIF(N4<0.001,IF(N4>=0.000001,\"u\",\"\"),\"\"),\nIF(N4<0.000001,IF(N4>=0.000000001,\"n\",\"\"),\"\"),\nIF(N4<0.000000001,IF(N4>=0.000000000001,\"p\",\"\"),\"\"),\n)","v":"m"},{"$f":"IF(ISNA(G16),\"\",TRIM(CONCATENATE(F4,\"+/-\",M4,\"={1:NUMERICAL:=\",F16,\":\",F16/10,\"}+/-{1:NUMERICAL:=\",G16,\":\",G16/10,\"}{1:SHORTANSWER:=\",H16,\"}<BR>\")))","v":"204.794177031215+/-0.151939851270706={1:NUMERICAL:=204790:20479}+/-{1:NUMERICAL:=160:16}{1:SHORTANSWER:=m}<BR>"}]
["Res : ","$",10,null,"ResD_EPhy",{"$f":"CONCATENATE(\nIF(N5<1000000000000000,IF(N5>=1000000000000,CONCATENATE(ABS(G5)/1000000000000,\"\"),\"\"),\"\"),\nIF(N5<1000000000000,IF(N5>=1000000000,CONCATENATE(ABS(G5)/1000000000,\"\"),\"\"),\"\"),\nIF(N5<1000000000,IF(N5>=1000000,CONCATENATE(ABS(G5)/1000000,\"\"),\"\"),\"\"),\nIF(N5<1000000,IF(N5>=1000,CONCATENATE(ABS(G5)/1000,\"\"),\"\"),\"\"),\nIF(N5<1000,IF(N5>=1,CONCATENATE(ABS(G5)/1,\"\"),\"\"),\"\"),\nIF(N5<1,IF(N5>=0.001,CONCATENATE(ABS(G5)/0.001,\"\"),\"\"),\"\"),\nIF(N5<0.001,IF(N5>=0.000001,CONCATENATE(ABS(G5)/0.000001,\"\"),\"\"),\"\"),\nIF(N5<0.000001,IF(N5>=0.000000001,CONCATENATE(ABS(G5)/0.000000001,\"\"),\"\"),\"\"),\nIF(N5<0.000000001,IF(N5>=0.000000000001,CONCATENATE(ABS(G5)/0.000000000001,\"\"),\"\"),\"\"))","v":"790"},{"$f":"CONCATENATE(\nIF(N5<1000000000000000,IF(N5>=1000000000000,CONCATENATE(ABS(N5)/1000000000000,\"\"),\"\"),\"\"),\nIF(N5<1000000000000,IF(N5>=1000000000,CONCATENATE(ABS(N5)/1000000000,\"\"),\"\"),\"\"),\nIF(N5<1000000000,IF(N5>=1000000,CONCATENATE(ABS(N5)/1000000,\"\"),\"\"),\"\"),\nIF(N5<1000000,IF(N5>=1000,CONCATENATE(ABS(N5)/1000,\"\"),\"\"),\"\"),\nIF(N5<1000,IF(N5>=1,CONCATENATE(ABS(N5)/1,\"\"),\"\"),\"\"),\nIF(N5<1,IF(N5>=0.001,CONCATENATE(ABS(N5)/0.001,\"\"),\"\"),\"\"),\nIF(N5<0.001,IF(N5>=0.000001,CONCATENATE(ABS(N5)/0.000001,\"\"),\"\"),\"\"),\nIF(N5<0.000001,IF(N5>=0.000000001,CONCATENATE(ABS(N5)/0.000000001,\"\"),\"\"),\"\"),\nIF(N5<0.000000001,IF(N5>=0.000000000001,CONCATENATE(ABS(N5)/0.000000000001,\"\"),\"\"),\"\"),\n)","v":"350"},{"$f":"CONCATENATE(\nIF(N5<1000000000000000,IF(N5>=1000000000000,\"T\",\"\"),\"\"),\nIF(N5<1000000000000,IF(N5>=1000000000,\"G\",\"\"),\"\"),\nIF(N5<1000000000,IF(N5>=1000000,\"M\",\"\"),\"\"),\nIF(N5<1000000,IF(N5>=1000,\"k\",\"\"),\"\"),\nIF(N5<1000,IF(N5>=1,\"-\",\"\"),\"\"),\nIF(N5<1,IF(N5>=0.001,\"m\",\"\"),\"\"),\nIF(N5<0.001,IF(N5>=0.000001,\"u\",\"\"),\"\"),\nIF(N5<0.000001,IF(N5>=0.000000001,\"n\",\"\"),\"\"),\nIF(N5<0.000000001,IF(N5>=0.000000000001,\"p\",\"\"),\"\"),\n)","v":"k"},{"$f":"IF(ISNA(G17),\"\",TRIM(CONCATENATE(F5,\"+/-\",M5,\"={1:NUMERICAL:=\",F17,\":\",F17/10,\"}+/-{1:NUMERICAL:=\",G17,\":\",G17/10,\"}{1:SHORTANSWER:=\",H17,\"}<BR>\")))","v":"785519.648267663+/-346335.568954742={1:NUMERICAL:=790:79}+/-{1:NUMERICAL:=350:35}{1:SHORTANSWER:=k}<BR>"}]
[null,null,null,null,"ResE_EPhy",{"$f":"CONCATENATE(\nIF(N6<1000000000000000,IF(N6>=1000000000000,CONCATENATE(ABS(G6)/1000000000000,\"\"),\"\"),\"\"),\nIF(N6<1000000000000,IF(N6>=1000000000,CONCATENATE(ABS(G6)/1000000000,\"\"),\"\"),\"\"),\nIF(N6<1000000000,IF(N6>=1000000,CONCATENATE(ABS(G6)/1000000,\"\"),\"\"),\"\"),\nIF(N6<1000000,IF(N6>=1000,CONCATENATE(ABS(G6)/1000,\"\"),\"\"),\"\"),\nIF(N6<1000,IF(N6>=1,CONCATENATE(ABS(G6)/1,\"\"),\"\"),\"\"),\nIF(N6<1,IF(N6>=0.001,CONCATENATE(ABS(G6)/0.001,\"\"),\"\"),\"\"),\nIF(N6<0.001,IF(N6>=0.000001,CONCATENATE(ABS(G6)/0.000001,\"\"),\"\"),\"\"),\nIF(N6<0.000001,IF(N6>=0.000000001,CONCATENATE(ABS(G6)/0.000000001,\"\"),\"\"),\"\"),\nIF(N6<0.000000001,IF(N6>=0.000000000001,CONCATENATE(ABS(G6)/0.000000000001,\"\"),\"\"),\"\"))","v":"258"},{"$f":"CONCATENATE(\nIF(N6<1000000000000000,IF(N6>=1000000000000,CONCATENATE(ABS(N6)/1000000000000,\"\"),\"\"),\"\"),\nIF(N6<1000000000000,IF(N6>=1000000000,CONCATENATE(ABS(N6)/1000000000,\"\"),\"\"),\"\"),\nIF(N6<1000000000,IF(N6>=1000000,CONCATENATE(ABS(N6)/1000000,\"\"),\"\"),\"\"),\nIF(N6<1000000,IF(N6>=1000,CONCATENATE(ABS(N6)/1000,\"\"),\"\"),\"\"),\nIF(N6<1000,IF(N6>=1,CONCATENATE(ABS(N6)/1,\"\"),\"\"),\"\"),\nIF(N6<1,IF(N6>=0.001,CONCATENATE(ABS(N6)/0.001,\"\"),\"\"),\"\"),\nIF(N6<0.001,IF(N6>=0.000001,CONCATENATE(ABS(N6)/0.000001,\"\"),\"\"),\"\"),\nIF(N6<0.000001,IF(N6>=0.000000001,CONCATENATE(ABS(N6)/0.000000001,\"\"),\"\"),\"\"),\nIF(N6<0.000000001,IF(N6>=0.000000000001,CONCATENATE(ABS(N6)/0.000000000001,\"\"),\"\"),\"\"),\n)","v":"22"},{"$f":"CONCATENATE(\nIF(N6<1000000000000000,IF(N6>=1000000000000,\"T\",\"\"),\"\"),\nIF(N6<1000000000000,IF(N6>=1000000000,\"G\",\"\"),\"\"),\nIF(N6<1000000000,IF(N6>=1000000,\"M\",\"\"),\"\"),\nIF(N6<1000000,IF(N6>=1000,\"k\",\"\"),\"\"),\nIF(N6<1000,IF(N6>=1,\"-\",\"\"),\"\"),\nIF(N6<1,IF(N6>=0.001,\"m\",\"\"),\"\"),\nIF(N6<0.001,IF(N6>=0.000001,\"u\",\"\"),\"\"),\nIF(N6<0.000001,IF(N6>=0.000000001,\"n\",\"\"),\"\"),\nIF(N6<0.000000001,IF(N6>=0.000000000001,\"p\",\"\"),\"\"),\n)","v":"G"},{"$f":"IF(ISNA(G18),\"\",TRIM(CONCATENATE(F6,\"+/-\",M6,\"={1:NUMERICAL:=\",F18,\":\",F18/10,\"}+/-{1:NUMERICAL:=\",G18,\":\",G18/10,\"}{1:SHORTANSWER:=\",H18,\"}<BR>\")))","v":"258190788648.125+/-21989541303.4943={1:NUMERICAL:=258:25.8}+/-{1:NUMERICAL:=22:2.2}{1:SHORTANSWER:=G}<BR>"}]
[null,null,"<p>Exprimer correctement ces résultats numériques :</p><ul><li>#1 +/- #6  =  $1 +/- $6 </li><li>#2 +/- #7  =  $2 +/- $7</li><li>#3 +/- #8  =  $3 +/- $8 </li><li>#4 +/- #9  =  $4 +/- $9 </li><li>#5 +/- #10  =  $5 +/- $10 </li></ul>"]
[null,null,null,null,null,null,null,null,{"$f":"CONCATENATE(TRIM(ResE_EPhy),TRIM(ResD_EPhy),TRIM(ResC_EPhy),TRIM(ResB_EPhy),TRIM(ResA_EPhy))","v":"258190788648.125+/-21989541303.4943={1:NUMERICAL:=258:25.8}+/-{1:NUMERICAL:=22:2.2}{1:SHORTANSWER:=G}<BR>785519.648267663+/-346335.568954742={1:NUMERICAL:=790:79}+/-{1:NUMERICAL:=350:35}{1:SHORTANSWER:=k}<BR>204.794177031215+/-0.151939851270706={1:NUMERICAL:=204790:20479}+/-{1:NUMERICAL:=160:16}{1:SHORTANSWER:=m}<BR>0.000816416628477685+/-7.85023819402849E-07={1:NUMERICAL:=816420:81642}+/-{1:NUMERICAL:=790:79}{1:SHORTANSWER:=n}<BR>5.15397786422304E-07+/-1.79437252886068E-09={1:NUMERICAL:=515.4:51.54}+/-{1:NUMERICAL:=1.8:0.18}{1:SHORTANSWER:=n}<BR>"}]

{"sheet":"RDT_Malade","index":5,"n_rows":22,"n_cols":17,"rows_kept":22,"cut":false,"hidden":false,"merged":[]}
["catégorie_Mala","RDT_mala",{"$f":"CONCATENATE(\"    <!--  question XLQ \", titre_Mala, \"-->\")","v":"    <!--  question XLQ Posologie-->"},null,null,"Valeur Mini_Mala","Valeur Maxi_Mala","Sig. Digit_Mala","Val Choix_Mala"]
["titre_Mala","Posologie",{"$f":"CONCATENATE(\"    <question type=\",CHAR(34),\"category\",CHAR(34),\"><category><text>\", categorie_Mala,\"</text></category></question>)\")","v":"    <question type=\"category\"><category><text>RDT_mala</text></category></question>)"},null,"V1._Mala",49,91,0,{"$f":"RANDBETWEEN(ValMini_Mala*10^-SigDig_Mala, ValMaxi_Mala*10^-SigDig_Mala)/10^-SigDig_Mala","v":83},"kg","poids",90,null,null,null,null,"X = 10 × 90"]
["Tag_Mala","malade","    <question type=\"cloze\">",null,"V2._Mala",10,50,1,{"$f":"RANDBETWEEN(ValMini_Mala*10^-SigDig_Mala, ValMaxi_Mala*10^-SigDig_Mala)/10^-SigDig_Mala","v":50},"mg/j/kg","dose",10,null,null,null,null,1]
["idnumber_Mala",{"$f":"TEXT(NOW(),\"aammjj-hhmmss.00\")","v":"210710-210621.92"},{"$f":"CONCATENATE(\"        <name><text>\", titre_Mala, \"</text></name>\")","v":"        <name><text>Posologie</text></name>"},null,"V3._Mala",50,500,2,{"$f":"RANDBETWEEN(ValMini_Mala*10^-SigDig_Mala, ValMaxi_Mala*10^-SigDig_Mala)/10^-SigDig_Mala","v":200},"mg","masse dilu",300,null,null,null,null,"× 10"]
["points_Mala",1,"        <questiontext format=\"html\">",null,"V4._Mala",1,30,0,{"$f":"RANDBETWEEN(ValMini_Mala*10^-SigDig_Mala, ValMaxi_Mala*10^-SigDig_Mala)/10^-SigDig_Mala","v":4},"ml","vol dilu",10,null,null,null,null,300]
["tolérance_Mala",0.05,{"$f":"CONCATENATE(\"            <text><![CDATA[<p>\", question_Mala, \"</p>]]></text>\")","v":"            <text><![CDATA[<p> <p>Un malade p&egrave;se 83kg. Pour se soigner, il doit absor-<br />ber chaque jour une dose de tonique cardiaque corres-<br />pondant &agrave; 5010mg par kilogramme de masse corporelle.<br />Ce toniqueest distribu&eacute; sous la forme de m&eacute;lange d&rsquo;eau<br />et de m&eacute;dicament, contenant 200300mg de m&eacute;dicament par<br />410ml de potion. Combien de millilitres de potion le ma-<br/>lade doit-il absorber quotidiennement ? R&eacute;ponse {1:NUMERICAL:=8.30E+01:4.15E+00}</p> On peut facilement vérifier sa réponse :  {1:NUMERICAL:=8.30E+01:4.15E+00}mg par j et par kgX = 10 × 90</p>]]></text>"},null,"V5._Mala",null,null,null,{"$f":"RANDBETWEEN(ValMini_Mala*10^-SigDig_Mala, ValMaxi_Mala*10^-SigDig_Mala)/10^-SigDig_Mala","v":0},null,null,null,null,null,null,null,"= 30ml On vériﬁe : 30ml ⇒"]
["penalité_Mala",0.1,"        </questiontext>",null,null,null,null,null,null,null,null,null,null,null,null,null,"900mg ⇒ 10mg/kg"]
["feedback_Mala","Faites_attention",{"$f":"CONCATENATE(\"        <defaultgrade>\",points_Mala,\"</defaultgrade><generalfeedback><text>\",feedback_Mala,\"</text></generalfeedback><penalty>\",penalty_Mala,\"</penalty><hidden>0</hidden>)\")","v":"        <defaultgrade>1</defaultgrade><generalfeedback><text>Faites_attention</text></generalfeedback><penalty>0.1</penalty><hidden>0</hidden>)"},null,null,"Cible_Mala","Toler_Mala","PointsQuestion_Mala"]
["Cellule vides_Mala",{"$f":"COUNTBLANK(B1:B8)","v":0},{"$f":"CONCATENATE(\"        <idnumber>\",idnumber_Mala,\"</idnumber><tags><tag><text>\",Tag_Mala,\"</text></tag></tags>\")","v":"        <idnumber>210710-210621.92</idnumber><tags><tag><text>malade</text></tag></tags>"},null,"R1._Mala",{"$f":"V2._Mala*V1._Mala*V4._Mala/V3._Mala","v":83},{"$f":" tolerance_Mala*ValMini_Mala","v":4.1500000000000004},1,{"$f":"CONCATENATE(\"{\",PointsQuestion_Mala,\":NUMERICAL:=\",TEXT(Cible_Mala,\"0.00E+00\"),\":\",TEXT(Tolere_Mala,\"0.00E+00\"),\"}\")","v":"{1:NUMERICAL:=8.30E+01:4.15E+00}"}]
["question format HTML_Mala",{"$f":"CONCATENATE(\" \",B19,B20,B21,B22,Q2)","v":" <p>Un malade p&egrave;se 83kg. Pour se soigner, il doit absor-<br />ber chaque jour une dose de tonique cardiaque corres-<br />pondant &agrave; 5010mg par kilogramme de masse corporelle.<br />Ce toniqueest distribu&eacute; sous la forme de m&eacute;lange d&rsquo;eau<br />et de m&eacute;dicament, contenant 200300mg de m&eacute;dicament par<br />410ml de potion. Combien de millilitres de potion le ma-<br/>lade doit-il absorber quotidiennement ? R&eacute;ponse {1:NUMERICAL:=8.30E+01:4.15E+00}</p> On peut facilement vérifier sa réponse :  {1:NUMERICAL:=8.30E+01:4.15E+00}mg par j et par kgX = 10 × 90"},"    </question>",null,"R2._Mala",{"$f":"F9*V3._Mala/V4._Mala/V1._Mala","v":50},{"$f":" tolerance_Mala*ValMini_Mala","v":2.5},1,{"$f":"CONCATENATE(\"{\",PointsQuestion_Mala,\":NUMERICAL:=\",TEXT(Cible_Mala,\"0.00E+00\"),\":\",TEXT(Tolere_Mala,\"0.00E+00\"),\"}\")","v":"{1:NUMERICAL:=5.00E+01:2.50E+00}"}]
["Repere Var Rep","_Mala"]
["HTML File ",{"$f":"CONCATENATE(categorie_Mala,\"_HTML.txt\")","v":"RDT_mala_HTML.txt"}]
["https://html-online.com/editor/"]
[]
[null,null,7]
["Var : ","#",5]
["Res : ","$",1]
[]
[null,{"$f":"CONCATENATE(\"<p>Un malade p&egrave;se \",V1._Mala,\"kg. Pour se soigner, il doit absor-<br />ber chaque jour une dose de tonique cardiaque corres-<br />pondant &agrave; \",V2._Mala,\"10mg par kilogramme de masse corporelle.<br />Ce tonique\")","v":"<p>Un malade p&egrave;se 83kg. Pour se soigner, il doit absor-<br />ber chaque jour une dose de tonique cardiaque corres-<br />pondant &agrave; 5010mg par kilogramme de masse corporelle.<br />Ce tonique"},"<p>Un malade p&egrave;se #1#kg. Pour se soigner, il doit absor-<br />ber chaque jour une dose de tonique cardiaque corres-<br />pondant &agrave; #2#10mg par kilogramme de masse corporelle.<br />Ce tonique est distribu&eacute; sous la forme de m&eacute;lange d&rsquo;eau<br />et de m&eacute;dicament, contenant #3#300mg de m&eacute;dicament par<br />#4#10ml de potion. Combien de millilitres de potion le ma-<br />lade doit-il absorber quotidiennement ? R&eacute;ponse $1$</p>"]
[null,{"$f":"CONCATENATE(\"est distribu&eacute; sous la forme de m&eacute;lange d&rsquo;eau<br />et de m&eacute;dicament, contenant \",V3._Mala,\"300mg de m&eacute;dicament par<br />\",V4._Mala,\"10ml de potion. Combien de millilitres de potion le ma-<br\")","v":"est distribu&eacute; sous la forme de m&eacute;lange d&rsquo;eau<br />et de m&eacute;dicament, contenant 200300mg de m&eacute;dicament par<br />410ml de potion. Combien de millilitres de potion le ma-<br"}]
[null,{"$f":"CONCATENATE(\"/>lade doit-il absorber quotidiennement ? R&eacute;ponse \",R1._Mala,\"</p> On peut facilement vérifier sa réponse :  \",R1._Mala, \"mg par j et par kg\")","v":"/>lade doit-il absorber quotidiennement ? R&eacute;ponse {1:NUMERICAL:=8.30E+01:4.15E+00}</p> On peut facilement vérifier sa réponse :  {1:NUMERICAL:=8.30E+01:4.15E+00}mg par j et par kg"},null," "]
[null,{"$f":"CONCATENATE(\"\")","v":""}]

{"sheet":"RDT_Jardin","index":6,"n_rows":41,"n_cols":18,"rows_kept":41,"cut":false,"hidden":false,"merged":[]}
["catégorie_Jard","RDT_Jardin",{"$f":"CONCATENATE(\"    <!--  question XLQ \", titre_Jard, \"-->\")","v":"    <!--  question XLQ Regle_de_3_jardin-->"},null,null,"Valeur Mini_Jard","Valeur Maxi_Jard","Sig. Digit_Jard","Val Choix_Jard","t","v"]
["titre_Jard","Regle_de_3_jardin",{"$f":"CONCATENATE(\"    <question type=\",CHAR(34),\"category\",CHAR(34),\"><category><text>\", categorie_Jard,\"</text></category></question>)\")","v":"    <question type=\"category\"><category><text>RDT_Jardin</text></category></question>)"},null,"V1._Jard",1,15,0,{"$f":"RANDBETWEEN(ValMini_Jard*10^-SigDig_Jard, ValMaxi_Jard*10^-SigDig_Jard)/10^-SigDig_Jard","v":6},{"$f":"V1._Jard","v":6},{"$f":"1/J2","v":0.16666666666666666}]
["Tag_Jard","Moyennes","    <question type=\"cloze\">",null,"V2._Jard",1,{"$f":"V1._Jard+1","v":7},0,{"$f":"V1._Jard+L3","v":8},{"$f":"V1._Jard+V2._Jard","v":14},{"$f":"1/J3","v":7.1428571428571425E-2},{"$f":"RANDBETWEEN(ValMini_Jard*10^-SigDig_Jard, ValMaxi_Jard*10^-SigDig_Jard)/10^-SigDig_Jard","v":2}]
["idnumber_Jard",{"$f":"TEXT(NOW(),\"aammjj-hhmmss.00\")","v":"210710-210621.92"},{"$f":"CONCATENATE(\"        <name><text>\", titre_Jard, \"</text></name>\")","v":"        <name><text>Regle_de_3_jardin</text></name>"},null,null,null,null,null,null,null,{"$f":"(K3+K2)","v":0.23809523809523808},null,null,null,"A","B","A+B","A et B"]
["points_Jard",1,"        <questiontext format=\"html\">",null,null,"Cible_Jard","Toler_Jard","PointsQuestion_Jard",null,null,null,null,null,"t",1,3,4,2]
["tolérance_Jard",0.05,{"$f":"CONCATENATE(\"            <text><![CDATA[<p>\", question_Jard, \"</p>]]></text>\")","v":"            <text><![CDATA[<p> <p>Un jardinier met 6h pour b&ecirc;cher son potager. Son voisin lui met 8h pour la m&ecirc;me t&acirc;che. Combien de temps mettraient-il pour b&ecirc;cher les deux jardins s'il travailllent ensemble{1:NUMERICAL:=7.00E+00:3.50E-01} h.&nbsp;</p><p></p>]]></text>"},null,"R1._Jard",{"$f":"AVERAGE(V1._Jard,V2._Jard)","v":7},{"$f":" tolerance_Jard*ValMini_Jard","v":0.35000000000000003},1,{"$f":"CONCATENATE(\"{\",PointsQuestion_Jard,\":NUMERICAL:=\",TEXT(Cible_Jard,\"0.00E+00\"),\":\",TEXT(Tolere_Jard,\"0.00E+00\"),\"}\")","v":"{1:NUMERICAL:=7.00E+00:3.50E-01}"}]
["penalité_Jard",0.1,"        </questiontext>",null,"R2._Jard",{"$f":"J3","v":14},{"$f":" tolerance_Jard*ValMini_Jard","v":0.70000000000000007},1,{"$f":"CONCATENATE(\"{\",PointsQuestion_Jard,\":NUMERICAL:=\",TEXT(Cible_Jard,\"0.00E+00\"),\":\",TEXT(Tolere_Jard,\"0.00E+00\"),\"}\")","v":"{1:NUMERICAL:=1.40E+01:7.00E-01}"}]
["feedback_Jard","Moyennes",{"$f":"CONCATENATE(\"        <defaultgrade>\",points_Jard,\"</defaultgrade><generalfeedback><text>\",feedback_Jard,\"</text></generalfeedback><penalty>\",penalty_Jard,\"</penalty><hidden>0</hidden>)\")","v":"        <defaultgrade>1</defaultgrade><generalfeedback><text>Moyennes</text></generalfeedback><penalty>0.1</penalty><hidden>0</hidden>)"}]
["Cellule vides_Jard",{"$f":"COUNTBLANK(B1:B8)","v":0},{"$f":"CONCATENATE(\"        <idnumber>\",idnumber_Jard,\"</idnumber><tags><tag><text>\",Tag_Jard,\"</text></tag></tags>\")","v":"        <idnumber>210710-210621.92</idnumber><tags><tag><text>Moyennes</text></tag></tags>"}]
["question format HTML_Jard",{"$f":"CONCATENATE(\" \",B19,B20,B21)","v":" <p>Un jardinier met 6h pour b&ecirc;cher son potager. Son voisin lui met 8h pour la m&ecirc;me t&acirc;che. Combien de temps mettraient-il pour b&ecirc;cher les deux jardins s'il travailllent ensemble{1:NUMERICAL:=7.00E+00:3.50E-01} h.&nbsp;</p><p>"},"    </question>"]
["Repere Var Rep","_Jard"]
["HTML File ",{"$f":"CONCATENATE(categorie_Jard,\"_HTML.txt\")","v":"RDT_Jardin_HTML.txt"}]
["https://html-online.com/editor/",null,null,null,null,null,null,null,{"$f":"AVERAGE(V1._Jard,V2._Jard)","v":7}]
[]
[null,null,4]
["Var : ","#",2]
["Res : ","$",2]
[]
[null,{"$f":"CONCATENATE(\"<p>Un jardinier met \",V1._Jard,\"h pour b&ecirc;cher son potager. Son voisin lui met \",V2._Jard,\"h pour la m&ecirc;me t&acirc;che. Combien de temps mettraient-il pour b&ecirc;cher les deux jardins s'il travailllent ensemble\")","v":"<p>Un jardinier met 6h pour b&ecirc;cher son potager. Son voisin lui met 8h pour la m&ecirc;me t&acirc;che. Combien de temps mettraient-il pour b&ecirc;cher les deux jardins s'il travailllent ensemble"},"<p>Un jardinier met $#1#h pour b&ecirc;cher son potager. Son voisin lui met #2#h pour la m&ecirc;me t&acirc;che. Combien de temps mettraient-il pour b&ecirc;cher les deux jardins s'il travailllent ensemble $1$, ou s&eacute;parement ? $2$h.&nbsp;</p>"]
[null,{"$f":"CONCATENATE(\"\",R1._Jard,\" h.&nbsp;</p><p>\")","v":"{1:NUMERICAL:=7.00E+00:3.50E-01} h.&nbsp;</p><p>"}]
[null,{"$f":"CONCATENATE(\"\")","v":""}]
[]
[]
[]
[]
[]
[]
[]
[]
[]
[]
[]
[]
[]
[]
[]
[]
[]
[]
[]
[null,null,"\",R1._Jard,\", ou s&eacute;parement ? \",R2._Jard,\"h.&nbsp;</p><p>"]

{"sheet":"RDT_Raisin","index":7,"n_rows":41,"n_cols":16,"rows_kept":41,"cut":false,"hidden":false,"merged":[]}
["catégorie_Raisin","RDT_Raisin",{"$f":"CONCATENATE(\"    <!--  question XLQ \", titre_Raisin, \"-->\")","v":"    <!--  question XLQ Raisin-->"},null,null,"Valeur Mini_Raisin","Valeur Maxi_Raisin","Sig. Digit_Raisin","Val Choix_Raisin"]
["titre_Raisin","Raisin",{"$f":"CONCATENATE(\"    <question type=\",CHAR(34),\"category\",CHAR(34),\"><category><text>\", categorie_Raisin,\"</text></category></question>)\")","v":"    <question type=\"category\"><category><text>RDT_Raisin</text></category></question>)"},null,"V1._Raisin",1,30,0,{"$f":"RANDBETWEEN(ValMini_Raisin*10^-SigDig_Raisin, ValMaxi_Raisin*10^-SigDig_Raisin)/10^-SigDig_Raisin","v":24},"personnes dans l'équipe"]
["Tag_Raisin","Vendange","    <question type=\"cloze\">",null,"V2._Raisin",70,90,1,{"$f":"V1._Raisin*V3._Raisin*RANDBETWEEN(ValMini_Raisin*10^-SigDig_Raisin, ValMaxi_Raisin*10^-SigDig_Raisin)/10^-SigDig_Raisin/1000","v":3.84},"rammasse en tonnes",null,null,null,"ref",null,"Ici"]
["idnumber_Raisin",{"$f":"TEXT(NOW(),\"aammjj-hhmmss.00\")","v":"210710-210621.92"},{"$f":"CONCATENATE(\"        <name><text>\", titre_Raisin, \"</text></name>\")","v":"        <name><text>Raisin</text></name>"},null,"V3._Raisin",1,10,0,{"$f":"RANDBETWEEN(ValMini_Raisin*10^-SigDig_Raisin, ValMaxi_Raisin*10^-SigDig_Raisin)/10^-SigDig_Raisin","v":2},"h de cueillette",null,null,null,10,"p",{"$f":"V2._Raisin*1000/(V1._Raisin*V3._Raisin)","v":80}]
["points_Raisin",1,"        <questiontext format=\"html\">",null,"V4._Raisin",1,24,0,{"$f":"RANDBETWEEN(ValMini_Raisin*10^-SigDig_Raisin, ValMaxi_Raisin*10^-SigDig_Raisin)/10^-SigDig_Raisin","v":21},"personne après",null,null,null,4,"h"]
["tolérance_Raisin",0.05,{"$f":"CONCATENATE(\"            <text><![CDATA[<p>\", question_Raisin, \"</p>]]></text>\")","v":"            <text><![CDATA[<p> <p>&nbsp;Une &eacute;quipe de 24 personnes a ramass&eacute;<br />  3.84 tonnes de raisin en 2h. Si tout le monde ramasse de<br />la m&ecirc;me mani&egrave;re, quelle quantit&eacute; de raisin estr&eacute;colt&eacute;e<br />par 21 personnes en 29 jours de 8h ? R&eacute;ponse {1:NUMERICAL:=3.90E+02:1.95E+01}</p><p></p>]]></text>"},null,"V5._Raisin",1,30,0,{"$f":"RANDBETWEEN(ValMini_Raisin*10^-SigDig_Raisin, ValMaxi_Raisin*10^-SigDig_Raisin)/10^-SigDig_Raisin","v":29},"jours",null,null,null,3.2,"t"]
["penalité_Raisin",0.1,"        </questiontext>",null,"V6._Raisin",5,9,0,{"$f":"RANDBETWEEN(ValMini_Raisin*10^-SigDig_Raisin, ValMaxi_Raisin*10^-SigDig_Raisin)/10^-SigDig_Raisin","v":8},"heures"]
["feedback_Raisin","_",{"$f":"CONCATENATE(\"        <defaultgrade>\",points_Raisin,\"</defaultgrade><generalfeedback><text>\",feedback_Raisin,\"</text></generalfeedback><penalty>\",penalty_Raisin,\"</penalty><hidden>0</hidden>)\")","v":"        <defaultgrade>1</defaultgrade><generalfeedback><text>_</text></generalfeedback><penalty>0.1</penalty><hidden>0</hidden>)"},null,null,null,null,null,null,null,null,null,null,{"$f":"1000*N6/N5/N4","v":80},"kg /pers. Heur"]
["Cellule vides_Raisin",{"$f":"COUNTBLANK(B1:B8)","v":0},{"$f":"CONCATENATE(\"        <idnumber>\",idnumber_Raisin,\"</idnumber><tags><tag><text>\",Tag_Raisin,\"</text></tag></tags>\")","v":"        <idnumber>210710-210621.92</idnumber><tags><tag><text>Vendange</text></tag></tags>"},null,null,"Cible_Raisin","Toler_Raisin","PointsQuestion_Raisin"]
["question format HTML_Raisin",{"$f":"CONCATENATE(\" \",B19,B20,B21)","v":" <p>&nbsp;Une &eacute;quipe de 24 personnes a ramass&eacute;<br />  3.84 tonnes de raisin en 2h. Si tout le monde ramasse de<br />la m&ecirc;me mani&egrave;re, quelle quantit&eacute; de raisin estr&eacute;colt&eacute;e<br />par 21 personnes en 29 jours de 8h ? R&eacute;ponse {1:NUMERICAL:=3.90E+02:1.95E+01}</p><p>"},"    </question>",null,"R1._Raisin",{"$f":"KgphpP*V4._Raisin*V5._Raisin*V6._Raisin/1000","v":389.76},{"$f":" tolerance_Raisin*ValMini_Raisin","v":19.488},1,{"$f":"CONCATENATE(\"{\",PointsQuestion_Raisin,\":NUMERICAL:=\",TEXT(Cible_Raisin,\"0.00E+00\"),\":\",TEXT(Tolere_Raisin,\"0.00E+00\"),\"}\")","v":"{1:NUMERICAL:=3.90E+02:1.95E+01}"},null,null,null,null,"avant ","après"]
["Repere Var Rep","_Raisin",null,null,null,null,null,null,null,null,null,null,"Heure",{"$f":"V3._Raisin","v":2},{"$f":"V5._Raisin*V6._Raisin","v":232}]
["HTML File ",{"$f":"CONCATENATE(categorie_Raisin,\"_HTML.txt\")","v":"RDT_Raisin_HTML.txt"},null,null,null,null,null,null,null,null,null,null,"personne",{"$f":"V1._Raisin","v":24},{"$f":"V4._Raisin","v":21}]
["https://html-online.com/editor/",null,null,null,null,null,null,null,null,null,null,null,"W",{"$f":"N12*N11","v":48},{"$f":"O12*O11","v":4872}]
[null,null,null,null,null,null,null,null,null,null,null,null,null,null,null,{"$f":"V2._Raisin*O13/N13","v":389.76}]
[null,null,8]
["Var : ","#",6]
["Res : ","$",1]
[]
[null,{"$f":"CONCATENATE(\"<p>&nbsp;Une &eacute;quipe de \",V1._Raisin,\" personnes a ramass&eacute;<br />  \",V2._Raisin,\" tonnes de raisin en \",V3._Raisin,\"h. Si tout le monde ramasse de<br />la m&ecirc;me mani&egrave;re, quelle quantit&eacute; de raisin est\")","v":"<p>&nbsp;Une &eacute;quipe de 24 personnes a ramass&eacute;<br />  3.84 tonnes de raisin en 2h. Si tout le monde ramasse de<br />la m&ecirc;me mani&egrave;re, quelle quantit&eacute; de raisin est"},"<p>&nbsp;Une &eacute;quipe de 10#1# personnes a ramass&eacute;<br />3,2 #2# tonnes de raisin en #3#4h. Si tout le monde ramasse de<br />la m&ecirc;me mani&egrave;re, quelle quantit&eacute; de raisin est r&eacute;colt&eacute;e<br />par #4# personnes en #5# jours de #6#h ? R&eacute;ponse $1$</p>"]
[null,{"$f":"CONCATENATE(\"r&eacute;colt&eacute;e<br />par \",V4._Raisin,\" personnes en \",V5._Raisin,\" jours de \",V6._Raisin,\"h ? R&eacute;ponse \",R1._Raisin,\"</p><p>\")","v":"r&eacute;colt&eacute;e<br />par 21 personnes en 29 jours de 8h ? R&eacute;ponse {1:NUMERICAL:=3.90E+02:1.95E+01}</p><p>"}]
[null,{"$f":"CONCATENATE(\"\")","v":""}]
[]
[]
[]
[]
[]
[]
[]
[]
[]
[]
[]
[]
[]
[]
[]
[]
[]
[]
[]
[null,null,"r&eacute;colt&eacute;e<br />par \",V4._Raisin,\" personnes en \",V5._Raisin,\" jours de \",V6._Raisin,\"h ? R&eacute;ponse \",R1._Raisin,\"</p><p>"]

{"sheet":"RDT_Olives","index":8,"n_rows":41,"n_cols":9,"rows_kept":41,"cut":false,"hidden":false,"merged":[]}
["catégorie_Oliv","RDT_Olives",{"$f":"CONCATENATE(\"    <!--  question XLQ \", titre_Oliv, \"-->\")","v":"    <!--  question XLQ RDT_Olives_Oliv-->"},null,null,"Valeur Mini_Oliv","Valeur Maxi_Oliv","Sig. Digit_Oliv","Val Choix_Oliv"]
[null,"RDT_Olives_Oliv",{"$f":"CONCATENATE(\"    <question type=\",CHAR(34),\"category\",CHAR(34),\"><category><text>\", categorie_Oliv,\"</text></category></question>)\")","v":"    <question type=\"category\"><category><text>RDT_Olives</text></category></question>)"},null,"V1._Oliv",150,950,1,{"$f":"RANDBETWEEN(ValMini_Oliv*10^-SigDig_Oliv, ValMaxi_Oliv*10^-SigDig_Oliv)/10^-SigDig_Oliv","v":810}]
["Tag_Oliv","RDT_Olives_Oliv","    <question type=\"cloze\">"]
["idnumber_Oliv",{"$f":"TEXT(NOW(),\"aammjj-hhmmss.00\")","v":"210710-210621.92"},{"$f":"CONCATENATE(\"        <name><text>\", titre_Oliv, \"</text></name>\")","v":"        <name><text>RDT_Olives_Oliv</text></name>"},null,null,"Cible_Oliv","Toler_Oliv","PointsQuestion_Oliv"]
["points_Oliv",1,"        <questiontext format=\"html\">",null,"R1._Oliv",{"$f":"0.912*V1._Oliv*100/12/45","v":136.80000000000001},{"$f":" tolerance_Oliv*ValMini_Oliv","v":6.8400000000000007},1,{"$f":"CONCATENATE(\"{\",PointsQuestion_Oliv,\":NUMERICAL:=\",TEXT(Cible_Oliv,\"0.00E+00\"),\":\",TEXT(Tolere_Oliv,\"0.00E+00\"),\"}\")","v":"{1:NUMERICAL:=1.37E+02:6.84E+00}"}]
["tolérance_Oliv",0.05,{"$f":"CONCATENATE(\"            <text><![CDATA[<p>\", question_Oliv, \"</p>]]></text>\")","v":"            <text><![CDATA[<p> <p>Les olives donnent en moyenne 12% de leur poids d'huile. Un hectolitre d'olives<br />p&egrave;se 45 kg, et 1 litre d'huile p&egrave;se 912 grammes. Pour obtenir 810litres d'huile,<br />combien faut-ild'hectolitres d'olives ? R&eacute;ponse : {1:NUMERICAL:=1.37E+02:6.84E+00}</p><p></p>]]></text>"}]
["penalité_Oliv",0.1,"        </questiontext>"]
["feedback_Oliv","_",{"$f":"CONCATENATE(\"        <defaultgrade>\",points_Oliv,\"</defaultgrade><generalfeedback><text>\",feedback_Oliv,\"</text></generalfeedback><penalty>\",penalty_Oliv,\"</penalty><hidden>0</hidden>)\")","v":"        <defaultgrade>1</defaultgrade><generalfeedback><text>_</text></generalfeedback><penalty>0.1</penalty><hidden>0</hidden>)"}]
["Cellule vides_Oliv",{"$f":"COUNTBLANK(B1:B8)","v":0},{"$f":"CONCATENATE(\"        <idnumber>\",idnumber_Oliv,\"</idnumber><tags><tag><text>\",Tag_Oliv,\"</text></tag></tags>\")","v":"        <idnumber>210710-210621.92</idnumber><tags><tag><text>RDT_Olives_Oliv</text></tag></tags>"}]
["question format HTML_Oliv",{"$f":"CONCATENATE(\" \",B19,B20,B21)","v":" <p>Les olives donnent en moyenne 12% de leur poids d'huile. Un hectolitre d'olives<br />p&egrave;se 45 kg, et 1 litre d'huile p&egrave;se 912 grammes. Pour obtenir 810litres d'huile,<br />combien faut-ild'hectolitres d'olives ? R&eacute;ponse : {1:NUMERICAL:=1.37E+02:6.84E+00}</p><p>"},"    </question>"]
["Repere Var Rep","_Oliv"]
["HTML File ",{"$f":"CONCATENATE(categorie_Oliv,\"_HTML.txt\")","v":"RDT_Olives_HTML.txt"}]
["https://html-online.com/editor/"]
[]
[null,null,3]
["Var : ","#",1]
["Res : ","$",1]
[]
[null,{"$f":"CONCATENATE(\"<p>Les olives donnent en moyenne 12% de leur poids d'huile. Un hectolitre d'olives<br />p&egrave;se 45 kg, et 1 litre d'huile p&egrave;se 912 grammes. Pour obtenir \",V1._Oliv,\"litres d'huile,<br />combien faut-il\")","v":"<p>Les olives donnent en moyenne 12% de leur poids d'huile. Un hectolitre d'olives<br />p&egrave;se 45 kg, et 1 litre d'huile p&egrave;se 912 grammes. Pour obtenir 810litres d'huile,<br />combien faut-il"},"<p>Les olives donnent en moyenne 12% de leur poids d'huile. Un hectolitre d'olives<br />p&egrave;se 45 kg, et 1 litre d'huile p&egrave;se 912 grammes. Pour obtenir #1#litres d'huile,<br />combien faut-il d'hectolitres d'olives ? R&eacute;ponse : $1$</p>"]
[null,{"$f":"CONCATENATE(\"d'hectolitres d'olives ? R&eacute;ponse : \",R1._Oliv,\"</p><p>\")","v":"d'hectolitres d'olives ? R&eacute;ponse : {1:NUMERICAL:=1.37E+02:6.84E+00}</p><p>"}]
[null,{"$f":"CONCATENATE(\"\")","v":""}]
[]
[]
[]
[]
[]
[]
[]
[]
[]
[]
[]
[]
[]
[]
[]
[]
[]
[]
[]
[null,null,"d'hectolitres d'olives ? R&eacute;ponse : \",R1._Oliv,\"</p><p>"]

{"sheet":"RDT_Chevaux","index":9,"n_rows":22,"n_cols":14,"rows_kept":22,"cut":false,"hidden":false,"merged":[]}
["catégorie_Foin","RDT_Chevaux",{"$f":"CONCATENATE(\"    <!--  question XLQ \", titre_Foin, \"-->\")","v":"    <!--  question XLQ Chevaux_Foin-->"},null,null,"Valeur Mini_Foin","Valeur Maxi_Foin","Sig. Digit_Foin","Val Choix_Foin"]
[null,"Chevaux_Foin",{"$f":"CONCATENATE(\"    <question type=\",CHAR(34),\"category\",CHAR(34),\"><category><text>\", categorie_Foin,\"</text></category></question>)\")","v":"    <question type=\"category\"><category><text>RDT_Chevaux</text></category></question>)"},null,"V0._Foin",5,9,0,{"$f":"RANDBETWEEN(ValMini_Foin*10^-SigDig_Foin, ValMaxi_Foin*10^-SigDig_Foin)/10^-SigDig_Foin","v":8},"kg/che/jour","cachée"]
["Tag_Foin","Chevaux_Foin","    <question type=\"cloze\">",null,"V1._Foin","X","X","X",{"$f":"ROUND(V2._Foin*V3._Foin*I2/100,0)","v":67},"Quintaux","connu","Calcul",{"$f":"100*V1._Foin/(V2._Foin*V3._Foin)","v":8.0047789725209082},"kg/che/jour"]
["idnumber_Foin",{"$f":"TEXT(NOW(),\"aammjj-hhmmss.00\")","v":"210710-210621.92"},{"$f":"CONCATENATE(\"        <name><text>\", titre_Foin, \"</text></name>\")","v":"        <name><text>Chevaux_Foin</text></name>"},null,"V2._Foin",4,43,0,{"$f":"RANDBETWEEN(ValMini_Foin*10^-SigDig_Foin, ValMaxi_Foin*10^-SigDig_Foin)/10^-SigDig_Foin","v":27},"Chevaux ","connu","Ref",{"$f":"100*0.06493","v":6.4930000000000003}]
["points_Foin",1,"        <questiontext format=\"html\">",null,"V3._Foin",5,35,0,{"$f":"RANDBETWEEN(ValMini_Foin*10^-SigDig_Foin, ValMaxi_Foin*10^-SigDig_Foin)/10^-SigDig_Foin","v":31},"jours","connu"]
["tolérance_Foin",0.05,{"$f":"CONCATENATE(\"            <text><![CDATA[<p>\", question_Foin, \"</p>]]></text>\")","v":"            <text><![CDATA[<p> <p>Il faut 67 quintaux de foin pour nourrir 27 chevaux<br />pendant 31 jours ; combien la nourriture de 9 chevaux<br />pendant 6 jours exigera-t-elle de quintaux de foin ?&nbsp; {1:NUMERICAL:=4.32E+02:2.16E+01}&nbsp;</p><p><p>A</p><p>A quelle quantit&eacute; de foin par cheval et par jour cela correspond-il en kg ?{2:NUMERICAL:=8.00E+00:4.00E-01}</p><p>&nbsp;</p></p>]]></text>"},null,"V4._Foin",1,29,0,{"$f":"RANDBETWEEN(ValMini_Foin*10^-SigDig_Foin, ValMaxi_Foin*10^-SigDig_Foin)/10^-SigDig_Foin","v":9},"Chevaux ","cherche"]
["penalité_Foin",0.1,"        </questiontext>",null,"V5._Foin",1,52,0,{"$f":"RANDBETWEEN(ValMini_Foin*10^-SigDig_Foin, ValMaxi_Foin*10^-SigDig_Foin)/10^-SigDig_Foin","v":6},"jours","cherche"]
["feedback_Foin","_Plus_il_y_a_de_chevaux_plus_il_faut_de_quintaux_;_plus_il_s_ecoule_de_jours_plus_il_faut_de_quintaux_:_la_question_est_donc_bien_une_regle_de_trois_composee._La_proportionnalite_est_veriﬁee.",{"$f":"CONCATENATE(\"        <defaultgrade>\",points_Foin,\"</defaultgrade><generalfeedback><text>\",feedback_Foin,\"</text></generalfeedback><penalty>\",penalty_Foin,\"</penalty><hidden>0</hidden>)\")","v":"        <defaultgrade>1</defaultgrade><generalfeedback><text>_Plus_il_y_a_de_chevaux_plus_il_faut_de_quintaux_;_plus_il_s_ecoule_de_jours_plus_il_faut_de_quintaux_:_la_question_est_donc_bien_une_regle_de_trois_composee._La_proportionnalite_est_veriﬁee.</text></generalfeedback><penalty>0.1</penalty><hidden>0</hidden>)"}]
["Cellule vides_Foin",{"$f":"COUNTBLANK(B1:B8)","v":0},{"$f":"CONCATENATE(\"        <idnumber>\",idnumber_Foin,\"</idnumber><tags><tag><text>\",Tag_Foin,\"</text></tag></tags>\")","v":"        <idnumber>210710-210621.92</idnumber><tags><tag><text>Chevaux_Foin</text></tag></tags>"},null,null,"Cible_Foin","Toler_Foin","PointsQuestion_Foin"]
["question format HTML_Foin",{"$f":"CONCATENATE(\" \",B19,B20,B21,B22)","v":" <p>Il faut 67 quintaux de foin pour nourrir 27 chevaux<br />pendant 31 jours ; combien la nourriture de 9 chevaux<br />pendant 6 jours exigera-t-elle de quintaux de foin ?&nbsp; {1:NUMERICAL:=4.32E+02:2.16E+01}&nbsp;</p><p><p>A</p><p>A quelle quantit&eacute; de foin par cheval et par jour cela correspond-il en kg ?{2:NUMERICAL:=8.00E+00:4.00E-01}</p><p>&nbsp;</p>"},"    </question>",null,"R1._Foin",{"$f":"M3*V4._Foin*V5._Foin","v":432.25806451612902},{"$f":" tolerance_Foin*ValMini_Foin","v":21.612903225806452},1,{"$f":"CONCATENATE(\"{\",PointsQuestion_Foin,\":NUMERICAL:=\",TEXT(Cible_Foin,\"0.00E+00\"),\":\",TEXT(Tolere_Foin,\"0.00E+00\"),\"}\")","v":"{1:NUMERICAL:=4.32E+02:2.16E+01}"}]
["Repere Var Rep","_Foin",null,null,"R2._Foin",{"$f":"M3","v":8.0047789725209082},{"$f":" tolerance_Foin*ValMini_Foin","v":0.40023894862604542},2,{"$f":"CONCATENATE(\"{\",PointsQuestion_Foin,\":NUMERICAL:=\",TEXT(Cible_Foin,\"0.00E+00\"),\":\",TEXT(Tolere_Foin,\"0.00E+00\"),\"}\")","v":"{2:NUMERICAL:=8.00E+00:4.00E-01}"}]
["HTML File ",{"$f":"CONCATENATE(categorie_Foin,\"_HTML.txt\")","v":"RDT_Chevaux_HTML.txt"}]
["https://html-online.com/editor/"]
[]
[null,null,7]
["Var : ","#",5]
["Res : ","$",2]
[]
[null,{"$f":"CONCATENATE(\"<p>Il faut \",V1._Foin,\" quintaux de foin pour nourrir \",V2._Foin,\" chevaux<br />pendant \",V3._Foin,\" jours ; combien la nourriture de \",V4._Foin,\" chevaux<br />pendant \",V5._Foin,\" jours exigera-t-elle de quintaux de foin ?&nbsp; \",R1._Foin,\"&nbsp;</p><p><p>A</p><p>A quelle quantit&eacute; de foin par cheval et par jour cela correspond-il en kg ?\",R2._Foin,\"</p><p>&nbsp;</p>\")","v":"<p>Il faut 67 quintaux de foin pour nourrir 27 chevaux<br />pendant 31 jours ; combien la nourriture de 9 chevaux<br />pendant 6 jours exigera-t-elle de quintaux de foin ?&nbsp; {1:NUMERICAL:=4.32E+02:2.16E+01}&nbsp;</p><p><p>A</p><p>A quelle quantit&eacute; de foin par cheval et par jour cela correspond-il en kg ?{2:NUMERICAL:=8.00E+00:4.00E-01}</p><p>&nbsp;</p>"},"<p>Il faut 15#1# quintaux de foin pour nourrir 11#2# chevaux<br />pendant #3#21 jours ; combien la nourriture de #4#17 chevaux<br />pendant #5#35 jours exigera-t-elle de quintaux de foin ?&nbsp; $1$&nbsp;</p>"]
[null,null,"<p>A quelle quantit&eacute; de foin par cheval et par jours cela correspond-il en kg ? $2$</p>"]
[null,{"$f":"CONCATENATE(\"\")","v":""},"<p>&nbsp;</p>"]
[null,{"$f":"CONCATENATE(\"\")","v":""}]

{"sheet":"RDT_Poules","index":10,"n_rows":41,"n_cols":9,"rows_kept":41,"cut":false,"hidden":false,"merged":[]}
["catégorie_Poule","RDT_Poules",{"$f":"CONCATENATE(\"    <!--  question XLQ \", titre_Poule, \"-->\")","v":"    <!--  question XLQ RDT_Poules_Poule-->"},null,null,"Valeur Mini_Poule","Valeur Maxi_Poule","Sig. Digit_Poule","Val Choix_Poule"]
[null,"RDT_Poules_Poule",{"$f":"CONCATENATE(\"    <question type=\",CHAR(34),\"category\",CHAR(34),\"><category><text>\", categorie_Poule,\"</text></category></question>)\")","v":"    <question type=\"category\"><category><text>RDT_Poules</text></category></question>)"},null,"V1._Poule",2,150,0,{"$f":"RANDBETWEEN(ValMini_Poule*10^-SigDig_Poule, ValMaxi_Poule*10^-SigDig_Poule)/10^-SigDig_Poule","v":6}]
["Tag_Poule","RDT_Poules_Poule","    <question type=\"cloze\">",null,"V2._Poule",3,39,0,{"$f":"RANDBETWEEN(ValMini_Poule*10^-SigDig_Poule, ValMaxi_Poule*10^-SigDig_Poule)/10^-SigDig_Poule","v":32}]
["idnumber_Poule",{"$f":"TEXT(NOW(),\"aammjj-hhmmss.00\")","v":"210710-210621.92"},{"$f":"CONCATENATE(\"        <name><text>\", titre_Poule, \"</text></name>\")","v":"        <name><text>RDT_Poules_Poule</text></name>"}]
["points_Poule",1,"        <questiontext format=\"html\">",null,null,"Cible_Poule","Toler_Poule","PointsQuestion_Poule"]
["tolérance_Poule",0.05,{"$f":"CONCATENATE(\"            <text><![CDATA[<p>\", question_Poule, \"</p>]]></text>\")","v":"            <text><![CDATA[<p> <p>S'il faut une poule et demi pour pondre un oeuf et demi en un jour et demi, combien 6 poules pondront-elles d'oeufs en 32 jours ? {1:NUMERICAL:=1.28E+02:6.40E+00}</p><p><p>&nbsp;</p><p></p>]]></text>"},null,"R1._Poule",{"$f":"V1._Poule*V2._Poule*2/3","v":128},{"$f":" tolerance_Poule*ValMini_Poule","v":6.4},1,{"$f":"CONCATENATE(\"{\",PointsQuestion_Poule,\":NUMERICAL:=\",TEXT(Cible_Poule,\"0.00E+00\"),\":\",TEXT(Tolere_Poule,\"0.00E+00\"),\"}\")","v":"{1:NUMERICAL:=1.28E+02:6.40E+00}"}]
["penalité_Poule",0.1,"        </questiontext>"]
["feedback_Poule","_",{"$f":"CONCATENATE(\"        <defaultgrade>\",points_Poule,\"</defaultgrade><generalfeedback><text>\",feedback_Poule,\"</text></generalfeedback><penalty>\",penalty_Poule,\"</penalty><hidden>0</hidden>)\")","v":"        <defaultgrade>1</defaultgrade><generalfeedback><text>_</text></generalfeedback><penalty>0.1</penalty><hidden>0</hidden>)"}]
["Cellule vides_Poule",{"$f":"COUNTBLANK(B1:B8)","v":0},{"$f":"CONCATENATE(\"        <idnumber>\",idnumber_Poule,\"</idnumber><tags><tag><text>\",Tag_Poule,\"</text></tag></tags>\")","v":"        <idnumber>210710-210621.92</idnumber><tags><tag><text>RDT_Poules_Poule</text></tag></tags>"}]
["question format HTML_Poule",{"$f":"CONCATENATE(\" \",B19,B20)","v":" <p>S'il faut une poule et demi pour pondre un oeuf et demi en un jour et demi, combien 6 poules pondront-elles d'oeufs en 32 jours ? {1:NUMERICAL:=1.28E+02:6.40E+00}</p><p><p>&nbsp;</p><p>"},"    </question>"]
["Repere Var Rep","_Poule"]
["HTML File ",{"$f":"CONCATENATE(categorie_Poule,\"_HTML.txt\")","v":"RDT_Poules_HTML.txt"}]
["https://html-online.com/editor/"]
[]
[null,null,4]
["Var : ","#",2]
["Res : ","$",1]
[]
[null,{"$f":"CONCATENATE(\"<p>S'il faut une poule et demi pour pondre un oeuf et demi en un jour et demi, combien \",V1._Poule,\" poules pondront-elles d'oeufs en \",V2._Poule,\" jours ? \",R1._Poule,\"</p><p><p>&nbsp;</p><p>\")","v":"<p>S'il faut une poule et demi pour pondre un oeuf et demi en un jour et demi, combien 6 poules pondront-elles d'oeufs en 32 jours ? {1:NUMERICAL:=1.28E+02:6.40E+00}</p><p><p>&nbsp;</p><p>"},"<p>S'il faut une poule et demi pour pondre un oeuf et demi en un jour et demi, combien #1# poules pondront-elles d'oeufs en #2# jours ? $1$</p>"]
[null,{"$f":"CONCATENATE(\"\")","v":""},"<p>&nbsp;</p>"]
[]
[]
[]
[]
[]
[]
[]
[]
[]
[]
[]
[]
[]
[]
[]
[]
[]
[]
[]
[]
[null,null,"<p>S'il faut une poule et demi pour pondre un oeuf et demi en un jour et demi, combien \",V1._Poule,\" poules pondront-elles d'oeufs en \",V2._Poule,\" jours ? \",R1._Poule,\"</p><p><p>&nbsp;</p><p>"]

{"sheet":"RDT_Desherbe","index":11,"n_rows":24,"n_cols":22,"rows_kept":24,"cut":false,"hidden":false,"merged":[]}
["catégorie_deshe","RDT_Desherbe",{"$f":"CONCATENATE(\"    <!--  question XLQ \", titre_deshe, \"-->\")","v":"    <!--  question XLQ RDT_Desherbe_deshe-->"},null,null,"Valeur Mini_deshe","Valeur Maxi_deshe","Sig. Digit_deshe","Val Choix_deshe"]
[null,"RDT_Desherbe_deshe",{"$f":"CONCATENATE(\"    <question type=\",CHAR(34),\"category\",CHAR(34),\"><category><text>\", categorie_deshe,\"</text></category></question>)\")","v":"    <question type=\"category\"><category><text>RDT_Desherbe</text></category></question>)"},null,"V1._deshe",4,15,0,{"$f":"RANDBETWEEN(ValMini_deshe*10^-SigDig_deshe, ValMaxi_deshe*10^-SigDig_deshe)/10^-SigDig_deshe","v":9},"pers",null,null,null,null,null,null,"V1._deshe",1,15,0,4,"pers"]
["Tag_deshe","RDT_Desherbe_deshe","    <question type=\"cloze\">",null,"V2._deshe",2,15,0,{"$f":"RANDBETWEEN(ValMini_deshe*10^-SigDig_deshe, ValMaxi_deshe*10^-SigDig_deshe)/10^-SigDig_deshe","v":3},"j",{"$f":"V4._deshe*V5._deshe/(V1._deshe*V2._deshe*V3._deshe)","v":222.22380952380951},1,"m2/h/per",null,null,null,"V2._deshe",2,15,0,15,"j"]
["idnumber_deshe",{"$f":"TEXT(NOW(),\"aammjj-hhmmss.00\")","v":"210710-210621.92"},{"$f":"CONCATENATE(\"        <name><text>\", titre_deshe, \"</text></name>\")","v":"        <name><text>RDT_Desherbe_deshe</text></name>"},null,"V3._deshe",6,9,0,{"$f":"RANDBETWEEN(ValMini_deshe*10^-SigDig_deshe, ValMaxi_deshe*10^-SigDig_deshe)/10^-SigDig_deshe","v":7},"h",null,null,null,null,null,null,"V3._deshe",6,9,0,9,"h"]
["points_deshe",1,"        <questiontext format=\"html\">",null,"V4._deshe",{"$f":"20000/(V3._deshe*V2._deshe)","v":952.38095238095241},{"$f":"4*F5","v":3809.5238095238096},0,{"$f":"RANDBETWEEN(ValMini_deshe*10^-SigDig_deshe, ValMaxi_deshe*10^-SigDig_deshe)/10^-SigDig_deshe","v":2029},"long",{"$f":"1/K3","v":4.4999678573724479E-3},"surface avant",{"$f":"V4._deshe*V5._deshe","v":42000.299999999996},{"$f":"M5/M6","v":222.22380952380951},null,null,"V4._deshe",1.5873015873015872,6.3492063492063489,0,3,"long"]
["tolérance_deshe",0.05,{"$f":"CONCATENATE(\"            <text><![CDATA[<p>\", question_deshe, \"</p>]]></text>\")","v":"            <text><![CDATA[<p> <p>9 jardiniers d&eacute;sherbent manuellement en&nbsp;3 jours de&nbsp;7 heures de travail un<br />champ de&nbsp;2029 m de long et&nbsp;20.7 m de large. Combien faudra-t-il, &agrave; ce rythme,<br/>de jours de&nbsp;20.7 heures &agrave;&nbsp;8 personnes pour faire&nbsp;8 &times;&nbsp;3317 m<sup>2</sup> de jardin ? {1:NUMERICAL:=4.90E+00:2.45E-01}</p><p></p>]]></text>"},null,"V5._deshe",10,30,0,{"$f":"ROUND(Vitesse_Desherbe*V4._deshe/(V3._deshe*V2._deshe*V1._deshe),1)+10","v":20.7},"large",null,"heure avant",{"$f":"V1._deshe*V2._deshe*V3._deshe","v":189},null,null,null,"V5._deshe",10,30,0,6.6137566137566134E-3,"large"]
["penalité_deshe",0.1,"        </questiontext>",null,"V6._deshe",{"$f":"V3._deshe-2","v":5},{"$f":"V3._deshe+1","v":8},0,{"$f":"RANDBETWEEN(ValMini_deshe*10^-SigDig_deshe, ValMaxi_deshe*10^-SigDig_deshe)/10^-SigDig_deshe","v":8},"h",null,"surface après",{"$f":"V9._deshe*V8._deshe","v":69657},{"$f":"M7/M8","v":222.12053571428569},null,null,"V6._deshe",8,8,0,8,"h"]
["feedback_deshe","_",{"$f":"CONCATENATE(\"        <defaultgrade>\",points_deshe,\"</defaultgrade><generalfeedback><text>\",feedback_deshe,\"</text></generalfeedback><penalty>\",penalty_deshe,\"</penalty><hidden>0</hidden>)\")","v":"        <defaultgrade>1</defaultgrade><generalfeedback><text>_</text></generalfeedback><penalty>0.1</penalty><hidden>0</hidden>)"},null,"V7._deshe",{"$f":"V1._deshe-3","v":6},{"$f":"V1._deshe+3","v":12},0,{"$f":"RANDBETWEEN(ValMini_deshe*10^-SigDig_deshe, ValMaxi_deshe*10^-SigDig_deshe)/10^-SigDig_deshe","v":8},"pers",null,"h après",{"$f":"V6._deshe*V7._deshe*F13","v":313.60000000000002},null,null,null,"V7._deshe",10,10,0,10,"pers"]
["Cellule vides_deshe",{"$f":"COUNTBLANK(B1:B8)","v":0},{"$f":"CONCATENATE(\"        <idnumber>\",idnumber_deshe,\"</idnumber><tags><tag><text>\",Tag_deshe,\"</text></tag></tags>\")","v":"        <idnumber>210710-210621.92</idnumber><tags><tag><text>RDT_Desherbe_deshe</text></tag></tags>"},null,"V8._deshe",{"$f":"AVERAGE(F5,V4._deshe)","v":1490.6904761904761},{"$f":"G5","v":3809.5238095238096},0,{"$f":"RANDBETWEEN(ValMini_deshe*10^-SigDig_deshe, ValMaxi_deshe*10^-SigDig_deshe)/10^-SigDig_deshe","v":3317},"long",null,null,null,null,null,null,"V8._deshe",100,300,0,179,"long"]
["question format HTML_deshe",{"$f":"CONCATENATE(\" \",B19,B20,B21,B22)","v":" <p>9 jardiniers d&eacute;sherbent manuellement en&nbsp;3 jours de&nbsp;7 heures de travail un<br />champ de&nbsp;2029 m de long et&nbsp;20.7 m de large. Combien faudra-t-il, &agrave; ce rythme,<br/>de jours de&nbsp;20.7 heures &agrave;&nbsp;8 personnes pour faire&nbsp;8 &times;&nbsp;3317 m<sup>2</sup> de jardin ? {1:NUMERICAL:=4.90E+00:2.45E-01}</p><p>"},"    </question>",null,"V9._deshe",{"$f":"V5._deshe-2","v":18.7},{"$f":"V5._deshe+2","v":22.7},0,{"$f":"RANDBETWEEN(ValMini_deshe*10^-SigDig_deshe, ValMaxi_deshe*10^-SigDig_deshe)/10^-SigDig_deshe","v":21},"large",null,null,null,null,null,null,"V9._deshe",10,30,0,21,"large"]
["Repere Var Rep","_deshe"]
["HTML File ",{"$f":"CONCATENATE(categorie_deshe,\"_HTML.txt\")","v":"RDT_Desherbe_HTML.txt"},null,null,null,"Cible_deshe","Toler_deshe","PointsQuestion_deshe"]
["https://html-online.com/editor/",null,null,null,"R1._deshe",{"$f":"ROUND(V2._deshe*V1._deshe*V3._deshe/V6._deshe/V7._deshe*V8._deshe*V9._deshe/V4._deshe/V5._deshe,2)","v":4.9000000000000004},{"$f":" tolerance_deshe*ValMini_deshe","v":0.24500000000000002},1,{"$f":"CONCATENATE(\"{\",PointsQuestion_deshe,\":NUMERICAL:=\",TEXT(Cible_deshe,\"0.00E+00\"),\":\",TEXT(Tolere_deshe,\"0.00E+00\"),\"}\")","v":"{1:NUMERICAL:=4.90E+00:2.45E-01}"}]
[]
[null,null,10,null,null,null,null,null,null,null,null,null,"W real total ref",null,{"$f":"V1._deshe*V2._deshe*V3._deshe","v":189},null,"W real total 2",{"$f":"V6._deshe*V7._deshe*F13","v":313.60000000000002}]
["Var : ","#",8,null,null,null,null,null,null,null,null,null,"W a faire ref",null,{"$f":"V5._deshe*V4._deshe","v":42000.299999999996},null,"W a faire 2",{"$f":"V9._deshe*V8._deshe","v":69657}]
["Res : ","$",1,null,null,null,null,null,null,null,null,null,null,null,{"$f":"O15/O16","v":4.4999678573724479E-3},null,null,{"$f":"R15/R16","v":4.5020600944628685E-3},null,{"$f":"IF(O17-R17<0.1,\"OK !\",\"Pb!!!!!!!!\")","v":"OK !"}]
[]
[null,{"$f":"CONCATENATE(\"<p>\",V1._deshe,\" jardiniers d&eacute;sherbent manuellement en&nbsp;\",V2._deshe,\" jours de&nbsp;\",V3._deshe,\" heures de travail un<br />champ de&nbsp;\",V4._deshe,\" m de long et&nbsp;\",V5._deshe,\" m de large. Combien faudra-t-il, &agrave; ce rythme,<br\")","v":"<p>9 jardiniers d&eacute;sherbent manuellement en&nbsp;3 jours de&nbsp;7 heures de travail un<br />champ de&nbsp;2029 m de long et&nbsp;20.7 m de large. Combien faudra-t-il, &agrave; ce rythme,<br"},"<p>#1# jardiniers d&eacute;sherbent manuellement en&nbsp;#2# jours de&nbsp;#3# heures de travail un<br />champ de&nbsp;#4# m de long et&nbsp;#5# m de large. Combien faudra-t-il, &agrave; ce rythme,<br />de jours de&nbsp;#5# heures &agrave;&nbsp;#6# personnes pour faire&nbsp;#7# &times;&nbsp;#8# m<sup>2</sup> de jardin ? $1$</p>"]
[null,{"$f":"CONCATENATE(\"/>de jours de&nbsp;\",V5._deshe,\" heures &agrave;&nbsp;\",V6._deshe,\" personnes pour faire&nbsp;\",V7._deshe,\" &times;&nbsp;\",V8._deshe,\" m<sup>2</sup> de jardin ? \",R1._deshe,\"</p><p>\")","v":"/>de jours de&nbsp;20.7 heures &agrave;&nbsp;8 personnes pour faire&nbsp;8 &times;&nbsp;3317 m<sup>2</sup> de jardin ? {1:NUMERICAL:=4.90E+00:2.45E-01}</p><p>"}]
[null,{"$f":"CONCATENATE(\"\")","v":""}]
[null,{"$f":"CONCATENATE(\"\")","v":""},null,null,null,null,null,null,null,null,"per","j","h","L","lar"]
[null,null,null,null,null,null,null,null,null,null,{"$f":"V1._deshe","v":9},{"$f":"V2._deshe","v":3},{"$f":"V3._deshe","v":7},{"$f":"V4._deshe","v":2029},{"$f":"V5._deshe","v":20.7}]
[null,null,null,null,null,null,null,null,null,null,{"$f":"V7._deshe","v":8},{"$f":"ROUND(F13,2)","v":4.9000000000000004},{"$f":"V6._deshe","v":8},{"$f":"V8._deshe","v":3317},{"$f":"V9._deshe","v":21}]

{"sheet":"RDT_Pont","index":12,"n_rows":41,"n_cols":14,"rows_kept":41,"cut":false,"hidden":false,"merged":[]}
["catégorie_pont","RDT_Pont",{"$f":"CONCATENATE(\"    <!--  question XLQ \", titre_pont, \"-->\")","v":"    <!--  question XLQ RDT_Pont_pont-->"},null,null,"Valeur Mini_pont","Valeur Maxi_pont","Sig. Digit_pont","Val Choix_pont"]
[null,"RDT_Pont_pont",{"$f":"CONCATENATE(\"    <question type=\",CHAR(34),\"category\",CHAR(34),\"><category><text>\", categorie_pont,\"</text></category></question>)\")","v":"    <question type=\"category\"><category><text>RDT_Pont</text></category></question>)"},null,"V1._pont",0.1,0.8,-1,{"$f":"RANDBETWEEN(ValMini_pont*10^-SigDig_pont, ValMaxi_pont*10^-SigDig_pont)/10^-SigDig_pont","v":0.1},"% du travail",null,"vitesse de travail",{"$f":"V1._pont/(V3._pont*V2._pont)","v":3.1055900621118014E-4},"pont / #.h"]
["Tag_pont","RDT_Pont_pont","    <question type=\"cloze\">",null,"V2._pont",7,20,0,{"$f":"RANDBETWEEN(ValMini_pont*10^-SigDig_pont, ValMaxi_pont*10^-SigDig_pont)/10^-SigDig_pont","v":7},"# hommes",null,"ressource",{"$f":"V3._pont*V2._pont/V1._pont","v":3220},"#.H / pont"]
["idnumber_pont",{"$f":"TEXT(NOW(),\"aammjj-hhmmss.00\")","v":"210710-210621.92"},{"$f":"CONCATENATE(\"        <name><text>\", titre_pont, \"</text></name>\")","v":"        <name><text>RDT_Pont_pont</text></name>"},null,"V3._pont",5,125,null,{"$f":"RANDBETWEEN(ValMini_pont*10^-SigDig_pont, ValMaxi_pont*10^-SigDig_pont)/10^-SigDig_pont","v":46},"temps"]
["points_pont",1,"        <questiontext format=\"html\">",null,"V4._pont",1,{"$f":"V2._pont-3","v":4},null,{"$f":"RANDBETWEEN(ValMini_pont*10^-SigDig_pont, ValMaxi_pont*10^-SigDig_pont)/10^-SigDig_pont","v":2},"congédiés",null,"rest"]
["tolérance_pont",0.05,{"$f":"CONCATENATE(\"            <text><![CDATA[<p>\", question_pont, \"</p>]]></text>\")","v":"            <text><![CDATA[<p> <p>Pour paver 10% d&rsquo;un pont, 7 hommes ont pris 46 heures. Si 2 d&rsquo;entre eux sont cong&eacute;di&eacute;s, en combien de temps le pont&nbsp;sera-t-il termin&eacute; ?&nbsp; {1:NUMERICAL:=5.80E+02:2.90E+01}</p><p></p>]]></text>"},null,"V5._pont",null,null,null,{"$f":"RANDBETWEEN(ValMini_pont*10^-SigDig_pont, ValMaxi_pont*10^-SigDig_pont)/10^-SigDig_pont","v":0}]
["penalité_pont",0.1,"        </questiontext>"]
["feedback_pont","_",{"$f":"CONCATENATE(\"        <defaultgrade>\",points_pont,\"</defaultgrade><generalfeedback><text>\",feedback_pont,\"</text></generalfeedback><penalty>\",penalty_pont,\"</penalty><hidden>0</hidden>)\")","v":"        <defaultgrade>1</defaultgrade><generalfeedback><text>_</text></generalfeedback><penalty>0.1</penalty><hidden>0</hidden>)"},null,null,"Cible_pont","Toler_pont","PointsQuestion_pont"]
["Cellule vides_pont",{"$f":"COUNTBLANK(B1:B8)","v":0},{"$f":"CONCATENATE(\"        <idnumber>\",idnumber_pont,\"</idnumber><tags><tag><text>\",Tag_pont,\"</text></tag></tags>\")","v":"        <idnumber>210710-210621.92</idnumber><tags><tag><text>RDT_Pont_pont</text></tag></tags>"},null,"R1._pont",{"$f":"V3._pont*V2._pont/(V2._pont-V4._pont)*(1-V1._pont)/V1._pont","v":579.6},{"$f":" tolerance_pont*ValMini_pont","v":28.980000000000004},1,{"$f":"CONCATENATE(\"{\",PointsQuestion_pont,\":NUMERICAL:=\",TEXT(Cible_pont,\"0.00E+00\"),\":\",TEXT(Tolere_pont,\"0.00E+00\"),\"}\")","v":"{1:NUMERICAL:=5.80E+02:2.90E+01}"}]
["question format HTML_pont",{"$f":"CONCATENATE(\" \",B19,B20)","v":" <p>Pour paver 10% d&rsquo;un pont, 7 hommes ont pris 46 heures. Si 2 d&rsquo;entre eux sont cong&eacute;di&eacute;s, en combien de temps le pont&nbsp;sera-t-il termin&eacute; ?&nbsp; {1:NUMERICAL:=5.80E+02:2.90E+01}</p><p>"},"    </question>"]
["Repere Var Rep","_pont"]
["HTML File ",{"$f":"CONCATENATE(categorie_pont,\"_HTML.txt\")","v":"RDT_Pont_HTML.txt"},null,null,null,null,null,null,null,null,"total à tous",{"$f":"V3._pont/V1._pont","v":460}]
["https://html-online.com/editor/",null,null,null,null,null,null,null,null,null,"ratio bonhommes",{"$f":"L12*(1-V1._pont)*V2._pont/(V2._pont-V4._pont)","v":579.6}]
[]
[null,null,7]
["Var : ","#",5]
["Res : ","$",1]
[]
[null,{"$f":"CONCATENATE(\"<p>Pour paver \",100*V1._pont,\"% d&rsquo;un pont, \",V2._pont,\" hommes ont pris \",V3._pont,\" heures. Si \",V4._pont,\" d&rsquo;entre eux sont cong&eacute;di&eacute;s, en combien de temps le pont&nbsp;sera-t-il termin&eacute; ?&nbsp; \",R1._pont,\"</p><p>\")","v":"<p>Pour paver 10% d&rsquo;un pont, 7 hommes ont pris 46 heures. Si 2 d&rsquo;entre eux sont cong&eacute;di&eacute;s, en combien de temps le pont&nbsp;sera-t-il termin&eacute; ?&nbsp; {1:NUMERICAL:=5.80E+02:2.90E+01}</p><p>"},"<p>Pour paver #1# d&rsquo;un pont, #2# hommes ont pris #3# heures. Si #4# d&rsquo;entre eux sont cong&eacute;di&eacute;s, en combien de temps le pont&nbsp;sera-t-il termin&eacute; ?&nbsp; $1$</p>"]
[null,{"$f":"CONCATENATE(\"\")","v":""}]
[]
[]
[]
[]
[]
[]
[]
[]
[]
[]
[]
[]
[]
[]
[]
[]
[]
[]
[]
[]
[null,null,"<p>Pour paver \",V1._pont,\" d&rsquo;un pont, \",V2._pont,\" hommes ont pris \",V3._pont,\" heures. Si \",V4._pont,\" d&rsquo;entre eux sont cong&eacute;di&eacute;s, en combien de temps le pont&nbsp;sera-t-il termin&eacute; ?&nbsp; \",R1._pont,\"</p><p>"]

{"sheet":"RDT_Piscine","index":13,"n_rows":22,"n_cols":12,"rows_kept":22,"cut":false,"hidden":false,"merged":[]}
["catégorie_Pisc","RDT_Piscine",{"$f":"CONCATENATE(\"    <!--  question XLQ \", titre_Pisc, \"-->\")","v":"    <!--  question XLQ RDT_Piscine_Pisc-->"},null,null,"Valeur Mini_Pisc","Valeur Maxi_Pisc","Sig. Digit_Pisc","Val Choix_Pisc"]
[null,"RDT_Piscine_Pisc",{"$f":"CONCATENATE(\"    <question type=\",CHAR(34),\"category\",CHAR(34),\"><category><text>\", categorie_Pisc,\"</text></category></question>)\")","v":"    <question type=\"category\"><category><text>RDT_Piscine</text></category></question>)"},null,"V1.Volume_Pisc",1234,60000,-2,{"$f":"RANDBETWEEN(ValMini_Pisc*10^-SigDig_Pisc, ValMaxi_Pisc*10^-SigDig_Pisc)/10^-SigDig_Pisc","v":7755.58},"L",null,"débit rob"]
["Tag_Pisc","RDT_Piscine_Pisc","    <question type=\"cloze\">",null,"V2.RobiAv_Pisc",1,4,0,{"$f":"RANDBETWEEN(ValMini_Pisc*10^-SigDig_Pisc, ValMaxi_Pisc*10^-SigDig_Pisc)/10^-SigDig_Pisc","v":3},"# robi"]
["idnumber_Pisc",{"$f":"TEXT(NOW(),\"aammjj-hhmmss.00\")","v":"210710-210621.92"},{"$f":"CONCATENATE(\"        <name><text>\", titre_Pisc, \"</text></name>\")","v":"        <name><text>RDT_Piscine_Pisc</text></name>"},null,"V3.TempsAv_Pisc",null,null,null,{"$f":"ROUND(V1.Volume_Pisc/K6,0)","v":9},"H"]
["points_Pisc",1,"        <questiontext format=\"html\">",null,"V4.RobiAp_Pisc",{"$f":"V2.RobiAv_Pisc","v":3},{"$f":"F5+4","v":7},1,{"$f":"V2.RobiAv_Pisc+RANDBETWEEN(F5,G5)","v":7},"#robi"]
["tolérance_Pisc",0.05,{"$f":"CONCATENATE(\"            <text><![CDATA[<p>\", question_Pisc, \"</p>]]></text>\")","v":"            <text><![CDATA[<p> <p>Luc vient de s&rsquo;acheter une piscine qui contient 7755.58 litres d&rsquo;eau. Un ami lui a dit que s&rsquo;il pouvait se brancher sur 3 robinets, il remplirait sa piscine&nbsp;en 9 heures. Avec la collaboration de ses voisins, il pense pouvoir brancher 7 robinets. Combien de temps lui faudra-t-il pour remplir sa&nbsp;piscine ? {1:NUMERICAL:=3.86E+00:1.93E-01}</p><p></p>]]></text>"},null,"V4.Debit_Pisc",3,15,0,{"$f":"RANDBETWEEN(ValMini_Pisc*10^-SigDig_Pisc, ValMaxi_Pisc*10^-SigDig_Pisc)/10^-SigDig_Pisc","v":15},"L/min",{"$f":"V4.Debit_Pisc*60","v":900},"L/h"]
["penalité_Pisc",0.1,"        </questiontext>"]
["feedback_Pisc","_",{"$f":"CONCATENATE(\"        <defaultgrade>\",points_Pisc,\"</defaultgrade><generalfeedback><text>\",feedback_Pisc,\"</text></generalfeedback><penalty>\",penalty_Pisc,\"</penalty><hidden>0</hidden>)\")","v":"        <defaultgrade>1</defaultgrade><generalfeedback><text>_</text></generalfeedback><penalty>0.1</penalty><hidden>0</hidden>)"},null,null,"Cible_Pisc","Toler_Pisc","PointsQuestion_Pisc"]
["Cellule vides_Pisc",{"$f":"COUNTBLANK(B1:B8)","v":0},{"$f":"CONCATENATE(\"        <idnumber>\",idnumber_Pisc,\"</idnumber><tags><tag><text>\",Tag_Pisc,\"</text></tag></tags>\")","v":"        <idnumber>210710-210621.92</idnumber><tags><tag><text>RDT_Piscine_Pisc</text></tag></tags>"},null,"R1.TempsAp_Pisc",{"$f":"V3.TempsAv_Pisc*V2.RobiAv_Pisc/V4.RobiAp_Pisc","v":3.8571428571428572},{"$f":" tolerance_Pisc*ValMini_Pisc","v":0.19285714285714287},1,{"$f":"CONCATENATE(\"{\",PointsQuestion_Pisc,\":NUMERICAL:=\",TEXT(Cible_Pisc,\"0.00E+00\"),\":\",TEXT(Tolere_Pisc,\"0.00E+00\"),\"}\")","v":"{1:NUMERICAL:=3.86E+00:1.93E-01}"}]
["question format HTML_Pisc",{"$f":"CONCATENATE(\" \",B19,B20,B21,B22)","v":" <p>Luc vient de s&rsquo;acheter une piscine qui contient 7755.58 litres d&rsquo;eau. Un ami lui a dit que s&rsquo;il pouvait se brancher sur 3 robinets, il remplirait sa piscine&nbsp;en 9 heures. Avec la collaboration de ses voisins, il pense pouvoir brancher 7 robinets. Combien de temps lui faudra-t-il pour remplir sa&nbsp;piscine ? {1:NUMERICAL:=3.86E+00:1.93E-01}</p><p>"},"    </question>"]
["Repere Var Rep","_Pisc"]
["HTML File ",{"$f":"CONCATENATE(categorie_Pisc,\"_HTML.txt\")","v":"RDT_Piscine_HTML.txt"}]
["https://html-online.com/editor/"]
[]
[null,null,6]
["Var : ","#",4]
["Res : ","$",1]
[]
[null,{"$f":"CONCATENATE(\"<p>Luc vient de s&rsquo;acheter une piscine qui contient \",V1.Volume_Pisc,\" litres d&rsquo;eau. Un ami lui a dit que s&rsquo;il pouvait se brancher sur \",V2.RobiAv_Pisc,\" robinets, il remplirait sa piscine&nbsp;en \",V3.TempsAv_Pisc,\" heures. Avec \")","v":"<p>Luc vient de s&rsquo;acheter une piscine qui contient 7755.58 litres d&rsquo;eau. Un ami lui a dit que s&rsquo;il pouvait se brancher sur 3 robinets, il remplirait sa piscine&nbsp;en 9 heures. Avec "},"<p>Luc vient de s&rsquo;acheter une piscine qui contient #1# litres d&rsquo;eau. Un ami lui a dit que s&rsquo;il pouvait se brancher sur #2# robinets, il remplirait sa piscine&nbsp;en #3# heures. Avec la collaboration de ses voisins, il pense pouvoir se brancher sur #4# robinets. Combien de temps lui faudra-t-il pour remplir sa&nbsp;piscine ? $1$</p>"]
[null,{"$f":"CONCATENATE(\"la collaboration de ses voisins, il pense pouvoir brancher \",V4.RobiAp_Pisc,\" robinets. Combien de temps lui faudra-t-il pour remplir sa&nbsp;piscine ? \",R1.TempsAp_Pisc,\"</p><p>\")","v":"la collaboration de ses voisins, il pense pouvoir brancher 7 robinets. Combien de temps lui faudra-t-il pour remplir sa&nbsp;piscine ? {1:NUMERICAL:=3.86E+00:1.93E-01}</p><p>"}]
[null,{"$f":"CONCATENATE(\"\")","v":""}]
[null,{"$f":"CONCATENATE(\"\")","v":""}]

{"sheet":"RDT_Tempete","index":14,"n_rows":41,"n_cols":17,"rows_kept":41,"cut":false,"hidden":false,"merged":[]}
["catégorie_tempete","RDT_Tempete",{"$f":"CONCATENATE(\"    <!--  question XLQ \", titre_tempete, \"-->\")","v":"    <!--  question XLQ RDt_Tempete_tempete-->"},null,null,"Valeur Mini_tempete","Valeur Maxi_tempete","Sig. Digit_tempete","Val Choix_tempete"]
[null,"RDt_Tempete_tempete",{"$f":"CONCATENATE(\"    <question type=\",CHAR(34),\"category\",CHAR(34),\"><category><text>\", categorie_tempete,\"</text></category></question>)\")","v":"    <question type=\"category\"><category><text>RDT_Tempete</text></category></question>)"},null,"V1._tempete",9,30,1,{"$f":"RANDBETWEEN(ValMini_tempete*10^-SigDig_tempete, ValMaxi_tempete*10^-SigDig_tempete)/10^-SigDig_tempete","v":30},"Vitesse neige"]
["Tag_tempete","RDt_Tempete_tempete","    <question type=\"cloze\">",null,"V2._tempete",7,12,0,{"$f":"RANDBETWEEN(ValMini_tempete*10^-SigDig_tempete, ValMaxi_tempete*10^-SigDig_tempete)/10^-SigDig_tempete","v":8},"temps"]
["idnumber_tempete",{"$f":"TEXT(NOW(),\"aammjj-hhmmss.00\")","v":"210710-210621.92"},{"$f":"CONCATENATE(\"        <name><text>\", titre_tempete, \"</text></name>\")","v":"        <name><text>RDt_Tempete_tempete</text></name>"},null,"V3._tempete",null,null,null,{"$f":"ROUND(1/(1+V5._tempete/V2._tempete*V4._tempete/V1._tempete),2)","v":0.36},"% livrai"]
["points_tempete",1,"        <questiontext format=\"html\">",null,"V4._tempete",55,75,0,{"$f":"RANDBETWEEN(ValMini_tempete*10^-SigDig_tempete, ValMaxi_tempete*10^-SigDig_tempete)/10^-SigDig_tempete","v":55},"vitesse normale"]
["tolérance_tempete",0.05,{"$f":"CONCATENATE(\"            <text><![CDATA[<p>\", question_tempete, \"</p>]]></text>\")","v":"            <text><![CDATA[<p> <p>Lors d&rsquo;une temp&ecirc;te de neige, un camionneur a roul&eacute; &agrave; 30km/h de moyenne pendant 8 heures et n'a fait que 36% de sa livraison. En conditions normales il roule &agrave; 55km/h. En combien de temps fait-il le&nbsp;trajet ?&nbsp; normalement ?  {1:NUMERICAL:=1.21E+01:6.06E-01}</p><p></p>]]></text>"},null,"V5._tempete",4,8,-1,{"$f":"RANDBETWEEN(ValMini_tempete*10^-SigDig_tempete, ValMaxi_tempete*10^-SigDig_tempete)/10^-SigDig_tempete","v":7.9},"réponse cachée"]
["penalité_tempete",0.1,"        </questiontext>"]
["feedback_tempete","_",{"$f":"CONCATENATE(\"        <defaultgrade>\",points_tempete,\"</defaultgrade><generalfeedback><text>\",feedback_tempete,\"</text></generalfeedback><penalty>\",penalty_tempete,\"</penalty><hidden>0</hidden>)\")","v":"        <defaultgrade>1</defaultgrade><generalfeedback><text>_</text></generalfeedback><penalty>0.1</penalty><hidden>0</hidden>)"},null,null,"Cible_tempete","Toler_tempete","PointsQuestion_tempete"]
["Cellule vides_tempete",{"$f":"COUNTBLANK(B1:B8)","v":0},{"$f":"CONCATENATE(\"        <idnumber>\",idnumber_tempete,\"</idnumber><tags><tag><text>\",Tag_tempete,\"</text></tag></tags>\")","v":"        <idnumber>210710-210621.92</idnumber><tags><tag><text>RDt_Tempete_tempete</text></tag></tags>"},null,"R1._tempete",{"$f":"V2._tempete*V1._tempete/(V4._tempete*V3._tempete)","v":12.121212121212121},{"$f":" tolerance_tempete*ValMini_tempete","v":0.60606060606060608},1,{"$f":"CONCATENATE(\"{\",PointsQuestion_tempete,\":NUMERICAL:=\",TEXT(Cible_tempete,\"0.00E+00\"),\":\",TEXT(Tolere_tempete,\"0.00E+00\"),\"}\")","v":"{1:NUMERICAL:=1.21E+01:6.06E-01}"}]
["question format HTML_tempete",{"$f":"CONCATENATE(\" \",B19,B20,B21)","v":" <p>Lors d&rsquo;une temp&ecirc;te de neige, un camionneur a roul&eacute; &agrave; 30km/h de moyenne pendant 8 heures et n'a fait que 36% de sa livraison. En conditions normales il roule &agrave; 55km/h. En combien de temps fait-il le&nbsp;trajet ?&nbsp; normalement ?  {1:NUMERICAL:=1.21E+01:6.06E-01}</p><p>"},"    </question>"]
["Repere Var Rep","_tempete"]
["HTML File ",{"$f":"CONCATENATE(categorie_tempete,\"_HTML.txt\")","v":"RDT_Tempete_HTML.txt"},null,null,null,{"$f":"V2._tempete*V1._tempete/V4._tempete*(1-V3._tempete)/V3._tempete","v":7.7575757575757569}]
["https://html-online.com/editor/",null,null,null,null,null,null,null,null,null,null,null,null,"temps / tempête",null,{"$f":"V2._tempete/V3._tempete","v":22.222222222222221},"h tempète"]
[null,null,null,null,null,null,null,null,null,null,null,null,null,"temps / normal",null,{"$f":"P13*V1._tempete/V4._tempete","v":12.121212121212121},"h normales"]
[null,null,6]
["Var : ","#",4]
["Res : ","$",1]
[]
[null,{"$f":"CONCATENATE(\"<p>Lors d&rsquo;une temp&ecirc;te de neige, un camionneur a roul&eacute; &agrave; \",V1._tempete,\"km/h de moyenne pendant \",V2._tempete,\" heures et n'a fait que \",100*V3._tempete,\"% de sa livraison. En conditions normales il roule &agrave; \",V4._tempete,\"\")","v":"<p>Lors d&rsquo;une temp&ecirc;te de neige, un camionneur a roul&eacute; &agrave; 30km/h de moyenne pendant 8 heures et n'a fait que 36% de sa livraison. En conditions normales il roule &agrave; 55"},"<p>Lors d&rsquo;une temp&ecirc;te de neige, un camionneur a roul&eacute; &agrave; #1#km/h de moyenne pendant #2# heures et n'a fait que #3#% de sa livraison. En conditions normales il roule &agrave; #4# km/h. En combien de temps fait-il faire le&nbsp;trajet ?&nbsp; $1$</p>"]
[null,{"$f":"CONCATENATE(\"km/h. En combien de temps fait-il le&nbsp;trajet ?&nbsp; normalement ?  \",R1._tempete,\"</p><p>\")","v":"km/h. En combien de temps fait-il le&nbsp;trajet ?&nbsp; normalement ?  {1:NUMERICAL:=1.21E+01:6.06E-01}</p><p>"}]
[null,{"$f":"CONCATENATE(\"\")","v":""}]
[]
[]
[]
[]
[]
[]
[]
[]
[]
[]
[]
[]
[]
[]
[]
[]
[]
[]
[]
[null,null,"km/h. En combien de temps fait-il faire le&nbsp;trajet ?&nbsp; \",R1._tempete,\"</p><p>"]

{"sheet":"RDT_Lampes","index":15,"n_rows":21,"n_cols":13,"rows_kept":21,"cut":false,"hidden":false,"merged":[]}
["catégorie_Lam","RDT_Lampes",{"$f":"CONCATENATE(\"    <!--  question XLQ \", titre_Lam, \"-->\")","v":"    <!--  question XLQ Lampes_Lam-->"},null,null,"Valeur Mini_Lam","Valeur Maxi_Lam","Sig. Digit_Lam","Val Choix_Lam"]
[null,"Lampes_Lam",{"$f":"CONCATENATE(\"    <question type=\",CHAR(34),\"category\",CHAR(34),\"><category><text>\", categorie_Lam,\"</text></category></question>)\")","v":"    <question type=\"category\"><category><text>RDT_Lampes</text></category></question>)"},null,"V1.LampAv_Lam",7,15,0,{"$f":"RANDBETWEEN(ValMini_Lam*10^-SigDig_Lam, ValMaxi_Lam*10^-SigDig_Lam)/10^-SigDig_Lam","v":7},null,"ref",{"$f":"75/20/4","v":0.9375},"€/l/h"]
["Tag_Lam","Lampes_Lam","    <question type=\"cloze\">",null,"V2.HeureAv_Lam",3,7,0,{"$f":"RANDBETWEEN(ValMini_Lam*10^-SigDig_Lam, ValMaxi_Lam*10^-SigDig_Lam)/10^-SigDig_Lam","v":7}]
["idnumber_Lam",{"$f":"TEXT(NOW(),\"aammjj-hhmmss.00\")","v":"210710-210621.92"},{"$f":"CONCATENATE(\"        <name><text>\", titre_Lam, \"</text></name>\")","v":"        <name><text>Lampes_Lam</text></name>"},null,"V3.EurAv_Lam",null,null,null,{"$f":"ROUND(V1.LampAv_Lam*V2.HeureAv_Lam*L2,0)","v":46}]
["points_Lam",1,"        <questiontext format=\"html\">",null,"V4.LampAp_Lam",1,{"$f":"V1.LampAv_Lam-3","v":4},0,{"$f":"V1.LampAv_Lam-J5","v":5},{"$f":"RANDBETWEEN(ValMini_Lam*10^-SigDig_Lam, ValMaxi_Lam*10^-SigDig_Lam)/10^-SigDig_Lam","v":2},"variation"]
["tolérance_Lam",0.05,{"$f":"CONCATENATE(\"            <text><![CDATA[<p>\", question_Lam, \"</p>]]></text>\")","v":"            <text><![CDATA[<p> <p>&nbsp;Pour 7 lampes &eacute;lectriques fonctionnant 7 h par jour, on d&eacute;pense 46 &euro; par mois. Quelle serait la d&eacute;pense annuelle pour 46 lampes fonctionnant 5 h par jour. {1:NUMERICAL:=4.92E+02:2.46E+01}</p><p></p>]]></text>"},null,"V5.HeurAp_Lam",3,{"$f":"V2.HeureAv_Lam+2","v":9},null,{"$f":"V2.HeureAv_Lam+J6","v":11},{"$f":"RANDBETWEEN(ValMini_Lam*10^-SigDig_Lam, ValMaxi_Lam*10^-SigDig_Lam)/10^-SigDig_Lam","v":4},"variation"]
["penalité_Lam",0.1,"        </questiontext>"]
["feedback_Lam","_",{"$f":"CONCATENATE(\"        <defaultgrade>\",points_Lam,\"</defaultgrade><generalfeedback><text>\",feedback_Lam,\"</text></generalfeedback><penalty>\",penalty_Lam,\"</penalty><hidden>0</hidden>)\")","v":"        <defaultgrade>1</defaultgrade><generalfeedback><text>_</text></generalfeedback><penalty>0.1</penalty><hidden>0</hidden>)"},null,null,"Cible_Lam","Toler_Lam","PointsQuestion_Lam"]
["Cellule vides_Lam",{"$f":"COUNTBLANK(B1:B8)","v":0},{"$f":"CONCATENATE(\"        <idnumber>\",idnumber_Lam,\"</idnumber><tags><tag><text>\",Tag_Lam,\"</text></tag></tags>\")","v":"        <idnumber>210710-210621.92</idnumber><tags><tag><text>Lampes_Lam</text></tag></tags>"},null,"R1.EurAp_Lam",{"$f":"12*V3.EurAv_Lam*V1.LampAv_Lam/V4.LampAp_Lam*V2.HeureAv_Lam/V5.HeurAp_Lam","v":491.78181818181815},{"$f":" tolerance_Lam*ValMini_Lam","v":24.58909090909091},1,{"$f":"CONCATENATE(\"{\",PointsQuestion_Lam,\":NUMERICAL:=\",TEXT(Cible_Lam,\"0.00E+00\"),\":\",TEXT(Tolere_Lam,\"0.00E+00\"),\"}\")","v":"{1:NUMERICAL:=4.92E+02:2.46E+01}"}]
["question format HTML_Lam",{"$f":"CONCATENATE(\" \",B19,B20,B21)","v":" <p>&nbsp;Pour 7 lampes &eacute;lectriques fonctionnant 7 h par jour, on d&eacute;pense 46 &euro; par mois. Quelle serait la d&eacute;pense annuelle pour 46 lampes fonctionnant 5 h par jour. {1:NUMERICAL:=4.92E+02:2.46E+01}</p><p>"},"    </question>"]
["Repere Var Rep","_Lam"]
["HTML File ",{"$f":"CONCATENATE(categorie_Lam,\"_HTML.txt\")","v":"RDT_Lampes_HTML.txt"}]
["https://html-online.com/editor/"]
[]
[null,null,7,null,null," Pour 20 lampes électriques fonctionnant 4 h par jour , on dépense"]
["Var : ","#",5,null,null,"75 epar mois. Quelle serait la dépense annuelle pour 17 lampes"]
["Res : ","$",1,null,null,"fonctionnant 6 h par jour."]
[]
[null,{"$f":"CONCATENATE(\"<p>&nbsp;Pour \",V1.LampAv_Lam,\" lampes &eacute;lectriques fonctionnant \",V2.HeureAv_Lam,\" h par jour, on d&eacute;pense \",V3.EurAv_Lam,\" &euro; par mois. Quelle serait la d&eacute;pense annuelle pour \",V3.EurAv_Lam,\" lampes fonctionnant \",V4.LampAp_Lam,\" h par jour. \",R1.EurAp_Lam,\"</p><p>\")","v":"<p>&nbsp;Pour 7 lampes &eacute;lectriques fonctionnant 7 h par jour, on d&eacute;pense 46 &euro; par mois. Quelle serait la d&eacute;pense annuelle pour 46 lampes fonctionnant 5 h par jour. {1:NUMERICAL:=4.92E+02:2.46E+01}</p><p>"},"<p>&nbsp;Pour #1# lampes &eacute;lectriques fonctionnant #2# h par jour, on d&eacute;pense #3# &euro; par mois. Quelle serait la d&eacute;pense annuelle pour #3# lampes fonctionnant #4# h par jour. $1$</p>"]
[null,{"$f":"CONCATENATE(\"\")","v":""}]
[null,{"$f":"CONCATENATE(\"\")","v":""}]

{"sheet":"RDT_Salaire","index":16,"n_rows":41,"n_cols":14,"rows_kept":41,"cut":false,"hidden":false,"merged":[]}
["catégorie_Salai","RDT_Salaire",{"$f":"CONCATENATE(\"    <!--  question XLQ \", titre_Salai, \"-->\")","v":"    <!--  question XLQ Salaire_Salai-->"},null,null,"Valeur Mini_Salai","Valeur Maxi_Salai","Sig. Digit_Salai","Val Choix_Salai"]
[null,"Salaire_Salai",{"$f":"CONCATENATE(\"    <question type=\",CHAR(34),\"category\",CHAR(34),\"><category><text>\", categorie_Salai,\"</text></category></question>)\")","v":"    <question type=\"category\"><category><text>RDT_Salaire</text></category></question>)"},null,"V1._Salai",12,47,0,{"$f":"RANDBETWEEN(ValMini_Salai*10^-SigDig_Salai, ValMaxi_Salai*10^-SigDig_Salai)/10^-SigDig_Salai","v":38},"jourAv",null,"salaire",10,"€ /h"]
["Tag_Salai","Salaire_Salai","    <question type=\"cloze\">",null,"V2._Salai",4,7,0,{"$f":"RANDBETWEEN(ValMini_Salai*10^-SigDig_Salai, ValMaxi_Salai*10^-SigDig_Salai)/10^-SigDig_Salai","v":4},"H avant"]
["idnumber_Salai",{"$f":"TEXT(NOW(),\"aammjj-hhmmss.00\")","v":"210710-210621.92"},{"$f":"CONCATENATE(\"        <name><text>\", titre_Salai, \"</text></name>\")","v":"        <name><text>Salaire_Salai</text></name>"},null,"V3._Salai",null,null,null,{"$f":"9.9*V2._Salai*V1._Salai","v":1504.8},"salaire avant"]
["points_Salai",1,"        <questiontext format=\"html\">",null,"V4._Salai",1,8,0,{"$f":"V1._Salai-K5","v":33},"jour après",{"$f":"RANDBETWEEN(ValMini_Salai*10^-SigDig_Salai, ValMaxi_Salai*10^-SigDig_Salai)/10^-SigDig_Salai","v":5}]
["tolérance_Salai",0.05,{"$f":"CONCATENATE(\"            <text><![CDATA[<p>\", question_Salai, \"</p>]]></text>\")","v":"            <text><![CDATA[<p> <p>Un salari&eacute; qui a travaill&eacute; 38j et 4h par jour , a re&ccedil;u 1504.8 &euro;. Que recevrait-il pour 33 journ&eacute;es de 7 heures ? {1:NUMERICAL:=2.29E+03:1.14E+02}</p><p></p>]]></text>"},null,"V5._Salai",1,3,0,{"$f":"V2._Salai+K6","v":7},"heures après",{"$f":"RANDBETWEEN(ValMini_Salai*10^-SigDig_Salai, ValMaxi_Salai*10^-SigDig_Salai)/10^-SigDig_Salai","v":3}]
["penalité_Salai",0.1,"        </questiontext>"]
["feedback_Salai","_",{"$f":"CONCATENATE(\"        <defaultgrade>\",points_Salai,\"</defaultgrade><generalfeedback><text>\",feedback_Salai,\"</text></generalfeedback><penalty>\",penalty_Salai,\"</penalty><hidden>0</hidden>)\")","v":"        <defaultgrade>1</defaultgrade><generalfeedback><text>_</text></generalfeedback><penalty>0.1</penalty><hidden>0</hidden>)"},null,null,"Cible_Salai","Toler_Salai","PointsQuestion_Salai"]
["Cellule vides_Salai",{"$f":"COUNTBLANK(B1:B8)","v":0},{"$f":"CONCATENATE(\"        <idnumber>\",idnumber_Salai,\"</idnumber><tags><tag><text>\",Tag_Salai,\"</text></tag></tags>\")","v":"        <idnumber>210710-210621.92</idnumber><tags><tag><text>Salaire_Salai</text></tag></tags>"},null,"R1._Salai",{"$f":"V3._Salai*V4._Salai*V5._Salai/(V1._Salai*V2._Salai)","v":2286.9},{"$f":" tolerance_Salai*ValMini_Salai","v":114.34500000000001},1,{"$f":"CONCATENATE(\"{\",PointsQuestion_Salai,\":NUMERICAL:=\",TEXT(Cible_Salai,\"0.00E+00\"),\":\",TEXT(Tolere_Salai,\"0.00E+00\"),\"}\")","v":"{1:NUMERICAL:=2.29E+03:1.14E+02}"}]
["question format HTML_Salai",{"$f":"CONCATENATE(\" \",B19,B20)","v":" <p>Un salari&eacute; qui a travaill&eacute; 38j et 4h par jour , a re&ccedil;u 1504.8 &euro;. Que recevrait-il pour 33 journ&eacute;es de 7 heures ? {1:NUMERICAL:=2.29E+03:1.14E+02}</p><p>"},"    </question>"]
["Repere Var Rep","_Salai"]
["HTML File ",{"$f":"CONCATENATE(categorie_Salai,\"_HTML.txt\")","v":"RDT_Salaire_HTML.txt"}]
["https://html-online.com/editor/"]
[]
[null,null,7]
["Var : ","#",5]
["Res : ","$",1]
[]
[null,{"$f":"CONCATENATE(\"<p>Un salari&eacute; qui a travaill&eacute; \",V1._Salai,\"j et \",V2._Salai,\"h par jour , a re&ccedil;u \",V3._Salai,\" &euro;. Que recevrait-il pour \",V4._Salai,\" journ&eacute;es de \",V5._Salai,\" heures ? \",R1._Salai,\"</p><p>\")","v":"<p>Un salari&eacute; qui a travaill&eacute; 38j et 4h par jour , a re&ccedil;u 1504.8 &euro;. Que recevrait-il pour 33 journ&eacute;es de 7 heures ? {1:NUMERICAL:=2.29E+03:1.14E+02}</p><p>"},"<p>Un salari&eacute; qui a travaill&eacute; #1#j et #2#h par jour , a re&ccedil;u #3# &euro;. Que recevrait-il pour #4# journ&eacute;es de #5# heures ? $1$</p>"]
[null,{"$f":"CONCATENATE(\"\")","v":""}]
[]
[]
[]
[]
[]
[]
[]
[]
[]
[]
[]
[]
[]
[]
[]
[]
[]
[]
[]
[]
[null,null,"<p>Un salari&eacute; qui a travaill&eacute; \",V1._Salai,\"j et \",V2._Salai,\"h par jour , a re&ccedil;u \",V3._Salai,\" &euro;. Que recevrait-il pour \",V4._Salai,\" journ&eacute;es de \",V5._Salai,\" heures ? \",R1._Salai,\"</p><p>"]

{"sheet":"RDT_Forest","index":17,"n_rows":22,"n_cols":79,"rows_kept":22,"cut":false,"hidden":false,"merged":[]}
["catégorie_Roul","RDT_Forest",{"$f":"CONCATENATE(\"    <!--  question XLQ \", titre_Roul, \"-->\")","v":"    <!--  question XLQ Forest_Roul-->"},null,null,"Valeur Mini_Roul","Valeur Maxi_Roul","Sig. Digit_Roul","Val Choix_Roul"]
[null,"Forest_Roul",{"$f":"CONCATENATE(\"    <question type=\",CHAR(34),\"category\",CHAR(34),\"><category><text>\", categorie_Roul,\"</text></category></question>)\")","v":"    <question type=\"category\"><category><text>RDT_Forest</text></category></question>)"},null,"V1._Roul",20,65,0,{"$f":"RANDBETWEEN(ValMini_Roul*10^-SigDig_Roul, ValMaxi_Roul*10^-SigDig_Roul)/10^-SigDig_Roul","v":49}]
["Tag_Roul","Forest_Roul","    <question type=\"cloze\">",null,"V2._Roul",10,50,0,{"$f":"RANDBETWEEN(ValMini_Roul*10^-SigDig_Roul, ValMaxi_Roul*10^-SigDig_Roul)/10^-SigDig_Roul","v":49},null,null,null,null,null,null,null,null,null,null,null,null,null,null,null,null,null,null,null,null,null,null,null,null,null,null,null,null,null,null,null,null,null,null,null,null,null,null,null,null,null,null,null,null,null,null,null,null,null,null,null,null,null,null,null,null,null,null,null,null,null,null,null,null,null,null,null,null,null,"<p>En for&ecirc;t, Vincent roule &agrave; une vitesse de #1# km/h. Combien de secondes lui faudra-t-il pour parcourir une distance de #2# m&egrave;tres ? t=$1$ seconde(s)</p><p><p>En for&ecirc;t, Vincent roule &agrave; une vitesse de \"\",V1._Roul,\"\" km/h. Combien de secondes lui faudra-t-il pour parcourir une distance de \"\",V2._Roul,\"\" m&egrave;tres ? $1</p><p><p>"]
["idnumber_Roul",{"$f":"TEXT(NOW(),\"aammjj-hhmmss.00\")","v":"210710-210621.92"},{"$f":"CONCATENATE(\"        <name><text>\", titre_Roul, \"</text></name>\")","v":"        <name><text>Forest_Roul</text></name>"},null,"V3._Roul",null,null,null,{"$f":"RANDBETWEEN(ValMini_Roul*10^-SigDig_Roul, ValMaxi_Roul*10^-SigDig_Roul)/10^-SigDig_Roul","v":0}]
["points_Roul",1,"        <questiontext format=\"html\">"]
["tolérance_Roul",0.05,{"$f":"CONCATENATE(\"            <text><![CDATA[<p>\", question_Roul, \"</p>]]></text>\")","v":"            <text><![CDATA[<p> <p>En for&ecirc;t, Vincent roule &agrave; une vitesse de 49 km/h. Combien de secondes lui faudra-t-il pour parcourir une distance de 49 m&egrave;tres ? t={1:NUMERICAL:=3.60E+00:1.80E-01} seconde(s)</p><p><p></p>]]></text>"},null,null,"Cible_Roul","Toler_Roul","PointsQuestion_Roul"]
["penalité_Roul",0.1,"        </questiontext>",null,"R1._Roul",{"$f":"V2._Roul*3.6/V1._Roul","v":3.6},{"$f":" tolerance_Roul*ValMini_Roul","v":0.18000000000000002},1,{"$f":"CONCATENATE(\"{\",PointsQuestion_Roul,\":NUMERICAL:=\",TEXT(Cible_Roul,\"0.00E+00\"),\":\",TEXT(Tolere_Roul,\"0.00E+00\"),\"}\")","v":"{1:NUMERICAL:=3.60E+00:1.80E-01}"}]
["feedback_Roul","_",{"$f":"CONCATENATE(\"        <defaultgrade>\",points_Roul,\"</defaultgrade><generalfeedback><text>\",feedback_Roul,\"</text></generalfeedback><penalty>\",penalty_Roul,\"</penalty><hidden>0</hidden>)\")","v":"        <defaultgrade>1</defaultgrade><generalfeedback><text>_</text></generalfeedback><penalty>0.1</penalty><hidden>0</hidden>)"}]
["Cellule vides_Roul",{"$f":"COUNTBLANK(B1:B8)","v":0},{"$f":"CONCATENATE(\"        <idnumber>\",idnumber_Roul,\"</idnumber><tags><tag><text>\",Tag_Roul,\"</text></tag></tags>\")","v":"        <idnumber>210710-210621.92</idnumber><tags><tag><text>Forest_Roul</text></tag></tags>"}]
["question format HTML_Roul",{"$f":"CONCATENATE(\" \",B19,B20,B21,B22)","v":" <p>En for&ecirc;t, Vincent roule &agrave; une vitesse de 49 km/h. Combien de secondes lui faudra-t-il pour parcourir une distance de 49 m&egrave;tres ? t={1:NUMERICAL:=3.60E+00:1.80E-01} seconde(s)</p><p><p>"},"    </question>"]
["Repere Var Rep","_Roul"]
["HTML File ",{"$f":"CONCATENATE(categorie_Roul,\"_HTML.txt\")","v":"RDT_Forest_HTML.txt"}]
["https://html-online.com/editor/ "]
[]
[null,null,5]
["Var : ","#",3]
["Res : ","$",1]
[]
[null,{"$f":"CONCATENATE(\"<p>En for&ecirc;t, Vincent roule &agrave; une vitesse de \",V1._Roul,\" km/h. Combien de secondes lui faudra-t-il pour parcourir une distance de \",V2._Roul,\" m&egrave;tres ? t=\",R1._Roul,\" seconde(s)</p><p><p>\")","v":"<p>En for&ecirc;t, Vincent roule &agrave; une vitesse de 49 km/h. Combien de secondes lui faudra-t-il pour parcourir une distance de 49 m&egrave;tres ? t={1:NUMERICAL:=3.60E+00:1.80E-01} seconde(s)</p><p><p>"},"<p>En for&ecirc;t, Vincent roule &agrave; une vitesse de #1# km/h. Combien de secondes lui faudra-t-il pour parcourir une distance de #2# m&egrave;tres ? t=$1$ seconde(s)</p>"]
[]
[null,{"$f":"CONCATENATE(\"\")","v":""}]
[null,{"$f":"CONCATENATE(\"\")","v":""}]

{"sheet":"RDT_Toile","index":18,"n_rows":41,"n_cols":17,"rows_kept":41,"cut":false,"hidden":false,"merged":[]}
["catégorie_fil","RDT_Toile",{"$f":"CONCATENATE(\"    <!--  question XLQ \", titre_fil, \"-->\")","v":"    <!--  question XLQ Toile_fil-->"},null,null,"Valeur Mini_fil","Valeur Maxi_fil","Sig. Digit_fil","Val Choix_fil"]
[null,"Toile_fil",{"$f":"CONCATENATE(\"    <question type=\",CHAR(34),\"category\",CHAR(34),\"><category><text>\", categorie_fil,\"</text></category></question>)\")","v":"    <question type=\"category\"><category><text>RDT_Toile</text></category></question>)"},null,"V1._fil",250,350,0,{"$f":"RANDBETWEEN(ValMini_fil*10^-SigDig_fil, ValMaxi_fil*10^-SigDig_fil)/10^-SigDig_fil","v":340},"kg avant"]
["Tag_fil","Toile_fil","    <question type=\"cloze\">",null,"V2._fil",750,1380,1,1360,"long avant"]
["idnumber_fil",{"$f":"TEXT(NOW(),\"aammjj-hhmmss.00\")","v":"210710-210621.92"},{"$f":"CONCATENATE(\"        <name><text>\", titre_fil, \"</text></name>\")","v":"        <name><text>Toile_fil</text></name>"},null,"V3._fil",2,5,-1,2.2999999999999998,"large avant"]
["points_fil",1,"        <questiontext format=\"html\">",null,"V4._fil",3,9,null,8,"large après"]
["tolérance_fil",0.05,{"$f":"CONCATENATE(\"            <text><![CDATA[<p>\", question_fil, \"</p>]]></text>\")","v":"            <text><![CDATA[<p> <p>Avec 340 kg de fil, on a fabriqu&eacute; une toile de 1360 m&egrave;tres de longueur sur 2.3m de largeur. Quelle sera la longueur d'une toile de 2.3 m&egrave;tres de largeur fabriqu&eacute;e avec 8kilogrammes de fil ? {1:NUMERICAL:=1.91E+03:9.55E+01}</p><p></p>]]></text>"},null,"V5._fil",1500,1950,1,1660,"kg après"]
["penalité_fil",0.1,"        </questiontext>",null,null,null,null,null,{"$f":"V2._fil*V5._fil*V3._fil/(V1._fil*V4._fil)","v":1909},"long après"]
["feedback_fil","_",{"$f":"CONCATENATE(\"        <defaultgrade>\",points_fil,\"</defaultgrade><generalfeedback><text>\",feedback_fil,\"</text></generalfeedback><penalty>\",penalty_fil,\"</penalty><hidden>0</hidden>)\")","v":"        <defaultgrade>1</defaultgrade><generalfeedback><text>_</text></generalfeedback><penalty>0.1</penalty><hidden>0</hidden>)"},null,null,"Cible_fil","Toler_fil","PointsQuestion_fil"]
["Cellule vides_fil",{"$f":"COUNTBLANK(B1:B8)","v":0},{"$f":"CONCATENATE(\"        <idnumber>\",idnumber_fil,\"</idnumber><tags><tag><text>\",Tag_fil,\"</text></tag></tags>\")","v":"        <idnumber>210710-210621.92</idnumber><tags><tag><text>Toile_fil</text></tag></tags>"},null,"R1._fil",{"$f":"V2._fil*V5._fil/V1._fil*V3._fil/V4._fil","v":1908.9999999999998},{"$f":" tolerance_fil*ValMini_fil","v":95.449999999999989},1,{"$f":"CONCATENATE(\"{\",PointsQuestion_fil,\":NUMERICAL:=\",TEXT(Cible_fil,\"0.00E+00\"),\":\",TEXT(Tolere_fil,\"0.00E+00\"),\"}\")","v":"{1:NUMERICAL:=1.91E+03:9.55E+01}"}]
["question format HTML_fil",{"$f":"CONCATENATE(\" \",B19,B20,B21)","v":" <p>Avec 340 kg de fil, on a fabriqu&eacute; une toile de 1360 m&egrave;tres de longueur sur 2.3m de largeur. Quelle sera la longueur d'une toile de 2.3 m&egrave;tres de largeur fabriqu&eacute;e avec 8kilogrammes de fil ? {1:NUMERICAL:=1.91E+03:9.55E+01}</p><p>"},"    </question>"]
["Repere Var Rep","_fil"]
["HTML File ",{"$f":"CONCATENATE(categorie_fil,\"_HTML.txt\")","v":"RDT_Toile_HTML.txt"}]
["https://html-online.com/editor/"]
[null,null,null,null,null,null,"Avec 312,5 kg de fil, on a fabriqué une toile de 1219 mètres de longueur sur 3,85m de largeur. Quelle sera la longueur d'une toile de 2 mètres de largeur fabriquée avec 182 kilogrammes de fil ? "]
[null,null,6]
["Var : ","#",4,null,null,null,null,null,null,null,null,null,null,"kg av/ap","larg av/ap","long av","long ap"]
["Res : ","$",1,null,null,null,null,null,null,null,null,null,null,{"$f":"V1._fil/V5._fil","v":0.20481927710843373},{"$f":"V3._fil/V4._fil","v":0.28749999999999998},{"$f":"V2._fil","v":1360},{"$f":"P17*O17/N17","v":1908.9999999999998}]
[]
[null,{"$f":"CONCATENATE(\"<p>Avec \",V1._fil,\" kg de fil, on a fabriqu&eacute; une toile de \",V2._fil,\" m&egrave;tres de longueur sur \",V3._fil,\"m de largeur. Quelle sera la longueur d'une toile de \",V3._fil,\" m&egrave;tres de largeur fabriqu&eacute;e avec \",V4._fil,\"\")","v":"<p>Avec 340 kg de fil, on a fabriqu&eacute; une toile de 1360 m&egrave;tres de longueur sur 2.3m de largeur. Quelle sera la longueur d'une toile de 2.3 m&egrave;tres de largeur fabriqu&eacute;e avec 8"},"<p>Avec #1# kg de fil, on a fabriqu&eacute; une toile de #2# m&egrave;tres de longueur sur #3#m de largeur. Quelle sera la longueur d'une toile de #3# m&egrave;tres de largeur fabriqu&eacute;e avec #4# kilogrammes de fil ? $1$</p>"]
[null,{"$f":"CONCATENATE(\"kilogrammes de fil ? \",R1._fil,\"</p><p>\")","v":"kilogrammes de fil ? {1:NUMERICAL:=1.91E+03:9.55E+01}</p><p>"}]
[null,{"$f":"CONCATENATE(\"\")","v":""}]
[]
[]
[]
[]
[]
[]
[]
[]
[]
[]
[]
[]
[]
[]
[]
[]
[]
[]
[]
[null,null,"kilogrammes de fil ? \",R1._fil,\"</p><p>"]

{"sheet":"Prod_Vect","index":19,"n_rows":41,"n_cols":15,"rows_kept":41,"cut":false,"hidden":false,"merged":[]}
["catégorie_PV","ProdVect",{"$f":"CONCATENATE(\"    <!--  question XLQ \", titre_PV, \"-->\")","v":"    <!--  question XLQ ProdVect_PV-->"},null,null,"Valeur Mini_PV","Valeur Maxi_PV","Sig. Digit_PV","Val Choix_PV"]
[null,"ProdVect_PV",{"$f":"CONCATENATE(\"    <question type=\",CHAR(34),\"category\",CHAR(34),\"><category><text>\", categorie_PV,\"</text></category></question>)\")","v":"    <question type=\"category\"><category><text>ProdVect</text></category></question>)"},null,"V1._PV",-5,6,0,{"$f":"RANDBETWEEN(ValMini_PV*10^-SigDig_PV, ValMaxi_PV*10^-SigDig_PV)/10^-SigDig_PV","v":1},"X1"]
["Tag_PV","ProdVect_PV","    <question type=\"cloze\">",null,"V2._PV",-5,6,0,-2,"y1"]
["idnumber_PV",{"$f":"TEXT(NOW(),\"aammjj-hhmmss.00\")","v":"210710-210621.92"},{"$f":"CONCATENATE(\"        <name><text>\", titre_PV, \"</text></name>\")","v":"        <name><text>ProdVect_PV</text></name>"},null,"V3._PV",-5,6,0,3,"z1"]
["points_PV",1,"        <questiontext format=\"html\">",null,"V4._PV",-5,6,0,-3,"x2",null,{"$f":"V1._PV","v":1},{"$f":"V4._PV","v":-3},null,{"$f":"L6*M7-L7*M6","v":7}]
["tolérance_PV",0.05,{"$f":"CONCATENATE(\"            <text><![CDATA[<p>\", question_PV, \"</p>]]></text>\")","v":"            <text><![CDATA[<p> <p>Soit deux vecteurs \\( \\vec{V_1} \\) (1,-2,3) et \\( \\vec{V_2} \\)&nbsp;(-3,-5,4,). Calculer :</p><p><p>Le produit scalcaire : PS = {1:NUMERICAL:=1.90E+01:9.50E-01}</p><p><p>Le produit vectoriel : \\( \\vec{PV} \\)&nbsp; {1:NUMERICAL:=7.00E+00:3.50E-01}, {1:NUMERICAL:=-1.30E+01:6.50E-01}, {2:NUMERICAL:=-1.10E+01:5.50E-01}</p><p><p>&nbsp;</p><p></p>]]></text>"},null,"V5._PV",-5,6,0,-5,"y2",null,{"$f":"V2._PV","v":-2},{"$f":"V5._PV","v":-5},null,{"$f":"-L5*M7+L7*M5","v":-13}]
["penalité_PV",0.1,"        </questiontext>",null,"V6._PV",-5,6,0,4,"z2",null,{"$f":"V3._PV","v":3},{"$f":"V6._PV","v":4},null,{"$f":"L5*M6-L6*M5","v":-11}]
["feedback_PV","_",{"$f":"CONCATENATE(\"        <defaultgrade>\",points_PV,\"</defaultgrade><generalfeedback><text>\",feedback_PV,\"</text></generalfeedback><penalty>\",penalty_PV,\"</penalty><hidden>0</hidden>)\")","v":"        <defaultgrade>1</defaultgrade><generalfeedback><text>_</text></generalfeedback><penalty>0.1</penalty><hidden>0</hidden>)"}]
["Cellule vides_PV",{"$f":"COUNTBLANK(B1:B8)","v":0},{"$f":"CONCATENATE(\"        <idnumber>\",idnumber_PV,\"</idnumber><tags><tag><text>\",Tag_PV,\"</text></tag></tags>\")","v":"        <idnumber>210710-210621.92</idnumber><tags><tag><text>ProdVect_PV</text></tag></tags>"}]
["question format HTML_PV",{"$f":"CONCATENATE(\" \",B19,B20)","v":" <p>Soit deux vecteurs \\( \\vec{V_1} \\) (1,-2,3) et \\( \\vec{V_2} \\)&nbsp;(-3,-5,4,). Calculer :</p><p><p>Le produit scalcaire : PS = {1:NUMERICAL:=1.90E+01:9.50E-01}</p><p><p>Le produit vectoriel : \\( \\vec{PV} \\)&nbsp; {1:NUMERICAL:=7.00E+00:3.50E-01}, {1:NUMERICAL:=-1.30E+01:6.50E-01}, {2:NUMERICAL:=-1.10E+01:5.50E-01}</p><p><p>&nbsp;</p><p>"},"    </question>"]
["Repere Var Rep","_PV",null,null,null,"Cible_PV","Toler_PV","PointsQuestion_PV",null,null,null,null,"Vecteur","indice","formule"]
["HTML File ",{"$f":"CONCATENATE(categorie_PV,\"_HTML.txt\")","v":"ProdVect_HTML.txt"},null,null,"R1._PV",{"$f":"V1._PV*V4._PV+V2._PV*V5._PV+V3._PV*V6._PV","v":19},{"$f":" tolerance_PV*ValMini_PV","v":0.95000000000000007},1,{"$f":"CONCATENATE(\"{\",PointsQuestion_PV,\":NUMERICAL:=\",TEXT(Cible_PV,\"0.00E+00\"),\":\",TEXT(ABS(Tolere_PV),\"0.00E+00\"),\"}\")","v":"{1:NUMERICAL:=1.90E+01:9.50E-01}"},"P Scal",null,null,"V",1,{"$f":"CONCATENATE(\"\\( \\vec{\",M12,\"_\",N12,\"} \\)\")","v":"\\( \\vec{V_1} \\)"}]
["https://html-online.com/editor/",null,null,null,"R2._PV",{"$f":"O5","v":7},{"$f":" tolerance_PV*ValMini_PV","v":0.35000000000000003},1,{"$f":"CONCATENATE(\"{\",PointsQuestion_PV,\":NUMERICAL:=\",TEXT(Cible_PV,\"0.00E+00\"),\":\",TEXT(ABS(Tolere_PV),\"0.00E+00\"),\"}\")","v":"{1:NUMERICAL:=7.00E+00:3.50E-01}"},"xpv",null,null,"V",2,{"$f":"CONCATENATE(\"\\( \\vec{\",M13,\"_\",N13,\"} \\)\")","v":"\\( \\vec{V_2} \\)"}]
[null,null,null,null,"R3._PV",{"$f":"O6","v":-13},{"$f":" tolerance_PV*ValMini_PV","v":-0.65},1,{"$f":"CONCATENATE(\"{\",PointsQuestion_PV,\":NUMERICAL:=\",TEXT(Cible_PV,\"0.00E+00\"),\":\",TEXT(ABS(Tolere_PV),\"0.00E+00\"),\"}\")","v":"{1:NUMERICAL:=-1.30E+01:6.50E-01}"},"ypv",null,null,"PV",null,{"$f":"CONCATENATE(\"\\( \\vec{\",M14,\"} \\)\")","v":"\\( \\vec{PV} \\)"}]
[null,null,5,null,"R4._PV",-11,{"$f":" tolerance_PV*ValMini_PV","v":-0.55000000000000004},2,{"$f":"CONCATENATE(\"{\",PointsQuestion_PV,\":NUMERICAL:=\",TEXT(Cible_PV,\"0.00E+00\"),\":\",TEXT(ABS(Tolere_PV),\"0.00E+00\"),\"}\")","v":"{2:NUMERICAL:=-1.10E+01:5.50E-01}"},"zpv"]
["Var : ","#",3]
["Res : ","$",3,null,null,null,null,null,{"$f":"RANDBETWEEN(ValMini_PV*10^-SigDig_PV, ValMaxi_PV*10^-SigDig_PV)/10^-SigDig_PV","v":0}]
[]
[null,{"$f":"CONCATENATE(\"<p>Soit deux vecteurs \",O12,\" (\",V1._PV,\",\",V2._PV,\",\",V3._PV,\") et \",O13,\"&nbsp;(\",V4._PV,\",\",V5._PV,\",\",V6._PV,\",). Calculer :</p><p><p>Le produit scalcaire : PS = \",R1._PV,\"</p><p><p>Le produit vectoriel : \",O14,\"&nbsp; \",R2._PV,\", \",R3._PV,\", \",R4._PV,\"</p><p><p>&nbsp;</p><p>\")","v":"<p>Soit deux vecteurs \\( \\vec{V_1} \\) (1,-2,3) et \\( \\vec{V_2} \\)&nbsp;(-3,-5,4,). Calculer :</p><p><p>Le produit scalcaire : PS = {1:NUMERICAL:=1.90E+01:9.50E-01}</p><p><p>Le produit vectoriel : \\( \\vec{PV} \\)&nbsp; {1:NUMERICAL:=7.00E+00:3.50E-01}, {1:NUMERICAL:=-1.30E+01:6.50E-01}, {2:NUMERICAL:=-1.10E+01:5.50E-01}</p><p><p>&nbsp;</p><p>"},"<p>Soit deux vecteurs V1 (#1#,#2#,#3#,) et V2&nbsp;(#4#,#5#,#6#,). Calculer :</p>"]
[null,{"$f":"CONCATENATE(\"\")","v":""},"<p>Le produit scalcaire : PS = $1$</p>"]
[null,null,"<p>Le produit vectoriel : PV&nbsp; $2$, $3$, $4$</p>"]
[null,null,"<p>&nbsp;</p>"]
[null,null,null,null,null,null,null,null,null,null,null,null,null,null,{"$f":"IF(NOT(P17),IF(P16,TRUE,FALSE),FALSE)","v":false}]
[]
[]
[null,null,null,"<p>Soit deux vecteurs \\( \\vec{V_1} \\) (1,4,1) et \\( \\vec{V_2} \\)&nbsp;(4,1,0,). Calculer :</p><p><p>Le produit scalcaire : PS = {1:NUMERICAL:=8.00E+00:4.00E-01}</p><p><p>Le produit vectoriel : \\( \\vec{PV} \\)&nbsp; {1:NUMERICAL:=-1.00E+00:5.00E-02}, {1:NUMERICAL:=4.00E+00:2.00E-01}, {1:NUMERICAL:=4.00E+00:2.00E-01}</p><p><p>&nbsp;</p><p>"]
[]
[]
[]
[]
[]
[]
[]
[]
[]
[]
[]
[]
[]
[]
[null,null,"<p>Soit x=\",V1._aib,\"+\",V2._aib,\" <strong>i</strong> et&nbsp;y=\",V2._aib,\"+\",V3._aib,\"<strong>i</strong> deux nombres complexes. Calculer la somme x+y=\",R1._aib,\"+\",R2._aib,\" <strong>i</strong> et le produit :&nbsp;x*y=\",R3._aib,\"+\",R4._aib,\" <strong>i</strong></p><p>"]

{"sheet":"Vect_ProdMix","index":20,"n_rows":41,"n_cols":15,"rows_kept":41,"cut":false,"hidden":false,"merged":[[1,9,3,9],[4,9,6,9],[7,9,9,9]]}
["catégorie_Pmix","ProdMixte",{"$f":"CONCATENATE(\"    <!--  question XLQ \", titre_Pmix, \"-->\")","v":"    <!--  question XLQ ProdMixte_Pmix-->"},null,null,"Valeur Mini_Pmix","Valeur Maxi_Pmix","Sig. Digit_Pmix","Val Choix_Pmix",null,null,"{1:MULTICHOICE:%100%answer1#feedback1~%0%answer2#feedback2}"]
[null,"ProdMixte_Pmix",{"$f":"CONCATENATE(\"    <question type=\",CHAR(34),\"category\",CHAR(34),\"><category><text>\", categorie_Pmix,\"</text></category></question>)\")","v":"    <question type=\"category\"><category><text>ProdMixte</text></category></question>)"},null,"V1._Pmix",-5,6,0,{"$f":"TEXT(RANDBETWEEN(ValMini_Pmix*10^-SigDig_Pmix, ValMaxi_Pmix*10^-SigDig_Pmix)/10^-SigDig_Pmix,\"+##;-##;0\")","v":"+6"},"V1"]
["Tag_Pmix","ProdMixte_Pmix","    <question type=\"cloze\">",null,"V2._Pmix",-5,6,0,{"$f":"TEXT(RANDBETWEEN(ValMini_Pmix*10^-SigDig_Pmix, ValMaxi_Pmix*10^-SigDig_Pmix)/10^-SigDig_Pmix,\"+##;-##;0\")","v":"+3"}]
["idnumber_Pmix",{"$f":"TEXT(NOW(),\"aammjj-hhmmss.00\")","v":"210710-210621.92"},{"$f":"CONCATENATE(\"        <name><text>\", titre_Pmix, \"</text></name>\")","v":"        <name><text>ProdMixte_Pmix</text></name>"},null,"V3._Pmix",-5,6,0,"-3",null,null,{"$f":"V1._Pmix","v":"+6"},{"$f":"V4._Pmix","v":"-3"},null,{"$f":"L5*M6-L6*M5","v":0}]
["points_Pmix",1,"        <questiontext format=\"html\">",null,"V4._Pmix",-5,6,0,"-3","V2",null,{"$f":"V2._Pmix","v":"+3"},{"$f":"V5._Pmix","v":"+1"},null,{"$f":"-L4*M6+L6*M4","v":15}]
["tolérance_Pmix",0.05,{"$f":"CONCATENATE(\"            <text><![CDATA[<p>\", question_Pmix, \"</p>]]></text>\")","v":"            <text><![CDATA[<p> <p>Soit deux vecteurs \\( \\vec{V_1} \\) (+6,+3,-3,) et \\( \\vec{V_2} \\)&nbsp;(-3,+1,-1,). Calculer leur produit vectoriel : \\( \\vec{PV} \\)&nbsp; {1:NUMERICAL:=0.00E+00:0.00E+00}, {1:NUMERICAL:=1.50E+01:7.50E-01}, {1:NUMERICAL:=1.50E+01:7.50E-01} et leur produit mixte avec vecteur \\( \\vec{V_3} \\)  (+4,-1,+5) = {1:NUMERICAL:=6.00E+01:3.00E+00}</p>. Ces trois vecteurs forment donc une base : {1:MULTICHOICE:%100%Vrai~%0%Faux}<p><p>&nbsp;</p><p></p>]]></text>"},null,"V5._Pmix",-5,6,0,"+1",null,null,{"$f":"V3._Pmix","v":"-3"},{"$f":"V6._Pmix","v":"-1"},null,{"$f":"L4*M5-L5*M4","v":15}]
["penalité_Pmix",0.1,"        </questiontext>",null,"V6._Pmix",-5,6,0,"-1"]
["feedback_Pmix","_",{"$f":"CONCATENATE(\"        <defaultgrade>\",points_Pmix,\"</defaultgrade><generalfeedback><text>\",feedback_Pmix,\"</text></generalfeedback><penalty>\",penalty_Pmix,\"</penalty><hidden>0</hidden>)\")","v":"        <defaultgrade>1</defaultgrade><generalfeedback><text>_</text></generalfeedback><penalty>0.1</penalty><hidden>0</hidden>)"},null,"V7._Pmix",-5,6,0,"+4","V3"]
["Cellule vides_Pmix",{"$f":"COUNTBLANK(B1:B8)","v":0},{"$f":"CONCATENATE(\"        <idnumber>\",idnumber_Pmix,\"</idnumber><tags><tag><text>\",Tag_Pmix,\"</text></tag></tags>\")","v":"        <idnumber>210710-210621.92</idnumber><tags><tag><text>ProdMixte_Pmix</text></tag></tags>"},null,"V8._Pmix",-5,6,0,"-1"]
["question format HTML_Pmix",{"$f":"CONCATENATE(\" \",B19,B20)","v":" <p>Soit deux vecteurs \\( \\vec{V_1} \\) (+6,+3,-3,) et \\( \\vec{V_2} \\)&nbsp;(-3,+1,-1,). Calculer leur produit vectoriel : \\( \\vec{PV} \\)&nbsp; {1:NUMERICAL:=0.00E+00:0.00E+00}, {1:NUMERICAL:=1.50E+01:7.50E-01}, {1:NUMERICAL:=1.50E+01:7.50E-01} et leur produit mixte avec vecteur \\( \\vec{V_3} \\)  (+4,-1,+5) = {1:NUMERICAL:=6.00E+01:3.00E+00}</p>. Ces trois vecteurs forment donc une base : {1:MULTICHOICE:%100%Vrai~%0%Faux}<p><p>&nbsp;</p><p>"},"    </question>",null,"V9._Pmix",-5,6,0,"+5"]
["Repere Var Rep","_Pmix",null,null,null,null,null,null,null,null,null,null,"Vecteur","indice","formule"]
["HTML File ",{"$f":"CONCATENATE(categorie_Pmix,\"_HTML.txt\")","v":"ProdMixte_HTML.txt"},null,null,null,"Cible_Pmix","Toler_Pmix","PointsQuestion_Pmix",null,null,null,null,"V",1,{"$f":"CONCATENATE(\"\\( \\vec{\",M12,\"_\",N12,\"} \\)\")","v":"\\( \\vec{V_1} \\)"}]
["https://html-online.com/editor/",null,null,null,"R1._Pmix",{"$f":"O4","v":0},{"$f":" tolerance_Pmix*ValMini_Pmix","v":0},1,{"$f":"CONCATENATE(\"{\",PointsQuestion_Pmix,\":NUMERICAL:=\",TEXT(Cible_Pmix,\"0.00E+00\"),\":\",TEXT(ABS(Tolere_Pmix),\"0.00E+00\"),\"}\")","v":"{1:NUMERICAL:=0.00E+00:0.00E+00}"},null,null,null,"V",2,{"$f":"CONCATENATE(\"\\( \\vec{\",M13,\"_\",N13,\"} \\)\")","v":"\\( \\vec{V_2} \\)"}]
[null,null,null,null,"R2._Pmix",{"$f":"O5","v":15},{"$f":" tolerance_Pmix*ValMini_Pmix","v":0.75},1,{"$f":"CONCATENATE(\"{\",PointsQuestion_Pmix,\":NUMERICAL:=\",TEXT(Cible_Pmix,\"0.00E+00\"),\":\",TEXT(ABS(Tolere_Pmix),\"0.00E+00\"),\"}\")","v":"{1:NUMERICAL:=1.50E+01:7.50E-01}"},null,null,null,"V",3,{"$f":"CONCATENATE(\"\\( \\vec{\",M14,\"_\",N14,\"} \\)\")","v":"\\( \\vec{V_3} \\)"}]
[null,null,11,null,"R3._Pmix",15,{"$f":" tolerance_Pmix*ValMini_Pmix","v":0.75},1,{"$f":"CONCATENATE(\"{\",PointsQuestion_Pmix,\":NUMERICAL:=\",TEXT(Cible_Pmix,\"0.00E+00\"),\":\",TEXT(ABS(Tolere_Pmix),\"0.00E+00\"),\"}\")","v":"{1:NUMERICAL:=1.50E+01:7.50E-01}"},null,null,null,"PV",null,{"$f":"CONCATENATE(\"\\( \\vec{\",M15,\"} \\)\")","v":"\\( \\vec{PV} \\)"}]
["Var : ","#",9,null,"R4._Pmix",{"$f":"O4*V7._Pmix+O5*V8._Pmix+O6*V9._Pmix","v":60},{"$f":" tolerance_Pmix*ValMini_Pmix","v":3},1,{"$f":"CONCATENATE(\"{\",PointsQuestion_Pmix,\":NUMERICAL:=\",TEXT(Cible_Pmix,\"0.00E+00\"),\":\",TEXT(ABS(Tolere_Pmix),\"0.00E+00\"),\"}\")","v":"{1:NUMERICAL:=6.00E+01:3.00E+00}"}]
["Res : ","$",4,null,"R5._Pmix",{"$f":"IF(F16=0,\"Faux\",\"Vrai\")","v":"Vrai"},{"$f":"IF(F17=\"Vrai\",\"Faux\",\"Vrai\")","v":"Faux"},1,{"$f":"CONCATENATE(\"{1:MULTICHOICE:%100%\",F17,\"~%0%\",G17,\"}\")","v":"{1:MULTICHOICE:%100%Vrai~%0%Faux}"}]
[]
[null,{"$f":"CONCATENATE(\"<p>Soit deux vecteurs \",O12,\" (\",V1._Pmix,\",\",V2._Pmix,\",\",V3._Pmix,\",) et \",O13,\"&nbsp;(\",V4._Pmix,\",\",V5._Pmix,\",\",V6._Pmix,\",). Calculer leur produit vectoriel : \",O15,\"&nbsp; \",R1._Pmix,\", \",R2._Pmix,\", \",R3._Pmix,\" et leur produit mixte avec vecteur \",O14,\"  (\",V7._Pmix,\",\",V8._Pmix,\",\",V9._Pmix,\") = \",R4._Pmix,\"</p>. Ces trois vecteurs forment donc une base : \",I17,\"<p><p>&nbsp;</p>\",I18,\"<p>\")","v":"<p>Soit deux vecteurs \\( \\vec{V_1} \\) (+6,+3,-3,) et \\( \\vec{V_2} \\)&nbsp;(-3,+1,-1,). Calculer leur produit vectoriel : \\( \\vec{PV} \\)&nbsp; {1:NUMERICAL:=0.00E+00:0.00E+00}, {1:NUMERICAL:=1.50E+01:7.50E-01}, {1:NUMERICAL:=1.50E+01:7.50E-01} et leur produit mixte avec vecteur \\( \\vec{V_3} \\)  (+4,-1,+5) = {1:NUMERICAL:=6.00E+01:3.00E+00}</p>. Ces trois vecteurs forment donc une base : {1:MULTICHOICE:%100%Vrai~%0%Faux}<p><p>&nbsp;</p><p>"}]
[]
[]
[]
[null,null,null,null,null,null,null,null,null,null,null,null,null,null,{"$f":"IF(NOT(P17),IF(P16,TRUE,FALSE),FALSE)","v":false}]
[]
[]
[]
[]
[]
[]
[]
[]
[]
[]
[]
[]
[]
[]
[]
[]
[]
[null,null,"<p>Soit x=\",V1._aib,\"+\",V2._aib,\" <strong>i</strong> et&nbsp;y=\",V2._aib,\"+\",V3._aib,\"<strong>i</strong> deux nombres complexes. Calculer la somme x+y=\",R1._aib,\"+\",R2._aib,\" <strong>i</strong> et le produit :&nbsp;x*y=\",R3._aib,\"+\",R4._aib,\" <strong>i</strong></p><p>"]

{"sheet":"Vect_Normalized","index":21,"n_rows":41,"n_cols":79,"rows_kept":41,"cut":false,"hidden":false,"merged":[]}
["catégorie_VNo","Vect_Normalized",{"$f":"CONCATENATE(\"    <!--  question XLQ \", titre_VNo, \"-->\")","v":"    <!--  question XLQ Vect_Normalized_VNo-->"},null,null,"Valeur Mini_VNo","Valeur Maxi_VNo","Sig. Digit_VNo","Val Choix_VNo"]
[null,"Vect_Normalized_VNo",{"$f":"CONCATENATE(\"    <question type=\",CHAR(34),\"category\",CHAR(34),\"><category><text>\", categorie_VNo,\"</text></category></question>)\")","v":"    <question type=\"category\"><category><text>Vect_Normalized</text></category></question>)"},null,"V1.X_VNo",-10,10,null,{"$f":"RANDBETWEEN(ValMini_VNo*10^-SigDig_VNo, ValMaxi_VNo*10^-SigDig_VNo)/10^-SigDig_VNo","v":7}]
["Tag_VNo","Vect_Normalized_VNo","    <question type=\"cloze\">",null,"V2.Y_VNo",-10,10,null,{"$f":"RANDBETWEEN(ValMini_VNo*10^-SigDig_VNo, ValMaxi_VNo*10^-SigDig_VNo)/10^-SigDig_VNo","v":-1},null,null,null,null,null,null,null,null,null,null,null,null,null,null,null,null,null,null,null,null,null,null,null,null,null,null,null,null,null,null,null,null,null,null,null,null,null,null,null,null,null,null,null,null,null,null,null,null,null,null,null,null,null,null,null,null,null,null,null,null,null,null,null,null,null,null,null,null,null,"<p>Donner les composantes du vecteur unitaire \\vec{V} de m&ecirc;me direction et m&ecirc;me sens que \\vec{OM} = (#1#; #2#; #3#), mais de norme 1. On d&eacute;terminera tout d'abord la norme de&nbsp;\\vec{V}, ||\\vec{OM}||=$1$, puis&nbsp;\\vec{V} = ($2$; $3$; $4$)</p><p>"]
["idnumber_VNo",{"$f":"TEXT(NOW(),\"aammjj-hhmmss.00\")","v":"210710-210621.92"},{"$f":"CONCATENATE(\"        <name><text>\", titre_VNo, \"</text></name>\")","v":"        <name><text>Vect_Normalized_VNo</text></name>"},null,"V3.Z_VNo",-10,10,null,{"$f":"RANDBETWEEN(ValMini_VNo*10^-SigDig_VNo, ValMaxi_VNo*10^-SigDig_VNo)/10^-SigDig_VNo","v":2}]
["points_VNo",1,"        <questiontext format=\"html\">"]
["tolérance_VNo",0.05,{"$f":"CONCATENATE(\"            <text><![CDATA[<p>\", question_VNo, \"</p>]]></text>\")","v":"            <text><![CDATA[<p> <p>Donner les composantes du vecteur unitaire \\( \\vec{V} \\)  de m&ecirc;me direction et m&ecirc;me sens que \\( \\vec{OM} \\) = (7; -1; 2), mais de norme 1. On d&eacute;terminera tout d'abord la norme ||\\( \\vec{OM} \\) ||={1:NUMERICAL:=7.35E+00:3.67E-01}, puis&nbsp;\\( \\vec{V} \\)  = ({1:NUMERICAL:=9.53E-01:4.76E-02}; {1:NUMERICAL:=-1.36E-01:6.80E-03}; {1:NUMERICAL:=2.72E-01:1.36E-02})</p><p></p>]]></text>"},null,null,"Cible_VNo","Toler_VNo","PointsQuestion_VNo"]
["penalité_VNo",0.1,"        </questiontext>",null,"R1.Norme_VNo",{"$f":"SQRT(V1.X_VNo^2+V2.Y_VNo^2+V3.Z_VNo^2)","v":7.3484692283495345},{"$f":" tolerance_VNo*ValMini_VNo","v":0.36742346141747673},1,{"$f":"CONCATENATE(\"{\",PointsQuestion_VNo,\":NUMERICAL:=\",TEXT(Cible_VNo,\"0.00E+00\"),\":\",TEXT(ABS(Tolere_VNo),\"0.00E+00\"),\"}\")","v":"{1:NUMERICAL:=7.35E+00:3.67E-01}"}]
["feedback_VNo","_",{"$f":"CONCATENATE(\"        <defaultgrade>\",points_VNo,\"</defaultgrade><generalfeedback><text>\",feedback_VNo,\"</text></generalfeedback><penalty>\",penalty_VNo,\"</penalty><hidden>0</hidden>)\")","v":"        <defaultgrade>1</defaultgrade><generalfeedback><text>_</text></generalfeedback><penalty>0.1</penalty><hidden>0</hidden>)"},null,"R2.Xnorm_VNo",{"$f":"V1.X_VNo/$F$7","v":0.95257934441568037},{"$f":" tolerance_VNo*ValMini_VNo","v":4.7628967220784024E-2},1,{"$f":"CONCATENATE(\"{\",PointsQuestion_VNo,\":NUMERICAL:=\",TEXT(Cible_VNo,\"0.00E+00\"),\":\",TEXT(ABS(Tolere_VNo),\"0.00E+00\"),\"}\")","v":"{1:NUMERICAL:=9.53E-01:4.76E-02}"}]
["Cellule vides_VNo",{"$f":"COUNTBLANK(B1:B8)","v":0},{"$f":"CONCATENATE(\"        <idnumber>\",idnumber_VNo,\"</idnumber><tags><tag><text>\",Tag_VNo,\"</text></tag></tags>\")","v":"        <idnumber>210710-210621.92</idnumber><tags><tag><text>Vect_Normalized_VNo</text></tag></tags>"},null,"R3.YNorm_VNo",{"$f":"V2.Y_VNo/$F$7","v":-0.13608276348795434},{"$f":" tolerance_VNo*ValMini_VNo","v":-6.8041381743977171E-3},1,{"$f":"CONCATENATE(\"{\",PointsQuestion_VNo,\":NUMERICAL:=\",TEXT(Cible_VNo,\"0.00E+00\"),\":\",TEXT(ABS(Tolere_VNo),\"0.00E+00\"),\"}\")","v":"{1:NUMERICAL:=-1.36E-01:6.80E-03}"}]
["question format HTML_VNo",{"$f":"CONCATENATE(\" \",B19,B20,B21)","v":" <p>Donner les composantes du vecteur unitaire \\( \\vec{V} \\)  de m&ecirc;me direction et m&ecirc;me sens que \\( \\vec{OM} \\) = (7; -1; 2), mais de norme 1. On d&eacute;terminera tout d'abord la norme ||\\( \\vec{OM} \\) ||={1:NUMERICAL:=7.35E+00:3.67E-01}, puis&nbsp;\\( \\vec{V} \\)  = ({1:NUMERICAL:=9.53E-01:4.76E-02}; {1:NUMERICAL:=-1.36E-01:6.80E-03}; {1:NUMERICAL:=2.72E-01:1.36E-02})</p><p>"},"    </question>",null,"R4.Znorm_VNo",{"$f":"V3.Z_VNo/$F$7","v":0.27216552697590868},{"$f":" tolerance_VNo*ValMini_VNo","v":1.3608276348795434E-2},1,{"$f":"CONCATENATE(\"{\",PointsQuestion_VNo,\":NUMERICAL:=\",TEXT(Cible_VNo,\"0.00E+00\"),\":\",TEXT(ABS(Tolere_VNo),\"0.00E+00\"),\"}\")","v":"{1:NUMERICAL:=2.72E-01:1.36E-02}"}]
["Repere Var Rep","_VNo"]
["HTML File ",{"$f":"CONCATENATE(categorie_VNo,\"_HTML.txt\")","v":"Vect_Normalized_HTML.txt"}]
["Valide ? ",{"$f":"IF(V1.X_VNo*V2.Y_VNo*V3.Z_VNo<>0,TRUE,FALSE)","v":true}]
["https://html-online.com/editor/"]
[null,null,5]
["Var : ","#",3]
["Res : ","$",4]
[]
[null,{"$f":"CONCATENATE(\"<p>Donner les composantes du vecteur unitaire \\( \\vec{V} \\)  de m&ecirc;me direction et m&ecirc;me sens que \\( \\vec{OM} \\) = (\",V1.X_VNo,\"; \",V2.Y_VNo,\"; \",V3.Z_VNo,\"), mais de norme 1. On d&eacute;terminera tout d'abord la norme \")","v":"<p>Donner les composantes du vecteur unitaire \\( \\vec{V} \\)  de m&ecirc;me direction et m&ecirc;me sens que \\( \\vec{OM} \\) = (7; -1; 2), mais de norme 1. On d&eacute;terminera tout d'abord la norme "},"<p>Donner les composantes du vecteur unitaire \\vec{V} de m&ecirc;me direction et m&ecirc;me sens que \\vec{OM} = (#1#; #2#; #3#), mais de norme 1. On d&eacute;terminera tout d'abord la norme de&nbsp;\\vec{V}, ||\\vec{OM}||=$1$, puis&nbsp;\\vec{V} = ($2$; $3$; $4$)</p>"]
[null,{"$f":"CONCATENATE(\"||\\( \\vec{OM} \\) ||=\",R1.Norme_VNo,\", puis&nbsp;\\( \\vec{V} \\)  = (\",R2.Xnorm_VNo,\"; \",R3.YNorm_VNo,\"; \",R4.Znorm_VNo,\")</p><p>\")","v":"||\\( \\vec{OM} \\) ||={1:NUMERICAL:=7.35E+00:3.67E-01}, puis&nbsp;\\( \\vec{V} \\)  = ({1:NUMERICAL:=9.53E-01:4.76E-02}; {1:NUMERICAL:=-1.36E-01:6.80E-03}; {1:NUMERICAL:=2.72E-01:1.36E-02})</p><p>"}]
[null,{"$f":"CONCATENATE(\"\")","v":""}]
[]
[]
[]
[]
[]
[]
[]
[]
[]
[]
[]
[]
[]
[]
[]
[]
[]
[]
[]
[null,null,"||\\vec{OM}||=\",R1.Norme_VNo,\", puis&nbsp;\\vec{V} = (\",R2.Xnorm_VNo,\"; \",R3.YNorm_VNo,\"; \",R4.Znorm_VNo,\")</p><p>"]

{"sheet":"Comp_SP","index":22,"n_rows":41,"n_cols":15,"rows_kept":41,"cut":false,"hidden":false,"merged":[]}
["catégorie_aib","Complexe",{"$f":"CONCATENATE(\"    <!--  question XLQ \", titre_aib, \"-->\")","v":"    <!--  question XLQ Complexe_aib-->"},null,null,"Valeur Mini_aib","Valeur Maxi_aib","Sig. Digit_aib","Val Choix_aib"]
[null,"Complexe_aib",{"$f":"CONCATENATE(\"    <question type=\",CHAR(34),\"category\",CHAR(34),\"><category><text>\", categorie_aib,\"</text></category></question>)\")","v":"    <question type=\"category\"><category><text>Complexe</text></category></question>)"},null,"V1._aib",-5,6,0,{"$f":"TEXT(RANDBETWEEN(ValMini_aib*10^-SigDig_aib, ValMaxi_aib*10^-SigDig_aib)/10^-SigDig_aib,\"+##;-##;0\")","v":"+6"},"R1"]
["Tag_aib","Complexe_aib","    <question type=\"cloze\">",null,"V2._aib",1,6,0,{"$f":"TEXT(RANDBETWEEN(ValMini_aib*10^-SigDig_aib, ValMaxi_aib*10^-SigDig_aib)/10^-SigDig_aib,\"+##;-##;0\")","v":"+1"},"I1","C1",{"$f":"COMPLEX(V1._aib,V2._aib)","v":"6+i"},"somme",{"$f":"IMSUM(L3,L4)","v":"9-i"}]
["idnumber_aib",{"$f":"TEXT(NOW(),\"aammjj-hhmmss.00\")","v":"210710-210621.92"},{"$f":"CONCATENATE(\"        <name><text>\", titre_aib, \"</text></name>\")","v":"        <name><text>Complexe_aib</text></name>"},null,"V3._aib",-5,6,0,{"$f":"TEXT(RANDBETWEEN(ValMini_aib*10^-SigDig_aib, ValMaxi_aib*10^-SigDig_aib)/10^-SigDig_aib,\"+##;-##;0\")","v":"+3"},"R2","C2",{"$f":"COMPLEX(V3._aib,V4._aib)","v":"3-2i"},"produit",{"$f":"IMPRODUCT(L3,L4)","v":"20-9i"}]
["points_aib",1,"        <questiontext format=\"html\">",null,"V4._aib",-5,-1,0,{"$f":"TEXT(RANDBETWEEN(ValMini_aib*10^-SigDig_aib, ValMaxi_aib*10^-SigDig_aib)/10^-SigDig_aib,\"+##;-##;0\")","v":"-2"},"I2"]
["tolérance_aib",0.02,{"$f":"CONCATENATE(\"            <text><![CDATA[<p>\", question_aib, \"</p>]]></text>\")","v":"            <text><![CDATA[<p> <p>Soit x=+6+1<strong>   i   </strong>et&nbsp;y=+3-2<strong>   i   </strong>deux nombres complexes. Calculer la somme x+y={1:NUMERICAL:=9.00E+00:1.80E-01}+{1:NUMERICAL:=-1.00E+00:2.00E-02}<strong>i</strong>et le produit :&nbsp;x*y={1:NUMERICAL:=2.00E+01:4.00E-01}+{1:NUMERICAL:=-9.00E+00:1.80E-01}<strong>  i  </strong></p><p></p>]]></text>"}]
["penalité_aib",0.1,"        </questiontext>"]
["feedback_aib","_",{"$f":"CONCATENATE(\"        <defaultgrade>\",points_aib,\"</defaultgrade><generalfeedback><text>\",feedback_aib,\"</text></generalfeedback><penalty>\",penalty_aib,\"</penalty><hidden>0</hidden>)\")","v":"        <defaultgrade>1</defaultgrade><generalfeedback><text>_</text></generalfeedback><penalty>0.1</penalty><hidden>0</hidden>)"}]
["Cellule vides_aib",{"$f":"COUNTBLANK(B1:B8)","v":0},{"$f":"CONCATENATE(\"        <idnumber>\",idnumber_aib,\"</idnumber><tags><tag><text>\",Tag_aib,\"</text></tag></tags>\")","v":"        <idnumber>210710-210621.92</idnumber><tags><tag><text>Complexe_aib</text></tag></tags>"},null,null,"Cible_aib","Toler_aib","PointsQuestion_aib"]
["question format HTML_aib",{"$f":"CONCATENATE(\" \",B19,B20)","v":" <p>Soit x=+6+1<strong>   i   </strong>et&nbsp;y=+3-2<strong>   i   </strong>deux nombres complexes. Calculer la somme x+y={1:NUMERICAL:=9.00E+00:1.80E-01}+{1:NUMERICAL:=-1.00E+00:2.00E-02}<strong>i</strong>et le produit :&nbsp;x*y={1:NUMERICAL:=2.00E+01:4.00E-01}+{1:NUMERICAL:=-9.00E+00:1.80E-01}<strong>  i  </strong></p><p>"},"    </question>",null,"R1._aib",{"$f":"IMREAL(N3)","v":9},{"$f":" tolerance_aib*ValMini_aib","v":0.18},1,{"$f":"CONCATENATE(\"{\",PointsQuestion_aib,\":NUMERICAL:=\",TEXT(Cible_aib,\"0.00E+00\"),\":\",TEXT(ABS(Tolere_aib),\"0.00E+00\"),\"}\")","v":"{1:NUMERICAL:=9.00E+00:1.80E-01}"}]
["Repere Var Rep","_aib",null,null,"R2._aib",{"$f":"IMAGINARY(N3)","v":-1},{"$f":" tolerance_aib*ValMini_aib","v":-0.02},1,{"$f":"CONCATENATE(\"{\",PointsQuestion_aib,\":NUMERICAL:=\",TEXT(Cible_aib,\"0.00E+00\"),\":\",TEXT(ABS(Tolere_aib),\"0.00E+00\"),\"}\")","v":"{1:NUMERICAL:=-1.00E+00:2.00E-02}"}]
["HTML File ",{"$f":"CONCATENATE(categorie_aib,\"_HTML.txt\")","v":"Complexe_HTML.txt"},null,null,"R3._aib",{"$f":"IMREAL(N4)","v":20},{"$f":" tolerance_aib*ValMini_aib","v":0.4},1,{"$f":"CONCATENATE(\"{\",PointsQuestion_aib,\":NUMERICAL:=\",TEXT(Cible_aib,\"0.00E+00\"),\":\",TEXT(ABS(Tolere_aib),\"0.00E+00\"),\"}\")","v":"{1:NUMERICAL:=2.00E+01:4.00E-01}"}]
["https://html-online.com/editor/",null,null,null,"R4._aib",{"$f":"IMAGINARY(N4)","v":-9},{"$f":" tolerance_aib*ValMini_aib","v":-0.18},1,{"$f":"CONCATENATE(\"{\",PointsQuestion_aib,\":NUMERICAL:=\",TEXT(Cible_aib,\"0.00E+00\"),\":\",TEXT(ABS(Tolere_aib),\"0.00E+00\"),\"}\")","v":"{1:NUMERICAL:=-9.00E+00:1.80E-01}"}]
[]
[null,null,8]
["Var : ","#",6]
["Res : ","$",4]
[]
[null,{"$f":"CONCATENATE(\"<p>Soit x=\",V1._aib,V2._aib,\"<strong>   i   </strong>et&nbsp;y=\",V3._aib,V4._aib,\"<strong>   i   </strong>deux nombres complexes. Calculer la somme x+y=\",R1._aib,\"+\",R2._aib,\"<strong>i</strong>et le produit :&nbsp;x*y=\",R3._aib,\"+\",R4._aib,\"<strong>  i  </strong></p><p>\")","v":"<p>Soit x=+6+1<strong>   i   </strong>et&nbsp;y=+3-2<strong>   i   </strong>deux nombres complexes. Calculer la somme x+y={1:NUMERICAL:=9.00E+00:1.80E-01}+{1:NUMERICAL:=-1.00E+00:2.00E-02}<strong>i</strong>et le produit :&nbsp;x*y={1:NUMERICAL:=2.00E+01:4.00E-01}+{1:NUMERICAL:=-9.00E+00:1.80E-01}<strong>  i  </strong></p><p>"},"<p>Soit x=#1#+#2#i et&nbsp;y=#3#+#4#i deux nombres complexes. Calculer la somme x+y=$1$+$2$i et le produit :&nbsp;x*y=$3$+$4$i</p>"]
[null,{"$f":"CONCATENATE(\"\")","v":""}]
[]
[null,null,null,null,null,"X","y"]
[null,null,null,null,null,{"$f":"V1._aib","v":"+6"},{"$f":"V2._aib","v":"+1"},null,null,null,null,null,null,null,{"$f":"IF(NOT(P17),IF(P16,TRUE,FALSE),FALSE)","v":false}]
[null,null,null,null,null,{"$f":"V3._aib","v":"+3"},{"$f":"V4._aib","v":"-2"}]
[null,null,null,null,null,{"$f":"F10","v":9},{"$f":"F11","v":-1}]
[null,null,null,null,null,{"$f":"F12","v":20},{"$f":"F13","v":-9}]
[]
[]
[]
[]
[]
[]
[]
[]
[]
[]
[]
[]
[]
[]
[null,null,"<p>Soit x=\",V1._aib,\"+\",V2._aib,\" <strong>i</strong> et&nbsp;y=\",V2._aib,\"+\",V3._aib,\"<strong>i</strong> deux nombres complexes. Calculer la somme x+y=\",R1._aib,\"+\",R2._aib,\" <strong>i</strong> et le produit :&nbsp;x*y=\",R3._aib,\"+\",R4._aib,\" <strong>i</strong></p><p>"]

{"sheet":"Compl_ModulArgu","index":23,"n_rows":41,"n_cols":79,"rows_kept":41,"cut":false,"hidden":false,"merged":[]}
["catégorie_MAr","Compl_ModulArgu",{"$f":"CONCATENATE(\"    <!--  question XLQ \", titre_MAr, \"-->\")","v":"    <!--  question XLQ Compl_ModulArgu_MAr-->"},null,null,"Valeur Mini_MAr","Valeur Maxi_MAr","Sig. Digit_MAr","Val Choix_MAr",null,"DegRad",{"$f":"180/PI()","v":57.295779513082323},null,"X","Y"]
[null,"Compl_ModulArgu_MAr",{"$f":"CONCATENATE(\"    <question type=\",CHAR(34),\"category\",CHAR(34),\"><category><text>\", categorie_MAr,\"</text></category></question>)\")","v":"    <question type=\"category\"><category><text>Compl_ModulArgu</text></category></question>)"},null,"V1.Reel_MAr",-8,8,0,{"$f":"RANDBETWEEN(ValMini_MAr*10^-SigDig_MAr, ValMaxi_MAr*10^-SigDig_MAr)/10^-SigDig_MAr","v":8},null,null,null,null,0,0]
["Tag_MAr","Compl_ModulArgu_MAr","    <question type=\"cloze\">",null,"V2.Imag_MAr",-8,8,0,{"$f":"RANDBETWEEN(ValMini_MAr*10^-SigDig_MAr, ValMaxi_MAr*10^-SigDig_MAr)/10^-SigDig_MAr","v":-1},null,null,{"$f":"57.3*IF(V1.Reel_MAr>0,ATAN(V2.Imag_MAr/V1.Reel_MAr),ATAN(V2.Imag_MAr/V1.Reel_MAr)+PI())","v":-7.1255411875294303},null,{"$f":"V1.Reel_MAr","v":8},{"$f":"V2.Imag_MAr","v":-1},null,null,null,null,null,null,null,null,null,null,null,null,null,null,null,null,null,null,null,null,null,null,null,null,null,null,null,null,null,null,null,null,null,null,null,null,null,null,null,null,null,null,null,null,null,null,null,null,null,null,null,null,null,null,null,null,null,null,null,null,null,null,null,"<p>Soit x=\"\";#1#+#2#<strong>i</strong>un nombre complexe. Calculer son module rho=$1$ et son argument en degr&eacute; (entre -180 et 180) \"\" $2$</p><p>"]
["idnumber_MAr",{"$f":"TEXT(NOW(),\"aammjj-hhmmss.00\")","v":"210710-210621.92"},{"$f":"CONCATENATE(\"        <name><text>\", titre_MAr, \"</text></name>\")","v":"        <name><text>Compl_ModulArgu_MAr</text></name>"}]
["points_MAr",1,"        <questiontext format=\"html\">",null,null,"Cible_MAr","Toler_MAr","PointsQuestion_MAr"]
["tolérance_MAr",0.05,{"$f":"CONCATENATE(\"            <text><![CDATA[<p>\", question_MAr, \"</p>]]></text>\")","v":"            <text><![CDATA[<p> <p>Soit x= 8 + -1 <strong> i </strong>    un nombre complexe. Calculer son module rho={1:NUMERICAL:=8.06E+00:4.03E-01} et son argument en degr&eacute; (entre -90 et 270) \" {1:NUMERICAL:=-7.13E+00:3.56E-01}</p><p></p>]]></text>"},null,"R1.Modu_MAr",{"$f":"SQRT(V1.Reel_MAr^2+V2.Imag_MAr^2)","v":8.0622577482985491},{"$f":" tolerance_MAr*ValMini_MAr","v":0.40311288741492746},1,{"$f":"CONCATENATE(\"{\",PointsQuestion_MAr,\":NUMERICAL:=\",TEXT(Cible_MAr,\"0.00E+00\"),\":\",TEXT(ABS(Tolere_MAr),\"0.00E+00\"),\"}\")","v":"{1:NUMERICAL:=8.06E+00:4.03E-01}"}]
["penalité_MAr",0.1,"        </questiontext>",null,"R2.ArguDeg_MAr",{"$f":"L3","v":-7.1255411875294303},{"$f":" tolerance_MAr*ValMini_MAr","v":-0.35627705937647153},1,{"$f":"CONCATENATE(\"{\",PointsQuestion_MAr,\":NUMERICAL:=\",TEXT(Cible_MAr,\"0.00E+00\"),\":\",TEXT(ABS(Tolere_MAr),\"0.00E+00\"),\"}\")","v":"{1:NUMERICAL:=-7.13E+00:3.56E-01}"}]
["feedback_MAr","_",{"$f":"CONCATENATE(\"        <defaultgrade>\",points_MAr,\"</defaultgrade><generalfeedback><text>\",feedback_MAr,\"</text></generalfeedback><penalty>\",penalty_MAr,\"</penalty><hidden>0</hidden>)\")","v":"        <defaultgrade>1</defaultgrade><generalfeedback><text>_</text></generalfeedback><penalty>0.1</penalty><hidden>0</hidden>)"}]
["Cellule vides_MAr",{"$f":"COUNTBLANK(B1:B8)","v":0},{"$f":"CONCATENATE(\"        <idnumber>\",idnumber_MAr,\"</idnumber><tags><tag><text>\",Tag_MAr,\"</text></tag></tags>\")","v":"        <idnumber>210710-210621.92</idnumber><tags><tag><text>Compl_ModulArgu_MAr</text></tag></tags>"}]
["question format HTML_MAr",{"$f":"CONCATENATE(\" \",B19,B20)","v":" <p>Soit x= 8 + -1 <strong> i </strong>    un nombre complexe. Calculer son module rho={1:NUMERICAL:=8.06E+00:4.03E-01} et son argument en degr&eacute; (entre -90 et 270) \" {1:NUMERICAL:=-7.13E+00:3.56E-01}</p><p>"},"    </question>"]
["Repere Var Rep","_MAr"]
["HTML File ",{"$f":"CONCATENATE(categorie_MAr,\"_HTML.txt\")","v":"Compl_ModulArgu_HTML.txt"}]
["Valide ? ",{"$f":"IF(AND(V1.Reel_MAr<>V2.Imag_MAr,V1.Reel_MAr*V2.Imag_MAr<>0),TRUE,FALSE)","v":true}]
["https://html-online.com/editor/"]
[null,null,4]
["Var : ","#",2]
["Res : ","$",2]
[]
[null,{"$f":"CONCATENATE(\"<p>Soit x= \",V1.Reel_MAr,\" + \",V2.Imag_MAr,\" <strong> i </strong>    un nombre complexe. Calculer son module rho=\",R1.Modu_MAr,\" et son argument en degr&eacute; (entre -90 et 270) \"\" \",R2.ArguDeg_MAr,\"</p><p>\")","v":"<p>Soit x= 8 + -1 <strong> i </strong>    un nombre complexe. Calculer son module rho={1:NUMERICAL:=8.06E+00:4.03E-01} et son argument en degr&eacute; (entre -90 et 270) \" {1:NUMERICAL:=-7.13E+00:3.56E-01}</p><p>"},"<p>Soit x=\";#1#+#2#<strong>i</strong>un nombre complexe. Calculer son module rho=$1$ et son argument en degr&eacute; (entre -180 et 180) \" $2$</p>"]
[null,{"$f":"CONCATENATE(\"\")","v":""}]
[]
[]
[]
[]
[]
[]
[]
[]
[]
[]
[]
[]
[]
[]
[]
[]
[]
[]
[]
[]
[null,null,"<p>Soit x=\"\";\",V1.Reel_MAr,\"+\",V2.Imag_MAr,\"<strong>i</strong>un nombre complexe. Calculer son module rho=\",R1.Modu_MAr,\" et son argument en degr&eacute; (entre -180 et 180) \"\" \",R2.ArguDeg_MAr,\"</p><p>"]

{"sheet":"Comp_Rac","index":24,"n_rows":41,"n_cols":15,"rows_kept":41,"cut":false,"hidden":false,"merged":[]}
["catégorie_Rac","Comp_Rac",{"$f":"CONCATENATE(\"    <!--  question XLQ \", titre_Rac, \"-->\")","v":"    <!--  question XLQ Comp_Rac_Rac-->"},null,null,"Valeur Mini_Rac","Valeur Maxi_Rac","Sig. Digit_Rac","Val Choix_Rac",null,null,"Degrad",{"$f":"180/PI()","v":57.295779513082323}]
[null,"Comp_Rac_Rac",{"$f":"CONCATENATE(\"    <question type=\",CHAR(34),\"category\",CHAR(34),\"><category><text>\", categorie_Rac,\"</text></category></question>)\")","v":"    <question type=\"category\"><category><text>Comp_Rac</text></category></question>)"},null,"V1.Re_Rac",1,9,0,{"$f":"TEXT(J2*RANDBETWEEN(ValMini_Rac*10^-SigDig_Rac, ValMaxi_Rac*10^-SigDig_Rac)/10^-SigDig_Rac,\"+##;-##;0\")","v":"+8"},{"$f":"IF(RAND()>0.5,1,-1)","v":1},null,"C1",{"$f":"COMPLEX(V1.Re_Rac,V2.Im_Rac)","v":"8+5i"}]
["Tag_Rac","Comp_Rac_Rac","    <question type=\"cloze\">",null,"V2.Im_Rac",1,9,0,{"$f":"TEXT(J3*RANDBETWEEN(ValMini_Rac*10^-SigDig_Rac, ValMaxi_Rac*10^-SigDig_Rac)/10^-SigDig_Rac,\"+##;-##;0\")","v":"+5"},{"$f":"IF(RAND()>0.5,1,-1)","v":1},null,null,{"$f":"IMSQRT(M2)","v":"2.95245500660523+0.846752954543592i"}]
["idnumber_Rac",{"$f":"TEXT(NOW(),\"aammjj-hhmmss.00\")","v":"210710-210621.92"},{"$f":"CONCATENATE(\"        <name><text>\", titre_Rac, \"</text></name>\")","v":"        <name><text>Comp_Rac_Rac</text></name>"}]
["points_Rac",1,"        <questiontext format=\"html\">",null,null,"Cible_Rac","Toler_Rac","PointsQuestion_Rac",null,null,null,null,0,0]
["tolérance_Rac",0.05,{"$f":"CONCATENATE(\"            <text><![CDATA[<p>\", question_Rac, \"</p>]]></text>\")","v":"            <text><![CDATA[<p> <p>Soit x=+8+5<strong>    i    </strong>un&nbsp;nombre complexe. Calculer sa premi&egrave;re racine carr&eacute; (k=0) et la pr&eacute;senter en module et argument&nbsp;&rho; = {1:NUMERICAL:=3.07E+00:1.54E-01} et &Theta;={1:NUMERICAL:=1.60E+01:8.00E-01} ( -180 &lt;&Theta;&lt; 180),et partie r&eacute;elle et imaginaire : &nbsp;  \\( \\sqrt[ ]{x} \\)= {1:NUMERICAL:=2.95E+00:1.48E-01} + {1:NUMERICAL:=8.47E-01:4.23E-02} i.&nbsp;</p><p></p>]]></text>"},null,"R1._Rac",{"$f":"IMABS(M3)","v":3.071478655640731},{"$f":" tolerance_Rac*ValMini_Rac","v":0.15357393278203657},1,{"$f":"CONCATENATE(\"{\",PointsQuestion_Rac,\":NUMERICAL:=\",TEXT(Cible_Rac,\"0.00E+00\"),\":\",TEXT(ABS(Tolere_Rac),\"0.00E+00\"),\"}\")","v":"{1:NUMERICAL:=3.07E+00:1.54E-01}"},null,null,null,{"$f":"V1.Re_Rac","v":"+8"},{"$f":"V2.Im_Rac","v":"+5"}]
["penalité_Rac",0.1,"        </questiontext>",null,"R2._Rac",{"$f":"M1*IMARGUMENT(M3)","v":16.002691604041765},{"$f":" tolerance_Rac*ValMini_Rac","v":0.80013458020208827},1,{"$f":"CONCATENATE(\"{\",PointsQuestion_Rac,\":NUMERICAL:=\",TEXT(Cible_Rac,\"0.00E+00\"),\":\",TEXT(ABS(Tolere_Rac),\"0.00E+00\"),\"}\")","v":"{1:NUMERICAL:=1.60E+01:8.00E-01}"}]
["feedback_Rac","_",{"$f":"CONCATENATE(\"        <defaultgrade>\",points_Rac,\"</defaultgrade><generalfeedback><text>\",feedback_Rac,\"</text></generalfeedback><penalty>\",penalty_Rac,\"</penalty><hidden>0</hidden>)\")","v":"        <defaultgrade>1</defaultgrade><generalfeedback><text>_</text></generalfeedback><penalty>0.1</penalty><hidden>0</hidden>)"},null,"R3._Rac",{"$f":"IMREAL(M3)","v":2.9524550066052302},{"$f":" tolerance_Rac*ValMini_Rac","v":0.14762275033026151},1,{"$f":"CONCATENATE(\"{\",PointsQuestion_Rac,\":NUMERICAL:=\",TEXT(Cible_Rac,\"0.00E+00\"),\":\",TEXT(ABS(Tolere_Rac),\"0.00E+00\"),\"}\")","v":"{1:NUMERICAL:=2.95E+00:1.48E-01}"},null,null,null,0,0]
["Cellule vides_Rac",{"$f":"COUNTBLANK(B1:B8)","v":0},{"$f":"CONCATENATE(\"        <idnumber>\",idnumber_Rac,\"</idnumber><tags><tag><text>\",Tag_Rac,\"</text></tag></tags>\")","v":"        <idnumber>210710-210621.92</idnumber><tags><tag><text>Comp_Rac_Rac</text></tag></tags>"},null,"R4._Rac",{"$f":"IMAGINARY(M3)","v":0.84675295454359201},{"$f":" tolerance_Rac*ValMini_Rac","v":4.23376477271796E-2},1,{"$f":"CONCATENATE(\"{\",PointsQuestion_Rac,\":NUMERICAL:=\",TEXT(Cible_Rac,\"0.00E+00\"),\":\",TEXT(ABS(Tolere_Rac),\"0.00E+00\"),\"}\")","v":"{1:NUMERICAL:=8.47E-01:4.23E-02}"},null,null,null,{"$f":"F8","v":2.9524550066052302},{"$f":"F9","v":0.84675295454359201}]
["question format HTML_Rac",{"$f":"CONCATENATE(\" \",B19,B20,B21)","v":" <p>Soit x=+8+5<strong>    i    </strong>un&nbsp;nombre complexe. Calculer sa premi&egrave;re racine carr&eacute; (k=0) et la pr&eacute;senter en module et argument&nbsp;&rho; = {1:NUMERICAL:=3.07E+00:1.54E-01} et &Theta;={1:NUMERICAL:=1.60E+01:8.00E-01} ( -180 &lt;&Theta;&lt; 180),et partie r&eacute;elle et imaginaire : &nbsp;  \\( \\sqrt[ ]{x} \\)= {1:NUMERICAL:=2.95E+00:1.48E-01} + {1:NUMERICAL:=8.47E-01:4.23E-02} i.&nbsp;</p><p>"},"    </question>"]
["Repere Var Rep","_Rac"]
["HTML File ",{"$f":"CONCATENATE(categorie_Rac,\"_HTML.txt\")","v":"Comp_Rac_HTML.txt"}]
["https://html-online.com/editor/"]
[]
[null,null,4]
["Var : ","#",2]
["Res : ","$",8,null,null,null,null,null,null,null,null,null,"\\( \\sqrt[]{x} \\)"]
[]
[null,{"$f":"CONCATENATE(\"<p>Soit x=\",V1.Re_Rac,V2.Im_Rac,\"<strong>    i    </strong>un&nbsp;nombre complexe. Calculer sa premi&egrave;re racine carr&eacute; (k=0) et la pr&eacute;senter en module et argument&nbsp;&rho; = \",R1._Rac,\" et &Theta;=\",R2._Rac,\" ( -180 &lt;&Theta;&lt; 180),\")","v":"<p>Soit x=+8+5<strong>    i    </strong>un&nbsp;nombre complexe. Calculer sa premi&egrave;re racine carr&eacute; (k=0) et la pr&eacute;senter en module et argument&nbsp;&rho; = {1:NUMERICAL:=3.07E+00:1.54E-01} et &Theta;={1:NUMERICAL:=1.60E+01:8.00E-01} ( -180 &lt;&Theta;&lt; 180),"},"<p>Soit x=#1#+#2#i un&nbsp;nombre complexe. Calculer sa premi&egrave;re racine carr&eacute; (k=0) et la pr&eacute;senter en module et argument&nbsp;&rho; = $1$ et &Theta;=$2$ ( -180 &lt;&Theta;&lt; 180), et partie r&eacute;elle et imaginaire :&nbsp; = $3$ + $4$ i.&nbsp;</p>",null,null,null,null,null,null,null,null,"degré","racine","formule"]
[null,{"$f":"CONCATENATE(\"et partie r&eacute;elle et imaginaire : &nbsp;  \\( \\sqrt[ ]{x} \\)= \",R3._Rac,\" + \",R4._Rac,\" i.&nbsp;</p><p>\")","v":"et partie r&eacute;elle et imaginaire : &nbsp;  \\( \\sqrt[ ]{x} \\)= {1:NUMERICAL:=2.95E+00:1.48E-01} + {1:NUMERICAL:=8.47E-01:4.23E-02} i.&nbsp;</p><p>"},null,null,null,null,null,null,null,null,null," ","x",{"$f":"CONCATENATE(\"\\( \\sqrt[\",L20,\"]{\",M20,\"} \\)\")","v":"\\( \\sqrt[ ]{x} \\)"},"\\( \\sqrt[ ]{x} \\)"]
[null,{"$f":"CONCATENATE(\"\")","v":""},null,null,null,null,null,null,null,null,null,3,"y",{"$f":"CONCATENATE(\"\\( \\sqrt[\",L21,\"]{\",M21,\"} \\)\")","v":"\\( \\sqrt[3]{y} \\)"}]
[]
[null,null,null,null,null,null,null,null,null,null,null,null,null,null,{"$f":"IF(NOT(P17),IF(P16,TRUE,FALSE),FALSE)","v":false}]
[]
[]
[]
[]
[]
[]
[]
[]
[]
[]
[]
[]
[]
[]
[]
[]
[]
[null,null,"<p>Soit x=\",V1._aib,\"+\",V2._aib,\" <strong>i</strong> et&nbsp;y=\",V2._aib,\"+\",V3._aib,\"<strong>i</strong> deux nombres complexes. Calculer la somme x+y=\",R1._aib,\"+\",R2._aib,\" <strong>i</strong> et le produit :&nbsp;x*y=\",R3._aib,\"+\",R4._aib,\" <strong>i</strong></p><p>"]

{"sheet":"Comp_Div","index":25,"n_rows":41,"n_cols":79,"rows_kept":41,"cut":false,"hidden":false,"merged":[]}
["catégorie_CoDiv","Comp_Div",{"$f":"CONCATENATE(\"    <!--  question XLQ \", titre_CoDiv, \"-->\")","v":"    <!--  question XLQ Comp_Div_CoDiv-->"},null,null,"Valeur Mini_CoDiv","Valeur Maxi_CoDiv","Sig. Digit_CoDiv","Val Choix_CoDiv"]
[null,"Comp_Div_CoDiv",{"$f":"CONCATENATE(\"    <question type=\",CHAR(34),\"category\",CHAR(34),\"><category><text>\", categorie_CoDiv,\"</text></category></question>)\")","v":"    <question type=\"category\"><category><text>Comp_Div</text></category></question>)"},null,"V1._CoDiv",-5,6,0,{"$f":"TEXT(J2*RANDBETWEEN(ValMini_CoDiv*10^-SigDig_CoDiv, ValMaxi_CoDiv*10^-SigDig_CoDiv)/10^-SigDig_CoDiv,\"+##;-##;0\")","v":"-1"},{"$f":"IF(RAND()>0.5,1,-1)","v":1}]
["Tag_CoDiv","Comp_Div_CoDiv","    <question type=\"cloze\">",null,"V2._CoDiv",1,6,0,{"$f":"TEXT(J3*RANDBETWEEN(ValMini_CoDiv*10^-SigDig_CoDiv, ValMaxi_CoDiv*10^-SigDig_CoDiv)/10^-SigDig_CoDiv,\"+##;-##;0\")","v":"+2"},{"$f":"IF(RAND()>0.5,1,-1)","v":1},null,"C1",{"$f":"COMPLEX(V1._CoDiv,V2._CoDiv)","v":"-1+2i"},{"$f":"IMDIV(M3,M4)","v":"-0.5+0.5i"},null,null,null,null,null,null,null,null,null,null,null,null,null,null,null,null,null,null,null,null,null,null,null,null,null,null,null,null,null,null,null,null,null,null,null,null,null,null,null,null,null,null,null,null,null,null,null,null,null,null,null,null,null,null,null,null,null,null,null,null,null,null,null,null,"<p>Soit x=#1#+#2#i et&nbsp;y=#3#+#4#i deux nombres complexes. Calculer le ratio x/y=$1$+$2$i sous forme cart&eacute;sienne.</p><p>"]
["idnumber_CoDiv",{"$f":"TEXT(NOW(),\"aammjj-hhmmss.00\")","v":"210710-210621.92"},{"$f":"CONCATENATE(\"        <name><text>\", titre_CoDiv, \"</text></name>\")","v":"        <name><text>Comp_Div_CoDiv</text></name>"},null,"V3._CoDiv",-5,6,0,{"$f":"TEXT(J4*RANDBETWEEN(ValMini_CoDiv*10^-SigDig_CoDiv, ValMaxi_CoDiv*10^-SigDig_CoDiv)/10^-SigDig_CoDiv,\"+##;-##;0\")","v":"+3"},-1,null,"C2",{"$f":"COMPLEX(V3._CoDiv,V4._CoDiv)","v":"3-i"}]
["points_CoDiv",1,"        <questiontext format=\"html\">",null,"V4._CoDiv",-5,-1,0,{"$f":"TEXT(J5*RANDBETWEEN(ValMini_CoDiv*10^-SigDig_CoDiv, ValMaxi_CoDiv*10^-SigDig_CoDiv)/10^-SigDig_CoDiv,\"+##;-##;0\")","v":"-1"},1]
["tolérance_CoDiv",0.05,{"$f":"CONCATENATE(\"            <text><![CDATA[<p>\", question_CoDiv, \"</p>]]></text>\")","v":"            <text><![CDATA[<p> <p>Soit x=-1+2<strong>  i  </strong>  et &nbsp; y =+3-1<strong>  i  </strong>deux nombres complexes. Calculer le ratio x/y={1:NUMERICAL:=-5.00E-01:2.50E-02}+{1:NUMERICAL:=5.00E-01:2.50E-02}<strong> i </strong>sous forme cart&eacute;sienne.</p><p></p>]]></text>"}]
["penalité_CoDiv",0.1,"        </questiontext>",null,null,"Cible_CoDiv","Toler_CoDiv","PointsQuestion_CoDiv"]
["feedback_CoDiv","_",{"$f":"CONCATENATE(\"        <defaultgrade>\",points_CoDiv,\"</defaultgrade><generalfeedback><text>\",feedback_CoDiv,\"</text></generalfeedback><penalty>\",penalty_CoDiv,\"</penalty><hidden>0</hidden>)\")","v":"        <defaultgrade>1</defaultgrade><generalfeedback><text>_</text></generalfeedback><penalty>0.1</penalty><hidden>0</hidden>)"},null,"R1._CoDiv",{"$f":"IMREAL(N3)","v":-0.5},{"$f":" tolerance_CoDiv*ValMini_CoDiv","v":-2.5000000000000001E-2},1,{"$f":"CONCATENATE(\"{\",PointsQuestion_CoDiv,\":NUMERICAL:=\",TEXT(Cible_CoDiv,\"0.00E+00\"),\":\",TEXT(ABS(Tolere_CoDiv),\"0.00E+00\"),\"}\")","v":"{1:NUMERICAL:=-5.00E-01:2.50E-02}"}]
["Cellule vides_CoDiv",{"$f":"COUNTBLANK(B1:B8)","v":0},{"$f":"CONCATENATE(\"        <idnumber>\",idnumber_CoDiv,\"</idnumber><tags><tag><text>\",Tag_CoDiv,\"</text></tag></tags>\")","v":"        <idnumber>210710-210621.92</idnumber><tags><tag><text>Comp_Div_CoDiv</text></tag></tags>"},null,"R2._CoDiv",{"$f":"IMAGINARY(N3)","v":0.5},{"$f":" tolerance_CoDiv*ValMini_CoDiv","v":2.5000000000000001E-2},1,{"$f":"CONCATENATE(\"{\",PointsQuestion_CoDiv,\":NUMERICAL:=\",TEXT(Cible_CoDiv,\"0.00E+00\"),\":\",TEXT(ABS(Tolere_CoDiv),\"0.00E+00\"),\"}\")","v":"{1:NUMERICAL:=5.00E-01:2.50E-02}"}]
["question format HTML_CoDiv",{"$f":"CONCATENATE(\" \",B19,B20)","v":" <p>Soit x=-1+2<strong>  i  </strong>  et &nbsp; y =+3-1<strong>  i  </strong>deux nombres complexes. Calculer le ratio x/y={1:NUMERICAL:=-5.00E-01:2.50E-02}+{1:NUMERICAL:=5.00E-01:2.50E-02}<strong> i </strong>sous forme cart&eacute;sienne.</p><p>"},"    </question>"]
["Repere Var Rep","_CoDiv"]
["HTML File ",{"$f":"CONCATENATE(categorie_CoDiv,\"_HTML.txt\")","v":"Comp_Div_HTML.txt"}]
["https://html-online.com/editor/"]
[]
[null,null,6]
["Var : ","#",4]
["Res : ","$",2]
[]
[null,{"$f":"CONCATENATE(\"<p>Soit x=\",V1._CoDiv,V2._CoDiv,\"<strong>  i  </strong>  et &nbsp; y =\",V3._CoDiv,V4._CoDiv,\"<strong>  i  </strong>deux nombres complexes. Calculer le ratio x/y=\",R1._CoDiv, \"+\",R2._CoDiv,\"<strong> i </strong>sous forme cart&eacute;sienne.</p><p>\")","v":"<p>Soit x=-1+2<strong>  i  </strong>  et &nbsp; y =+3-1<strong>  i  </strong>deux nombres complexes. Calculer le ratio x/y={1:NUMERICAL:=-5.00E-01:2.50E-02}+{1:NUMERICAL:=5.00E-01:2.50E-02}<strong> i </strong>sous forme cart&eacute;sienne.</p><p>"},"<p>Soit x=#1#+#2#i et&nbsp;y=#3#+#4#i deux nombres complexes. Calculer le ratio x/y=$1$+$2$i sous forme cart&eacute;sienne.</p>"]
[null,{"$f":"CONCATENATE(\"\")","v":""}]
[]
[]
[null,null,null,null,null,null,null,null,null,null,null,null,null,null,{"$f":"IF(NOT(P17),IF(P16,TRUE,FALSE),FALSE)","v":false}]
[]
[]
[]
[]
[]
[]
[]
[]
[]
[]
[]
[]
[]
[]
[]
[]
[]
[null,null,"<p>Soit x=\",V1._aib,\"+\",V2._aib,\" <strong>i</strong> et&nbsp;y=\",V2._aib,\"+\",V3._aib,\"<strong>i</strong> deux nombres complexes. Calculer la somme x+y=\",R1._aib,\"+\",R2._aib,\" <strong>i</strong> et le produit :&nbsp;x*y=\",R3._aib,\"+\",R4._aib,\" <strong>i</strong></p><p>"]

{"sheet":"Comp_Calc","index":26,"n_rows":41,"n_cols":79,"rows_kept":41,"cut":false,"hidden":false,"merged":[]}
["catégorie_","Comp_Calc",{"$f":"CONCATENATE(\"    <!--  question XLQ \", titre_, \"-->\")","v":"    <!--  question XLQ Comp_Calc_-->"},null,null,"Valeur Mini_","Valeur Maxi_","Sig. Digit_","Val Choix_"]
[null,"Comp_Calc_",{"$f":"CONCATENATE(\"    <question type=\",CHAR(34),\"category\",CHAR(34),\"><category><text>\", categorie_,\"</text></category></question>)\")","v":"    <question type=\"category\"><category><text>Comp_Calc</text></category></question>)"},null,"V1._",1,4,0,{"$f":"TEXT(J2*RANDBETWEEN(ValMini_*10^-SigDig_, ValMaxi_*10^-SigDig_)/10^-SigDig_,\"+##;-##;0\")","v":"-1"},{"$f":"IF(RAND()>0.5,1,-1)","v":-1},"R1"]
["Tag_","Comp_Calc_","    <question type=\"cloze\">",null,"V2._",1,4,0,"+4",{"$f":"IF(RAND()>0.5,1,-1)","v":1},"Im1","C1",{"$f":"COMPLEX(V1._,V2._)","v":"-1+4i"},{"$f":"IMSUM($M$3,$M$4)","v":"2+2i"},"somme",null,null,null,null,null,null,null,null,null,null,null,null,null,null,null,null,null,null,null,null,null,null,null,null,null,null,null,null,null,null,null,null,null,null,null,null,null,null,null,null,null,null,null,null,null,null,null,null,null,null,null,null,null,null,null,null,null,null,null,null,null,null,null,"<p>Soit x=#1#+#2#i et&nbsp;y=#3#+#4#i deux nombres complexes. Calculer et &eacute;crire sous la forme alg&eacute;brique</p><p><p>x + y&nbsp; =$1$+$2$i&nbsp;</p><p><p>x- y = $3$ +$4$i</p><p><p>#5#x +#6#y&nbsp;= $5$ +$6$i</p><p><p>xy&nbsp; = $7$ + $8$i</p><p><p>x*x=&nbsp;&nbsp;$9$ +$10$i</p><p><p>&nbsp;</p><p>"]
["idnumber_",{"$f":"TEXT(NOW(),\"aammjj-hhmmss.00\")","v":"210710-210621.92"},{"$f":"CONCATENATE(\"        <name><text>\", titre_, \"</text></name>\")","v":"        <name><text>Comp_Calc_</text></name>"},null,"V3._",1,4,0,"+3",1,"R2","C2",{"$f":"COMPLEX(V3._,V4._)","v":"3-2i"},{"$f":"IMSUB($M$3,$M$4)","v":"-4+6i"},"difference"]
["points_",1,"        <questiontext format=\"html\">",null,"V4._",1,4,0,"-2",-1,"Im2",null,null,{"$f":"COMPLEX(V1._*V5._+V3._*V6._,V2._*V5._+V4._*V6._)","v":"-16+14i"},"fonc"]
["tolérance_",0.05,{"$f":"CONCATENATE(\"            <text><![CDATA[<p>\", question_, \"</p>]]></text>\")","v":"            <text><![CDATA[<p> <p>Soit x=-1+4<strong>  i  </strong>et&nbsp;y=+3-2<strong>  i  </strong>deux nombres complexes. Calculer et &eacute;crire sous la forme alg&eacute;brique</p><p><p>x + y&nbsp; ={1:NUMERICAL:=2.00E+00:1.00E-01}+{1:NUMERICAL:=2.00E+00:1.00E-01}<strong>   i   </strong>&nbsp;</p><p><p>x- y = {1:NUMERICAL:=-4.00E+00:2.00E-01} +{1:NUMERICAL:=6.00E+00:3.00E-01}<strong>  i  </strong></p><p><p>+1x +-5y&nbsp;={1:NUMERICAL:=-1.60E+01:8.00E-01} +{1:NUMERICAL:=1.40E+01:7.00E-01}<strong>  i  </strong></p><p><p>xy&nbsp; = {1:NUMERICAL:=5.00E+00:2.50E-01} + {1:NUMERICAL:=1.40E+01:7.00E-01}<strong>  i  </strong></p><p><p>x*x=&nbsp;&nbsp;{1:NUMERICAL:=-1.50E+01:7.50E-01} +{1:NUMERICAL:=-8.00E+00:4.00E-01}<strong>  i  </strong></p><p><p>&nbsp;</p><p></p>]]></text>"},null,"V5._",1,4,0,"+1",1,"Mult1",null,null,{"$f":"IMPRODUCT(M3,M4)","v":"5+14i"},"produit"]
["penalité_",0.1,"        </questiontext>",null,"V6._",1,5,0,"-5",-1,"Mult2",null,null,{"$f":"IMPRODUCT(M3,M3)","v":"-15-8i"},"x2"]
["feedback_","_",{"$f":"CONCATENATE(\"        <defaultgrade>\",points_,\"</defaultgrade><generalfeedback><text>\",feedback_,\"</text></generalfeedback><penalty>\",penalty_,\"</penalty><hidden>0</hidden>)\")","v":"        <defaultgrade>1</defaultgrade><generalfeedback><text>_</text></generalfeedback><penalty>0.1</penalty><hidden>0</hidden>)"}]
["Cellule vides_",{"$f":"COUNTBLANK(B1:B8)","v":0},{"$f":"CONCATENATE(\"        <idnumber>\",idnumber_,\"</idnumber><tags><tag><text>\",Tag_,\"</text></tag></tags>\")","v":"        <idnumber>210710-210621.92</idnumber><tags><tag><text>Comp_Calc_</text></tag></tags>"},null,null,"Cible_","Toler_","PointsQuestion_"]
["question format HTML_",{"$f":"CONCATENATE(\" \",B19,B20,B21,B22)","v":" <p>Soit x=-1+4<strong>  i  </strong>et&nbsp;y=+3-2<strong>  i  </strong>deux nombres complexes. Calculer et &eacute;crire sous la forme alg&eacute;brique</p><p><p>x + y&nbsp; ={1:NUMERICAL:=2.00E+00:1.00E-01}+{1:NUMERICAL:=2.00E+00:1.00E-01}<strong>   i   </strong>&nbsp;</p><p><p>x- y = {1:NUMERICAL:=-4.00E+00:2.00E-01} +{1:NUMERICAL:=6.00E+00:3.00E-01}<strong>  i  </strong></p><p><p>+1x +-5y&nbsp;={1:NUMERICAL:=-1.60E+01:8.00E-01} +{1:NUMERICAL:=1.40E+01:7.00E-01}<strong>  i  </strong></p><p><p>xy&nbsp; = {1:NUMERICAL:=5.00E+00:2.50E-01} + {1:NUMERICAL:=1.40E+01:7.00E-01}<strong>  i  </strong></p><p><p>x*x=&nbsp;&nbsp;{1:NUMERICAL:=-1.50E+01:7.50E-01} +{1:NUMERICAL:=-8.00E+00:4.00E-01}<strong>  i  </strong></p><p><p>&nbsp;</p><p>"},"    </question>",null,"R1._",{"$f":"IMREAL(N3)","v":2},{"$f":" tolerance_*ValMini_","v":0.1},1,{"$f":"CONCATENATE(\"{\",PointsQuestion_,\":NUMERICAL:=\",TEXT(Cible_,\"0.00E+00\"),\":\",TEXT(ABS(Tolere_),\"0.00E+00\"),\"}\")","v":"{1:NUMERICAL:=2.00E+00:1.00E-01}"}]
["Repere Var Rep","_",null,null,"R2._",{"$f":"IMAGINARY(N3)","v":2},0.1,1,"{1:NUMERICAL:=2.00E+00:1.00E-01}"]
["HTML File ",{"$f":"CONCATENATE(categorie_,\"_HTML.txt\")","v":"Comp_Calc_HTML.txt"},null,null,"R3._",{"$f":"IMREAL(N4)","v":-4},-0.2,1,"{1:NUMERICAL:=-4.00E+00:2.00E-01}"]
["https://html-online.com/editor/",null,null,null,"R4._",{"$f":"IMAGINARY(N4)","v":6},0.30000000000000004,1,"{1:NUMERICAL:=6.00E+00:3.00E-01}"]
[null,null,null,null,"R5._",{"$f":"IMREAL(N5)","v":-16},-0.8,1,"{1:NUMERICAL:=-1.60E+01:8.00E-01}"]
[null,null,8,null,"R6._",{"$f":"IMAGINARY(N5)","v":14},0.70000000000000007,1,"{1:NUMERICAL:=1.40E+01:7.00E-01}"]
["Var : ","#",6,null,"R7._",{"$f":"IMREAL(N6)","v":5},0.25,1,"{1:NUMERICAL:=5.00E+00:2.50E-01}"]
["Res : ","$",10,null,"R8._",{"$f":"IMAGINARY(N6)","v":14},0.70000000000000007,1,"{1:NUMERICAL:=1.40E+01:7.00E-01}"]
[null,null,null,null,"R9._",{"$f":"IMREAL(N7)","v":-15},-0.75,1,"{1:NUMERICAL:=-1.50E+01:7.50E-01}"]
[null,{"$f":"CONCATENATE(\"<p>Soit x=\",V1._,V2._,\"<strong>  i  </strong>et&nbsp;y=\",V3._,V4._,\"<strong>  i  </strong>deux nombres complexes. Calculer et &eacute;crire sous la forme alg&eacute;brique</p><p><p>x + y&nbsp; =\",R1._,\"+\",R2._,\"<strong>   i   </strong>&nbsp;</p><p><p>x- y = \",R3._,\" +\",R4._,\"<strong>  i  </strong></p><p><p>\",V5._,\"x +\",V6._,\"y&nbsp;=\")","v":"<p>Soit x=-1+4<strong>  i  </strong>et&nbsp;y=+3-2<strong>  i  </strong>deux nombres complexes. Calculer et &eacute;crire sous la forme alg&eacute;brique</p><p><p>x + y&nbsp; ={1:NUMERICAL:=2.00E+00:1.00E-01}+{1:NUMERICAL:=2.00E+00:1.00E-01}<strong>   i   </strong>&nbsp;</p><p><p>x- y = {1:NUMERICAL:=-4.00E+00:2.00E-01} +{1:NUMERICAL:=6.00E+00:3.00E-01}<strong>  i  </strong></p><p><p>+1x +-5y&nbsp;="},"<p>Soit x=#1#+#2#i et&nbsp;y=#3#+#4#i deux nombres complexes. Calculer et &eacute;crire sous la forme alg&eacute;brique</p>",null,"R10._",{"$f":"IMAGINARY(N7)","v":-8},-0.4,1,"{1:NUMERICAL:=-8.00E+00:4.00E-01}"]
[null,{"$f":"CONCATENATE(\"\",R5._,\" +\",R6._,\"<strong>  i  </strong></p><p><p>xy&nbsp; = \",R7._,\" + \",R8._,\"<strong>  i  </strong></p><p><p>x*x=&nbsp;&nbsp;\",R9._,\" +\",R10._,\"<strong>  i  </strong></p><p><p>&nbsp;</p><p>\")","v":"{1:NUMERICAL:=-1.60E+01:8.00E-01} +{1:NUMERICAL:=1.40E+01:7.00E-01}<strong>  i  </strong></p><p><p>xy&nbsp; = {1:NUMERICAL:=5.00E+00:2.50E-01} + {1:NUMERICAL:=1.40E+01:7.00E-01}<strong>  i  </strong></p><p><p>x*x=&nbsp;&nbsp;{1:NUMERICAL:=-1.50E+01:7.50E-01} +{1:NUMERICAL:=-8.00E+00:4.00E-01}<strong>  i  </strong></p><p><p>&nbsp;</p><p>"},"<p>x + y&nbsp; =$1$+$2$i&nbsp;</p>"]
[null,{"$f":"CONCATENATE(\"\")","v":""},"<p>x- y = $3$ +$4$i</p>"]
[null,{"$f":"CONCATENATE(\"\")","v":""},"<p>#5#x +#6#y&nbsp;= $5$ +$6$i</p>"]
[null,null,"<p>xy&nbsp; = $7$ + $8$i</p>",null,null,null,null,null,null,null,null,null,null,null,{"$f":"IF(NOT(P17),IF(P16,TRUE,FALSE),FALSE)","v":false}]
[null,null,"<p>x*x=&nbsp;&nbsp;$9$ +$10$i</p>"]
[null,null,"<p>&nbsp;</p>"]
[]
[]
[]
[]
[]
[]
[]
[]
[]
[]
[]
[]
[]
[]
[]
[null,null,"<p>Soit x=\",V1._aib,\"+\",V2._aib,\" <strong>i</strong> et&nbsp;y=\",V2._aib,\"+\",V3._aib,\"<strong>i</strong> deux nombres complexes. Calculer la somme x+y=\",R1._aib,\"+\",R2._aib,\" <strong>i</strong> et le produit :&nbsp;x*y=\",R3._aib,\"+\",R4._aib,\" <strong>i</strong></p><p>"]

{"sheet":"Comp_Trian","index":27,"n_rows":41,"n_cols":79,"rows_kept":41,"cut":false,"hidden":false,"merged":[]}
["catégorie_trian","Comp_Trian",{"$f":"CONCATENATE(\"    <!--  question XLQ \", titre_trian, \"-->\")","v":"    <!--  question XLQ Comp_Trian_trian-->"},null,null,"Valeur Mini_trian","Valeur Maxi_trian","Sig. Digit_trian","Val Choix_trian"]
[null,"Comp_Trian_trian",{"$f":"CONCATENATE(\"    <question type=\",CHAR(34),\"category\",CHAR(34),\"><category><text>\", categorie_trian,\"</text></category></question>)\")","v":"    <question type=\"category\"><category><text>Comp_Trian</text></category></question>)"},null,"V1._trian",1,4,0,{"$f":"TEXT(J2*RANDBETWEEN(ValMini_trian*10^-SigDig_trian, ValMaxi_trian*10^-SigDig_trian)/10^-SigDig_trian,\"+##;-##;0\")","v":"+1"},{"$f":"IF(RAND()>0.5,1,-1)","v":1},"R1",null,null,null,null,"distance",null,null,"angle",null,null,"x","y"]
["Tag_trian","Comp_Trian_trian","    <question type=\"cloze\">",null,"V2._trian",1,4,0,"+3",{"$f":"IF(RAND()>0.5,1,-1)","v":1},"Im1","A",{"$f":"COMPLEX(V1._trian,V2._trian)","v":"1+3i"},"ZAB",{"$f":"IMSUB(M4,M3)","v":"-5-4i"},{"$f":"IMABS(O3)","v":6.4031242374328485},"AB, AC",{"$f":"IMDIV(IMSUB(M4,M3),IMSUB(M5,M3))","v":"0.576923076923077-1.11538461538462i"},{"$f":"ABS(180*IMARGUMENT(R3)/PI())","v":62.65012421993022},null,"A",{"$f":"V1._trian","v":"+1"},{"$f":"V2._trian","v":"+3"},"A",null,null,null,null,null,null,null,null,null,null,null,null,null,null,null,null,null,null,null,null,null,null,null,null,null,null,null,null,null,null,null,null,null,null,null,null,null,null,null,null,null,null,null,null,null,null,null,null,null,null,null,null,null,null,"<p>Soit z<sub>A</sub>=#1#+#2#i et z<sub>B</sub>=#3#+#4#i et z<sub>C</sub>&nbsp;=#5#+#6#i trois nombres complexes affixes des points A, B, C.</p><p><p>D&eacute;terminer les 3 longueurs dans le plan complexe :&nbsp;</p><p><p>AB =$1$</p><p><p>AC= $2$</p><p><p>BC = $3$</p><p><p>D&eacute;terminer les 3 angles (en valeur absolue et en degr&eacute;) pour chaque sommet du triangle :</p><p><p>(BAC) : $4$</p><p><p>(ABC) : $5$</p><p><p>(ACB) : $6$</p><p><p>En d&eacute;duire la nature du triangle (ABC) :&nbsp;$7$</p><p>"]
["idnumber_trian",{"$f":"TEXT(NOW(),\"aammjj-hhmmss.00\")","v":"210710-210621.92"},{"$f":"CONCATENATE(\"        <name><text>\", titre_trian, \"</text></name>\")","v":"        <name><text>Comp_Trian_trian</text></name>"},null,"V3._trian",1,4,0,"-4",-1,"R2","B",{"$f":"COMPLEX(V3._trian,V4._trian)","v":"-4-i"},"ZAC",{"$f":"IMSUB(M5,M3)","v":"1-5i"},{"$f":"IMABS(O4)","v":5.0990195135927854},"CA,CB",{"$f":"IMDIV(IMSUB(M4,M5),IMSUB(M3,M5))","v":"0.423076923076923+1.11538461538462i"},{"$f":"ABS(180*IMARGUMENT(R4)/PI())","v":69.227745317954259},null,"B",{"$f":"V3._trian","v":"-4"},{"$f":"V4._trian","v":"-1"},"B"]
["points_trian",1,"        <questiontext format=\"html\">",null,"V4._trian",1,4,0,"-1",-1,"Im2","C",{"$f":"COMPLEX(V5._trian,V6._trian)","v":"2-2i"},"ZBC",{"$f":"IMSUB(M5,M4)","v":"6-i"},6.0827625302982185,"BA, BC",{"$f":"IMDIV(IMSUB(M3,M4),IMSUB(M5,M4))","v":"0.702702702702703+0.783783783783784i"},48.122130462115706,null,"C",{"$f":"V5._trian","v":"+2"},{"$f":"V6._trian","v":"-2"},"C"]
["tolérance_trian",0.05,{"$f":"CONCATENATE(\"            <text><![CDATA[<p>\", question_trian, \"</p>]]></text>\")","v":"            <text><![CDATA[<p> <p>Soit z<sub>A</sub>=+1+3<strong> i </strong>  et z<sub>B</sub>=-4-1<strong> i </strong>  et z<sub>C</sub>&nbsp;=+2-2<strong> i </strong>trois nombres complexes affixes des points A, B, C.</p><p><p>D&eacute;terminer les 3 longueurs dans le plan complexe:&nbsp;</p><p><p>AB ={1:NUMERICAL:=6.40E+00:3.20E-01}</p><p><p>AC= {1:NUMERICAL:=5.10E+00:2.55E-01}</p><p><p>BC = {1:NUMERICAL:=6.08E+00:3.04E-01}</p><p><p>D&eacute;terminer les 3 angles (en valeur absolue et en degr&eacute;) pour chaque sommet du triangle :</p><p><p>(BAC) : {1:NUMERICAL:=6.27E+01:3.13E+00}</p><p><p>(ABC): {1:NUMERICAL:=6.92E+01:3.46E+00}</p><p><p>(ACB) : {1:NUMERICAL:=4.81E+01:2.41E+00}</p><p><p>En d&eacute;duire la nature du triangle (ABC) :&nbsp;{1:MULTICHOICE:%0%isoc&egrave;le~%0%&eacute;quilat&eacute;ral~%0%rectangle~%100%quelconque}</p><p>FAUXVRAI</p>]]></text>"},null,"V5._trian",1,4,0,"+2",1,"R3",null,null,null,null,null,null,null,{"$f":"SUM(S3:S5)","v":180.00000000000017},null,null,{"$f":"V3","v":"+1"},{"$f":"W3","v":"+3"}]
["penalité_trian",0.1,"        </questiontext>",null,"V6._trian",1,5,0,"-2",-1,"Im3"]
["feedback_trian","_",{"$f":"CONCATENATE(\"        <defaultgrade>\",points_trian,\"</defaultgrade><generalfeedback><text>\",feedback_trian,\"</text></generalfeedback><penalty>\",penalty_trian,\"</penalty><hidden>0</hidden>)\")","v":"        <defaultgrade>1</defaultgrade><generalfeedback><text>_</text></generalfeedback><penalty>0.1</penalty><hidden>0</hidden>)"}]
["Cellule vides_trian",{"$f":"COUNTBLANK(B1:B8)","v":0},{"$f":"CONCATENATE(\"        <idnumber>\",idnumber_trian,\"</idnumber><tags><tag><text>\",Tag_trian,\"</text></tag></tags>\")","v":"        <idnumber>210710-210621.92</idnumber><tags><tag><text>Comp_Trian_trian</text></tag></tags>"},null,null,"Cible_trian","Toler_trian","PointsQuestion_trian",null,null,null,null,null,null,"nombre",{"$f":"ISNUMBER(P5*P4*P3*S3*S4*S5)","v":true}]
["question format HTML_trian",{"$f":"CONCATENATE(\" \",B19,B20,B21,B22,O23,O24)","v":" <p>Soit z<sub>A</sub>=+1+3<strong> i </strong>  et z<sub>B</sub>=-4-1<strong> i </strong>  et z<sub>C</sub>&nbsp;=+2-2<strong> i </strong>trois nombres complexes affixes des points A, B, C.</p><p><p>D&eacute;terminer les 3 longueurs dans le plan complexe:&nbsp;</p><p><p>AB ={1:NUMERICAL:=6.40E+00:3.20E-01}</p><p><p>AC= {1:NUMERICAL:=5.10E+00:2.55E-01}</p><p><p>BC = {1:NUMERICAL:=6.08E+00:3.04E-01}</p><p><p>D&eacute;terminer les 3 angles (en valeur absolue et en degr&eacute;) pour chaque sommet du triangle :</p><p><p>(BAC) : {1:NUMERICAL:=6.27E+01:3.13E+00}</p><p><p>(ABC): {1:NUMERICAL:=6.92E+01:3.46E+00}</p><p><p>(ACB) : {1:NUMERICAL:=4.81E+01:2.41E+00}</p><p><p>En d&eacute;duire la nature du triangle (ABC) :&nbsp;{1:MULTICHOICE:%0%isoc&egrave;le~%0%&eacute;quilat&eacute;ral~%0%rectangle~%100%quelconque}</p><p>FAUXVRAI"},"    </question>",null,"R1.L1_trian",{"$f":"P3","v":6.4031242374328485},{"$f":" tolerance_trian*ValMini_trian","v":0.32015621187164245},1,{"$f":"CONCATENATE(\"{\",PointsQuestion_trian,\":NUMERICAL:=\",TEXT(Cible_trian,\"0.00E+00\"),\":\",TEXT(ABS(Tolere_trian),\"0.00E+00\"),\"}\")","v":"{1:NUMERICAL:=6.40E+00:3.20E-01}"},"AB",null,null,null,null,"non nul",{"$f":"IF(P3*P4*P5*S3*S4*S5=0,FALSE,TRUE)","v":true}]
["Repere Var Rep","_trian",null,null,"R2.L2_trian",{"$f":"P4","v":5.0990195135927854},0.25495097567963926,1,"{1:NUMERICAL:=5.10E+00:2.55E-01}","AC",null,null,null,{"$f":"IF(P11,\"%100%\",\"%0%\")","v":"%0%"},"isoc&egrave;le",{"$f":"IF(OR(P3=P4,P3=P5,P4=P5),TRUE,FALSE)","v":false},null,null,null,"L'angle orienté  est égal à l'argument du rapport ."]
["HTML File ",{"$f":"CONCATENATE(categorie_trian,\"_HTML.txt\")","v":"Comp_Trian_HTML.txt"},null,null,"R3.L3_trian",{"$f":"P5","v":6.0827625302982185},0.30413812651491096,1,"{1:NUMERICAL:=6.08E+00:3.04E-01}","BC",null,null,null,{"$f":"IF(P12,\"~%100%\",\"~%0%\")","v":"~%0%"},"&eacute;quilat&eacute;ral",{"$f":"IF(AND(P5=P4,P4=P3),TRUE,FALSE)","v":false}]
["Valide ?",{"$f":"ISLOGICAL(P15)","v":true},null,{"$f":"IF(NOT(P17),IF(P16,TRUE,FALSE),FALSE)","v":false},"R4.A1_trian",{"$f":"S3","v":62.65012421993022},3.1325062109965112,1,"{1:NUMERICAL:=6.27E+01:3.13E+00}","AB,AC",null,null,null,{"$f":"IF(P13,\"~%100%\",\"~%0%\")","v":"~%0%"},"rectangle",{"$f":"IF(OR(S3=90,S4=90,S5=90),TRUE,FALSE)","v":false}]
["https://html-online.com/editor/",null,null,null,"R5.A2_trian",{"$f":"S4","v":69.227745317954259},3.461387265897713,1,"{1:NUMERICAL:=6.92E+01:3.46E+00}","AB,AC",null,null,null,{"$f":"IF(P14,\"~%100%\",\"~%0%\")","v":"~%100%"},"quelconque",{"$f":"IF(AND(P9,P10,NOT(P11),NOT(P12),NOT(P13)),TRUE,FALSE)","v":true},null,null,null,null,null,null,"x","y"]
[null,null,8,null,"R6.A3_trian",{"$f":"S5","v":48.122130462115706},2.4061065231057857,1,"{1:NUMERICAL:=4.81E+01:2.41E+00}","BA,BC",null,null,null,null,"Valide",{"$f":"IF(AND(P9,P10),TRUE,FALSE)","v":true},null,null,null,null,null,null,{"$f":"V3-1+1","v":1},3]
["Var : ","#",6,null,"R7.Nature_trian",{"$f":"CONCATENATE(N11,O11,N12,O12,N13,O13,N14,O14)","v":"%0%isoc&egrave;le~%0%&eacute;quilat&eacute;ral~%0%rectangle~%100%quelconque"},null,1,{"$f":"CONCATENATE(\"{\",PointsQuestion_trian,\":MULTICHOICE:\",F16,\"}\")","v":"{1:MULTICHOICE:%0%isoc&egrave;le~%0%&eacute;quilat&eacute;ral~%0%rectangle~%100%quelconque}"},"",null,null,null,null,"valide et non quelconque",{"$f":"IF(AND(P15,NOT(P14)),TRUE,FALSE)","v":false},null,null,null,null,null,null,-4,-1]
["Res : ","$",7,null,null,null,null,null,null,null,null,null,null,null,null,{"$f":"ISERROR(P16)","v":false},null,null,null,null,null,null,2,-2]
[null,null,null,null,null,null,null,null,null,null,null,null,null,null,null,null,null,null,null,null,null,null,1,3]
[null,{"$f":"CONCATENATE(\"<p>Soit z<sub>A</sub>=\",V1._trian,V2._trian,\"<strong> i </strong>  et z<sub>B</sub>=\",V3._trian,V4._trian,\"<strong> i </strong>  et z<sub>C</sub>&nbsp;=\",V5._trian,V6._trian,\"<strong> i </strong>trois nombres complexes affixes des points A, B, C.</p><p><p>D&eacute;terminer les 3 longueurs dans le plan complexe\")","v":"<p>Soit z<sub>A</sub>=+1+3<strong> i </strong>  et z<sub>B</sub>=-4-1<strong> i </strong>  et z<sub>C</sub>&nbsp;=+2-2<strong> i </strong>trois nombres complexes affixes des points A, B, C.</p><p><p>D&eacute;terminer les 3 longueurs dans le plan complexe"},"<p>Soit z<sub>A</sub>=#1#+#2#i et z<sub>B</sub>=#3#+#4#i et z<sub>C</sub>&nbsp;=#5#+#6#i trois nombres complexes affixes des points A, B, C.</p>"]
[null,{"$f":"CONCATENATE(\":&nbsp;</p><p><p>AB =\",R1.L1_trian,\"</p><p><p>AC= \",R2.L2_trian,\"</p><p><p>BC = \",R3.L3_trian,\"</p><p><p>D&eacute;terminer les 3 angles (en valeur absolue et en degr&eacute;) pour chaque sommet du triangle :</p><p><p>(BAC) : \",R4.A1_trian,\"</p><p><p>(ABC)\")","v":":&nbsp;</p><p><p>AB ={1:NUMERICAL:=6.40E+00:3.20E-01}</p><p><p>AC= {1:NUMERICAL:=5.10E+00:2.55E-01}</p><p><p>BC = {1:NUMERICAL:=6.08E+00:3.04E-01}</p><p><p>D&eacute;terminer les 3 angles (en valeur absolue et en degr&eacute;) pour chaque sommet du triangle :</p><p><p>(BAC) : {1:NUMERICAL:=6.27E+01:3.13E+00}</p><p><p>(ABC)"},"<p>D&eacute;terminer les 3 longueurs dans le plan complexe :&nbsp;</p>"]
[null,{"$f":"CONCATENATE(\": \",R5.A2_trian,\"</p><p><p>(ACB) : \",R6.A3_trian,\"</p><p><p>En d&eacute;duire la nature du triangle (ABC) :&nbsp;\",R7.Nature_trian,\"</p><p>\")","v":": {1:NUMERICAL:=6.92E+01:3.46E+00}</p><p><p>(ACB) : {1:NUMERICAL:=4.81E+01:2.41E+00}</p><p><p>En d&eacute;duire la nature du triangle (ABC) :&nbsp;{1:MULTICHOICE:%0%isoc&egrave;le~%0%&eacute;quilat&eacute;ral~%0%rectangle~%100%quelconque}</p><p>"},"<p>AB =$1$</p>"]
[null,null,"<p>AC= $2$</p>"]
[null,null,"<p>BC = $3$</p>",null,null,null,null,null,null,null,null,null,null,"Pas de quelconque",{"$f":"IF(NOT(P17),IF(P16,TRUE,FALSE),FALSE)","v":false}]
[null,null,"<p>D&eacute;terminer les 3 angles (en valeur absolue et en degr&eacute;) pour chaque sommet du triangle :</p>",null,null,null,null,null,null,null,null,null,null,"Tous",{"$f":"IF(NOT(P17),IF(P15,TRUE,FALSE),FALSE)","v":true}]
[null,null,"<p>(BAC) : $4$</p>",null,null,null,null,null,"{1:MULTICHOICE:%100%answer1#feedback1~%0%answer2#feedback2}"]
[null,null,"<p>(ABC) : $5$</p>"]
[null,null,"<p>(ACB) : $6$</p>"]
[null,null,"<p>En d&eacute;duire la nature du triangle (ABC) :&nbsp;$7$</p>"]
[]
[]
[]
[]
[]
[]
[]
[]
[]
[]
[]
[]
[null,null,"<p>Soit x=\",V1._aib,\"+\",V2._aib,\" <strong>i</strong> et&nbsp;y=\",V2._aib,\"+\",V3._aib,\"<strong>i</strong> deux nombres complexes. Calculer la somme x+y=\",R1._aib,\"+\",R2._aib,\" <strong>i</strong> et le produit :&nbsp;x*y=\",R3._aib,\"+\",R4._aib,\" <strong>i</strong></p><p>"]

{"sheet":"Comp_Polyno","index":28,"n_rows":41,"n_cols":79,"rows_kept":41,"cut":false,"hidden":false,"merged":[]}
["catégorie_Racine","Comp_Polyno",{"$f":"CONCATENATE(\"    <!--  question XLQ \", titre_Racine, \"-->\")","v":"    <!--  question XLQ Comp_Polyno_Racine-->"},null,null,"Valeur Mini_Racine","Valeur Maxi_Racine","Sig. Digit_Racine","Val Choix_Racine",null,null,"Az2+Bz+C=0"]
[null,"Comp_Polyno_Racine",{"$f":"CONCATENATE(\"    <question type=\",CHAR(34),\"category\",CHAR(34),\"><category><text>\", categorie_Racine,\"</text></category></question>)\")","v":"    <question type=\"category\"><category><text>Comp_Polyno</text></category></question>)"},null,"V1._Racine",1,4,0,{"$f":"TEXT(J2*RANDBETWEEN(ValMini_Racine*10^-SigDig_Racine, ValMaxi_Racine*10^-SigDig_Racine)/10^-SigDig_Racine,\"+##;-##;0\")","v":"-3"},{"$f":"IF(RAND()>0.5,1,-1)","v":-1}]
["Tag_Racine","Comp_Polyno_Racine","    <question type=\"cloze\">",null,"V2._Racine",1,4,0,"-4",{"$f":"IF(RAND()>0.5,1,-1)","v":-1},null,"A",{"$f":"COMPLEX(V1._Racine,V2._Racine)","v":"-3-4i"},"B2",{"$f":"IMPRODUCT(M4,M4)","v":"-8-6i"},null,"R1",{"$f":"IMDIV(IMSUM(M7,O6),IMPRODUCT(2,M3))","v":"-0.251604790073086+0.93932517604902i"},null,null,null,null,null,null,null,null,null,null,null,null,null,null,null,null,null,null,null,null,null,null,null,null,null,null,null,null,null,null,null,null,null,null,null,null,null,null,null,null,null,null,null,null,null,null,null,null,null,null,null,null,null,null,null,null,null,null,null,null,"<p>Soit A=#1#+#2#i et B=#3#+#4#i et C=#5#+#6#i trois nombres complexes. On souhaite trouver les racine de l'&eacute;quation Az2+Bz+C.&nbsp;</p><p><p>Calculez les d&eacute;terminant :</p><p><p>&Delta; = $5$ + $6$i</p><p><p>D&eacute;terminer les deux racines :</p><p><p>Z1 = $1$ + $2$i</p><p><p>Z2 = $3$ + $4$i</p><p><p>&nbsp;</p><p><p>&nbsp;</p><p>"]
["idnumber_Racine",{"$f":"TEXT(NOW(),\"aammjj-hhmmss.00\")","v":"210710-210621.92"},{"$f":"CONCATENATE(\"        <name><text>\", titre_Racine, \"</text></name>\")","v":"        <name><text>Comp_Polyno_Racine</text></name>"},null,"V3._Racine",1,4,0,"-1",-1,null,"B",{"$f":"COMPLEX(V3._Racine,V4._Racine)","v":"-1+3i"},"-4ac",{"$f":"IMPRODUCT(-4,M3,M5)","v":"72-4i"},null,"R2",{"$f":"IMDIV(IMSUB(M7,O6),IMPRODUCT(2,M3))","v":"0.611604790073086-0.41932517604902i"}]
["points_Racine",1,"        <questiontext format=\"html\">",null,"V4._Racine",1,4,0,"+3",1,null,"C",{"$f":"COMPLEX(V5._Racine,V6._Racine)","v":"2-3i"},"Delta",{"$f":"IMSUM(O3,O4)","v":"64-10i"}]
["tolérance_Racine",0.05,{"$f":"CONCATENATE(\"            <text><![CDATA[<p>\", question_Racine, \"</p>]]></text>\")","v":"            <text><![CDATA[<p> <p>Soit A=-3-4<strong>i</strong>et B=-1+3<strong>  i </strong>et C=+2-3<strong>  i  </strong>trois nombres complexes. On souhaite trouver les racine de l'&eacute;quation Az2+Bz+C.&nbsp;</p><p><p>Calculez le discriminant :</p><p><p>&Delta; ={1:NUMERICAL:=6.40E+01:3.20E+00} + {1:NUMERICAL:=-1.00E+01:5.00E-01}<strong>  i  </strong></p><p><p>D&eacute;terminer les deux racines :</p><p><p>Z1 = {1:NUMERICAL:=-2.52E-01:1.26E-02} + {1:NUMERICAL:=9.39E-01:4.70E-02}<strong>  i  </strong></p><p><p>Z2 = {1:NUMERICAL:=6.12E-01:3.06E-02} + {1:NUMERICAL:=-4.19E-01:2.10E-02}<strong>  i  </strong></p><p><p>&nbsp;</p><p><p>&nbsp;</p><p></p>]]></text>"},null,"V5._Racine",1,4,0,"+2",1,null,null,null,"racine(Delta)",{"$f":"IMSQRT(O5)","v":"8.02423014883068-0.623112735709433i"},""]
["penalité_Racine",0.1,"        </questiontext>",null,"V6._Racine",1,5,0,"-3",-1,null,"-B",{"$f":"IMSUB(0,M4)","v":"1-3i"}]
["feedback_Racine","_",{"$f":"CONCATENATE(\"        <defaultgrade>\",points_Racine,\"</defaultgrade><generalfeedback><text>\",feedback_Racine,\"</text></generalfeedback><penalty>\",penalty_Racine,\"</penalty><hidden>0</hidden>)\")","v":"        <defaultgrade>1</defaultgrade><generalfeedback><text>_</text></generalfeedback><penalty>0.1</penalty><hidden>0</hidden>)"}]
["Cellule vides_Racine",{"$f":"COUNTBLANK(B1:B8)","v":0},{"$f":"CONCATENATE(\"        <idnumber>\",idnumber_Racine,\"</idnumber><tags><tag><text>\",Tag_Racine,\"</text></tag></tags>\")","v":"        <idnumber>210710-210621.92</idnumber><tags><tag><text>Comp_Polyno_Racine</text></tag></tags>"},null,null,"Cible_Racine","Toler_Racine","PointsQuestion_Racine"]
["question format HTML_Racine",{"$f":"CONCATENATE(\" \",B19,B20,B21,B22)","v":" <p>Soit A=-3-4<strong>i</strong>et B=-1+3<strong>  i </strong>et C=+2-3<strong>  i  </strong>trois nombres complexes. On souhaite trouver les racine de l'&eacute;quation Az2+Bz+C.&nbsp;</p><p><p>Calculez le discriminant :</p><p><p>&Delta; ={1:NUMERICAL:=6.40E+01:3.20E+00} + {1:NUMERICAL:=-1.00E+01:5.00E-01}<strong>  i  </strong></p><p><p>D&eacute;terminer les deux racines :</p><p><p>Z1 = {1:NUMERICAL:=-2.52E-01:1.26E-02} + {1:NUMERICAL:=9.39E-01:4.70E-02}<strong>  i  </strong></p><p><p>Z2 = {1:NUMERICAL:=6.12E-01:3.06E-02} + {1:NUMERICAL:=-4.19E-01:2.10E-02}<strong>  i  </strong></p><p><p>&nbsp;</p><p><p>&nbsp;</p><p>"},"    </question>",null,"R1._Racine",{"$f":"IMREAL(R3)","v":-0.251604790073086},{"$f":" tolerance_Racine*ValMini_Racine","v":-1.2580239503654301E-2},1,{"$f":"CONCATENATE(\"{\",PointsQuestion_Racine,\":NUMERICAL:=\",TEXT(Cible_Racine,\"0.00E+00\"),\":\",TEXT(ABS(Tolere_Racine),\"0.00E+00\"),\"}\")","v":"{1:NUMERICAL:=-2.52E-01:1.26E-02}"}]
["Repere Var Rep","_Racine",null,null,"R2._Racine",{"$f":"IMAGINARY(R3)","v":0.93932517604901999},4.6966258802451005E-2,1,"{1:NUMERICAL:=9.39E-01:4.70E-02}"]
["HTML File ",{"$f":"CONCATENATE(categorie_Racine,\"_HTML.txt\")","v":"Comp_Polyno_HTML.txt"},null,null,"R3._Racine",{"$f":"IMREAL(R4)","v":0.61160479007308599},3.0580239503654301E-2,1,"{1:NUMERICAL:=6.12E-01:3.06E-02}",null,null,null,null,"ax2","bx","ax2+bc+c"]
["Valide ? ",{"$f":"ISNUMBER(F15)","v":true},null,null,"R4._Racine",{"$f":"IMAGINARY(R4)","v":-0.41932517604901998},-2.0966258802451E-2,1,"{1:NUMERICAL:=-4.19E-01:2.10E-02}",null,null,null,"Vérification",{"$f":"IMPRODUCT(M3,R3,R3)","v":"0.566370738073977+4.69413954626827i"},{"$f":"IMPRODUCT(M4,R3)","v":"-2.56637073807397-1.69413954626828i"},{"$f":"IMSUM(N13,O13,M5)","v":"7.105427357601E-15-1.06581410364015E-14i"}]
["https://html-online.com/editor/",null,null,null,"R5._Delta_R",{"$f":"IMREAL(O5)","v":64},3.2,1,"{1:NUMERICAL:=6.40E+01:3.20E+00}",null,null,null,null,{"$f":"IMPRODUCT(M3,R4,R4)","v":"-2.64637073807397+0.745860453731716i"},{"$f":"IMPRODUCT(M4,R4)","v":"0.646370738073974+2.25413954626828i"},{"$f":"IMSUM(N14,O14,M5)","v":"3.99680288865056E-15-3.99680288865056E-15i"}]
[null,null,8,null,"R6._Delta_im",{"$f":"IMAGINARY(O5)","v":-10},-0.5,1,"{1:NUMERICAL:=-1.00E+01:5.00E-01}"]
["Var : ","#",6]
["Res : ","$",6]
[]
[null,{"$f":"CONCATENATE(\"<p>Soit A=\",V1._Racine,V2._Racine,\"<strong>i</strong>et B=\",V3._Racine,V4._Racine,\"<strong>  i </strong>et C=\",V5._Racine,V6._Racine,\"<strong>  i  </strong>trois nombres complexes. On souhaite trouver les racine de l'&eacute;quation Az2+Bz+C.&nbsp;</p><p><p>Calculez le discriminant :</p><p><p>&Delta; =\")","v":"<p>Soit A=-3-4<strong>i</strong>et B=-1+3<strong>  i </strong>et C=+2-3<strong>  i  </strong>trois nombres complexes. On souhaite trouver les racine de l'&eacute;quation Az2+Bz+C.&nbsp;</p><p><p>Calculez le discriminant :</p><p><p>&Delta; ="},"<p>Soit A=#1#+#2#i et B=#3#+#4#i et C=#5#+#6#i trois nombres complexes. On souhaite trouver les racine de l'&eacute;quation Az2+Bz+C.&nbsp;</p>"]
[null,{"$f":"CONCATENATE(\"\",R5._Delta_R,\" + \",R6._Delta_im,\"<strong>  i  </strong></p><p><p>D&eacute;terminer les deux racines :</p><p><p>Z1 = \",R1._Racine,\" + \",R2._Racine,\"<strong>  i  </strong></p><p><p>Z2 = \",R3._Racine,\" + \",R4._Racine,\"<strong>  i  </strong></p><p><p>&nbsp;</p><p><p>&nbsp;</p><p>\")","v":"{1:NUMERICAL:=6.40E+01:3.20E+00} + {1:NUMERICAL:=-1.00E+01:5.00E-01}<strong>  i  </strong></p><p><p>D&eacute;terminer les deux racines :</p><p><p>Z1 = {1:NUMERICAL:=-2.52E-01:1.26E-02} + {1:NUMERICAL:=9.39E-01:4.70E-02}<strong>  i  </strong></p><p><p>Z2 = {1:NUMERICAL:=6.12E-01:3.06E-02} + {1:NUMERICAL:=-4.19E-01:2.10E-02}<strong>  i  </strong></p><p><p>&nbsp;</p><p><p>&nbsp;</p><p>"},"<p>Calculez les d&eacute;terminant :</p>"]
[null,{"$f":"CONCATENATE(\"\")","v":""},"<p>&Delta; = $5$ + $6$i</p>"]
[null,{"$f":"CONCATENATE(\"\")","v":""},"<p>D&eacute;terminer les deux racines :</p>"]
[null,null,"<p>Z1 = $1$ + $2$i</p>",null,null,null,null,null,null,null,null,null,null,null,{"$f":"IF(NOT(P17),IF(P16,TRUE,FALSE),FALSE)","v":false}]
[null,null,"<p>Z2 = $3$ + $4$i</p>"]
[null,null,"<p>&nbsp;</p>"]
[null,null,"<p>&nbsp;</p>"]
[]
[]
[]
[]
[]
[]
[]
[]
[]
[]
[]
[]
[]
[]
[null,null,"<p>Soit x=\",V1._aib,\"+\",V2._aib,\" <strong>i</strong> et&nbsp;y=\",V2._aib,\"+\",V3._aib,\"<strong>i</strong> deux nombres complexes. Calculer la somme x+y=\",R1._aib,\"+\",R2._aib,\" <strong>i</strong> et le produit :&nbsp;x*y=\",R3._aib,\"+\",R4._aib,\" <strong>i</strong></p><p>"]